{"text_format":"1","workbook":"xlsx","n_sheets":7,"sheets":["はじめに","2B基本票H29","2B基本票Layout","様式展開ツール","テキスト化ツール","テキスト手動保存用","都道府県"],"not_rendered":{"charts":0,"images":1,"macros":1,"external_links":0,"defined_names":2,"comments":0,"pivot_tables":0},"unopened":[],"bounds":{"document_bytes":16777216,"sheet_cells":100000,"rows_first":2000,"rows_last":500,"rows_between":2000,"halvings":0,"cell_chars":16384,"cell_head_chars":4096},"cells_cut":0,"cells_raw":0,"read":"whole","date_system":"1900"}

{"sheet":"はじめに","index":0,"n_rows":83,"n_cols":8,"rows_kept":83,"cut":false,"hidden":false,"merged":[[3,1,12,12],[18,7,22,11],[37,5,42,11],[63,1,80,12],[82,2,115,12]]}
[]
[null,"◆はじめに"]
[]
[null,"　本ファイルでは、「報告様式２Ｂ（入力用）」の「基本票」をご記入いただきます。\n\n　「基本票」を入力後、別シートに格納している「様式展開ツール」（マクロ機能）を用いることで、「基本票」でご入力いただいた病棟数分の「病棟票」ファイルを作成するとともに、「病棟票」に基本情報を自動的に展開し、入力を一部簡略化することも可能になります。\n　平成29年度の報告様式２Ｂチェックソフトでは、Excelファイルのままチェックを実行することが可能になります。なお、病棟票の数が多くデータチェックの処理に時間を要する場合等には、別シートに格納している「テキスト化ツール」（マクロ機能）か手動でテキストファイル形式にデータ変換することで、迅速にエラーチェックを行うことが可能になります。\n\n　以下の「報告様式２Ｂ作成の流れ」と合わせて、ご確認ください。"]
[]
[]
[]
[]
[]
[]
[]
[]
[]
[]
[null,"・報告様式２Ｂ作成の流れ"]
[]
[]
[]
[null,null,null,null,null,null,"※１","「基本票」を入力後、別シートの「様式展開ツール」を用いることで、「基本票」でご入力いただいた病棟数分の「病棟票」ファイルを作成するとともに、各「病棟票」に基本情報を自動的に展開することが可能になります。"]
[]
[]
[]
[]
[]
[null,null,null,null,null,null,"＜病棟票の数が多くデータチェックの処理に時間を要する場合等＞"]
[]
[]
[]
[]
[]
[]
[]
[]
[]
[]
[]
[]
[null,null,null,null,"※２","「報告様式２Ｂ（入力用）」を全て入力後、別シートの「テキスト化ツール」を使用し、「報告様式２Ｂチェックソフト」で使用するテキストファイルをご作成いただけます。\n　マクロ機能が使用できない場合は、「基本票」、「病棟票」にあらかじめ作成されている「テキスト手動保存用」シートを表示のうえ、手動でテキストファイルを作成してください。\n　手順は以下のとおりです。"]
[]
[]
[]
[]
[]
[null,null,null,null,null,"○手動でテキストを作成する手順"]
[null,null,null,null,null,"１．各ファイルの「テキスト手動保存用」シートを表示してください。"]
[null,null,null,null,null,"２．画面上段左の「ファイル」から、「名前を付けて保存」を"]
[null,null,null,null,null,null,"選択してください。"]
[null,null,null,null,null,"３．「名前を付けて保存」ウィンドウが表示されます。"]
[null,null,null,null,null,"４．デスクトップを選択し、ファイル名を指定してください。"]
[null,null,null,null,null,"５．画面中下段の「ファイルの種類」を押下してください。"]
[null,null,null,null,null,"６．表示されたリスト中段の「テキスト(タブ区切り)(*.txt)」を選択します。"]
[null,null,null,null,null,"７．画面下段の「保存」ボタンを押下し、テキストファイルを"]
[null,null,null,null,null,null,"保存してください。"]
[]
[]
[]
[]
[]
[]
[]
[]
[null,"・報告対象となる具体的な医療の内容の範囲について"]
[]
[null,"○ 報告対象は、一般病床または療養病床の入院患者に対して行った具体的な医療の内容のうち、「平成29年６月診療分」であってかつ「平成29年７月審査分」で報告項目に該当する診療行為となります。平成29年６月診療分より前の診療分は、７月審査分であっても報告対象外となります。また、平成29年６月診療分であっても、審査月が８月以降になった月遅れのレセプト分は報告対象外となります。\n\n○ 報告に当たっては、平成29年６月診療分であってかつ平成29年７月審査分のレセプトについて審査支払機関の一次審査決定後の診療報酬の項目にもとづき、ご報告ください。\n\n○ また、以下の診療行為のうち、本制度の報告項目に該当するものがあれば、それらを社会保険診療分に追加で計上していただくことも可能です。追加の計上につきましては、医療機関の経済的・人的負担を考慮し、任意となりますので、可能な範囲でご対応ください。\n\n・平成29年６月診療分であって７月審査分のレセプトのうち、一次審査の結果、返戻された分\n・紙レセプトで請求されている分\n・介護療養病床において医療の給付を受けた場合の請求分\n・一般病床・療養病床に入院するショートステイ利用者、正常な妊産婦、院内で出生した正常な新生児、生母の入院に伴って入院した健康な新生児又は乳児、治験、人間ドック、母体保護法等での入院者等\n・次頁に掲げる、医療保険の対象でない公費負担医療単独の場合及び公費負担医療のみの場合や労働者災害補償保険等"]
[]
[]
[]
[]
[]
[]
[]
[]
[]
[]
[]
[]
[]
[]
[]
[]
[]
[]
[null,null,"※　医療保険の対象でない公費負担医療や労働者災害補償保険等での診療行為については、通常の社会保険診療分の審査と異なることから、平成29年６月診療分であれば、８月以降の月遅れのレセプト分も計上していただくことが可能です。\n　（追加で計上できる公費負担医療等の例）\n・戦傷病者特別援護法による療養の給付（法第10条関係）、更生医療（法第20条関係）\n・原子爆弾被害者に対する援護に関する法律による認定疾病医療（法第10条関係）\n・感染症の予防及び感染症の患者に対する医療に関する法律による新感染症の患者の入院(法第37条関係)\n・心神喪失等の状態で重大な他害行為を行った者の医療及び観察等に関する法律による医療の実施に係る\n　医療の給付（法第81条関係）\n・感染症の予防及び感染症の患者に対する医療に関する法律による結核患者の適正医療\n　（法第37条の２関係）、結核患者の入院（法第37条関係）\n・精神保健及び精神障害者福祉に関する法律による措置入院（法第29条関係）\n・障害者総合支援法による精神通院医療（法第５条関係）、更生医療（法第５条関係）、\n　育成医療（法第５条関係）、療養介護医療（法第70条関係）及び基準該当療養介護医療（法第71条関係）\n・麻薬及び向精神薬取締法による入院措置（法第58条の８関係）\n・感染症の予防及び感染症の患者に対する医療に関する法律による一類感染症等の患者の入院\n　（法第37条関係）\n・児童福祉法による療育の給付（法第20条関係）、肢体不自由児通所医療（法第21条の5の28関係）及び\n　障害児入所医療（法第24条の20関係）\n・原子爆弾被爆者に対する援護に関する法律による一般疾病医療費（法第18条関係）\n・母子保健法による養育医療（法第20条関係）\n・特定疾患治療費、先天性血液凝固因子障害等治療費、水俣病総合対策費の国庫補助による療養費及び\n　研究治療費、茨城県神栖町における有機ヒ素化合物による環境汚染及び健康被害に係る緊急措置事業要綱に\n　よる医療費及びメチル水銀の健康影響による治療研究費\n・肝炎治療特別促進事業に係る医療の給付\n・児童福祉法による小児慢性特定疾患治療研究事業に係る医療の給付（法第21条の５関係）\n・児童福祉法の措置等に係る医療の給付\n・石綿による健康被害の救済に関する法律による医療費の支給（法第４条関係）\n・特定Ｂ型肝炎ウイルス感染症給付費等の支給に関する特別措置法による定期検査費及び母子感染症防止\n　医療費の支給（法第12条第１項及び第13条第１項関係）\n・中国残留邦人等の円滑な帰国の促進及び永住帰国後の自立の支援に関する法律第14条第４項に規定する\n　医療支援給付（中国残留邦人等の円滑な帰国の促進及び永住帰国後の自立の支援に関する法律の一部を\n　改正する法律附則第４条第２項において準用する場合を含む。）\n・生活保護法による医療扶助（法第15条関係）\n・公害健康被害者の療養\n・各自治体独自の医療費助成についての取組による医療の給付\n・労災保険制度、労働福祉事業としての医療\n・自動車損害賠償責任保険の療養\n・その他の自由診療"]

{"sheet":"2B基本票H29","index":1,"n_rows":224,"n_cols":65,"rows_kept":224,"cut":false,"hidden":false,"merged":[[215,0,217,0],[215,1,217,9],[215,10,217,27],[215,28,217,36],[215,37,217,56],[216,58,216,60],[218,0,220,0],[218,1,220,9],[218,10,220,27],[218,28,220,36],[218,37,220,56],[219,58,219,60],[209,0,211,0],[209,1,211,9],[209,10,211,27],[209,28,211,36],[209,37,211,56],[210,58,210,60],[212,0,214,0],[212,1,214,9],[212,10,214,27],[212,28,214,36],[212,37,214,56],[213,58,213,60],[203,0,205,0],[203,1,205,9],[203,10,205,27],[203,28,205,36],[203,37,205,56],[204,58,204,60],[206,0,208,0],[206,1,208,9],[206,10,208,27],[206,28,208,36],[206,37,208,56],[207,58,207,60],[197,0,199,0],[197,1,199,9],[197,10,199,27],[197,28,199,36],[197,37,199,56],[198,58,198,60],[200,0,202,0],[200,1,202,9],[200,10,202,27],[200,28,202,36],[200,37,202,56],[201,58,201,60],[191,0,193,0],[191,1,193,9],[191,10,193,27],[191,28,193,36],[191,37,193,56],[192,58,192,60],[194,0,196,0],[194,1,196,9],[194,10,196,27],[194,28,196,36],[194,37,196,56],[195,58,195,60],[185,0,187,0],[185,1,187,9],[185,10,187,27],[185,28,187,36],[185,37,187,56],[186,58,186,60],[188,0,190,0],[188,1,190,9],[188,10,190,27],[188,28,190,36],[188,37,190,56],[189,58,189,60],[179,0,181,0],[179,1,181,9],[179,10,181,27],[179,28,181,36],[179,37,181,56],[180,58,180,60],[182,0,184,0],[182,1,184,9],[182,10,184,27],[182,28,184,36],[182,37,184,56],[183,58,183,60],[173,0,175,0],[173,1,175,9],[173,10,175,27],[173,28,175,36],[173,37,175,56],[174,58,174,60],[176,0,178,0],[176,1,178,9],[176,10,178,27],[176,28,178,36],[176,37,178,56],[177,58,177,60],[167,0,169,0],[167,1,169,9],[167,10,169,27],[167,28,169,36],[167,37,169,56],[168,58,168,60],[170,0,172,0],[170,1,172,9],[170,10,172,27],[170,28,172,36],[170,37,172,56],[171,58,171,60],[161,0,163,0],[161,1,163,9],[161,10,163,27],[161,28,163,36],[161,37,163,56],[162,58,162,60],[164,0,166,0],[164,1,166,9],[164,10,166,27],[164,28,166,36],[164,37,166,56],[165,58,165,60],[155,0,157,0],[155,1,157,9],[155,10,157,27],[155,28,157,36],[155,37,157,56],[156,58,156,60],[158,0,160,0],[158,1,160,9],[158,10,160,27],[158,28,160,36],[158,37,160,56],[159,58,159,60],[149,0,151,0],[149,1,151,9],[149,10,151,27],[149,28,151,36],[149,37,151,56],[150,58,150,60],[152,0,154,0],[152,1,154,9],[152,10,154,27],[152,28,154,36],[152,37,154,56],[153,58,153,60],[143,0,145,0],[143,1,145,9],[143,10,145,27],[143,28,145,36],[143,37,145,56],[144,58,144,60],[146,0,148,0],[146,1,148,9],[146,10,148,27],[146,28,148,36],[146,37,148,56],[147,58,147,60],[137,0,139,0],[137,1,139,9],[137,10,139,27],[137,28,139,36],[137,37,139,56],[138,58,138,60],[140,0,142,0],[140,1,142,9],[140,10,142,27],[140,28,142,36],[140,37,142,56],[141,58,141,60],[131,0,133,0],[131,1,133,9],[131,10,133,27],[131,28,133,36],[131,37,133,56],[132,58,132,60],[134,0,136,0],[134,1,136,9],[134,10,136,27],[134,28,136,36],[134,37,136,56],[135,58,135,60],[125,0,127,0],[125,1,127,9],[125,10,127,27],[125,28,127,36],[125,37,127,56],[126,58,126,60],[128,0,130,0],[128,1,130,9],[128,10,130,27],[128,28,130,36],[128,37,130,56],[129,58,129,60],[119,0,121,0],[119,1,121,9],[119,10,121,27],[119,28,121,36],[119,37,121,56],[120,58,120,60],[122,0,124,0],[122,1,124,9],[122,10,124,27],[122,28,124,36],[122,37,124,56],[123,58,123,60],[113,0,115,0],[113,1,115,9],[113,10,115,27],[113,28,115,36],[113,37,115,56],[114,58,114,60],[116,0,118,0],[116,1,118,9],[116,10,118,27],[116,28,118,36],[116,37,118,56],[117,58,117,60],[107,0,109,0],[107,1,109,9],[107,10,109,27],[107,28,109,36],[107,37,109,56],[108,58,108,60],[110,0,112,0],[110,1,112,9],[110,10,112,27],[110,28,112,36],[110,37,112,56],[111,58,111,60],[101,0,103,0],[101,1,103,9],[101,10,103,27],[101,28,103,36],[101,37,103,56],[102,58,102,60],[104,0,106,0],[104,1,106,9],[104,10,106,27],[104,28,106,36],[104,37,106,56],[105,58,105,60],[95,0,97,0],[95,1,97,9],[95,10,97,27],[95,28,97,36],[95,37,97,56],[96,58,96,60],[98,0,100,0],[98,1,100,9],[98,10,100,27],[98,28,100,36],[98,37,100,56],[99,58,99,60],[89,0,91,0],[89,1,91,9],[89,10,91,27],[89,28,91,36],[89,37,91,56],[90,58,90,60],[92,0,94,0],[92,1,94,9],[92,10,94,27],[92,28,94,36],[92,37,94,56],[93,58,93,60],[83,0,85,0],[83,1,85,9],[83,10,85,27],[83,28,85,36],[83,37,85,56],[84,58,84,60],[86,0,88,0],[86,1,88,9],[86,10,88,27],[86,28,88,36],[86,37,88,56],[87,58,87,60],[77,0,79,0],[77,1,79,9],[77,10,79,27],[77,28,79,36],[77,37,79,56],[78,58,78,60],[80,0,82,0],[80,1,82,9],[80,10,82,27],[80,28,82,36],[80,37,82,56],[81,58,81,60],[71,0,73,0],[71,1,73,9],[71,10,73,27],[71,28,73,36],[71,37,73,56],[72,58,72,60],[74,0,76,0],[74,1,76,9],[74,10,76,27],[74,28,76,36],[74,37,76,56],[75,58,75,60],[65,0,67,0],[65,1,67,9],[65,10,67,27],[65,28,67,36],[65,37,67,56],[66,58,66,60],[68,0,70,0],[68,1,70,9],[68,10,70,27],[68,28,70,36],[68,37,70,56],[69,58,69,60],[59,0,61,0],[59,1,61,9],[59,10,61,27],[59,28,61,36],[59,37,61,56],[60,58,60,60],[62,0,64,0],[62,1,64,9],[62,10,64,27],[62,28,64,36],[62,37,64,56],[63,58,63,60],[53,0,55,0],[53,1,55,9],[53,10,55,27],[53,28,55,36],[53,37,55,56],[54,58,54,60],[56,0,58,0],[56,1,58,9],[56,10,58,27],[56,28,58,36],[56,37,58,56],[57,58,57,60],[47,0,49,0],[47,1,49,9],[47,10,49,27],[47,28,49,36],[47,37,49,56],[48,58,48,60],[50,0,52,0],[50,1,52,9],[50,10,52,27],[50,28,52,36],[50,37,52,56],[51,58,51,60],[41,0,43,0],[41,1,43,9],[41,10,43,27],[41,28,43,36],[41,37,43,56],[42,58,42,60],[44,0,46,0],[44,1,46,9],[44,10,46,27],[44,28,46,36],[44,37,46,56],[45,58,45,60],[25,3,29,61],[27,0,27,1],[31,1,33,53],[32,55,32,57],[36,0,36,61],[37,1,39,56],[37,57,39,61],[40,1,40,9],[40,10,40,27],[40,28,40,56],[40,57,40,61],[20,0,20,17],[20,18,20,21],[20,22,20,32],[20,33,20,34],[20,35,20,41],[20,42,20,43],[20,44,20,61],[21,1,22,17],[21,18,21,21],[21,22,21,25],[21,26,21,32],[21,33,21,34],[21,35,21,41],[21,42,21,43],[21,44,21,61],[22,18,22,21],[22,22,22,25],[22,26,22,32],[22,33,22,34],[22,35,22,41],[22,42,22,43],[22,44,22,61],[13,46,13,61],[10,10,10,17],[10,18,10,61],[14,18,14,25],[14,26,14,43],[14,44,14,45],[14,46,14,61],[17,0,17,28],[17,47,17,55],[17,57,17,59],[13,18,13,25],[13,26,13,29],[13,30,13,33],[13,34,13,35],[13,36,13,43],[13,44,13,45],[0,0,0,61],[1,0,1,61],[3,0,3,17],[3,18,3,61],[5,0,5,17],[5,18,5,61],[12,34,12,35],[12,36,12,43],[12,44,12,45],[12,46,12,61],[7,18,7,21],[7,22,7,29],[7,30,7,32],[7,33,7,48],[8,18,8,61],[11,10,11,17],[11,18,11,61],[12,10,12,17],[12,18,12,25],[12,26,12,29],[12,30,12,33]]}
["平成２９年度病床機能報告　報告様式２\n【病院・有床診療所共通　医療機関Ｂ用】\n① 基本票",null,null,null,null,null,null,null,null,null,null,null,null,null,null,null,null,null,null,null,null,null,null,null,null,null,null,null,null,null,null,null,null,null,null,null,null,null,null,null,null,null,null,null,null,null,null,null,null,null,null,null,null,null,null,null,null,null,null,null,null,null,null,{"$f":"IF(COUNTIF($BL$3:$BL$221,\"●\")>0,\"●が記載された項目は、記入内容の見直しが必要な欄になります。以下のメッセージの内容をご確認ください。\",\"\")","v":"●が記載された項目は、記入内容の見直しが必要な欄になります。以下のメッセージの内容をご確認ください。"}]
[]
[]
["◎貴院名",null,null,null,null,null,null,null,null,null,null,null,null,null,null,null,null,null,null,null,null,null,null,null,null,null,null,null,null,null,null,null,null,null,null,null,null,null,null,null,null,null,null,null,null,null,null,null,null,null,null,null,null,null,null,null,null,null,null,null,null,null,null,{"$f":"IF(BM4<>\"\",\"●\",\"\")","v":"●"},{"$f":"IF(S4<>\"\",\"\",\"「貴院名」が未記入です。ご記入ください。\")","v":"「貴院名」が未記入です。ご記入ください。"}]
[]
["◎ＩＤ（報告マニュアル送付状に\n　記載の８桁コード）",null,null,null,null,null,null,null,null,null,null,null,null,null,null,null,null,null,null,null,null,null,null,null,null,null,null,null,null,null,null,null,null,null,null,null,null,null,null,null,null,null,null,null,null,null,null,null,null,null,null,null,null,null,null,null,null,null,null,null,null,null,null,{"$f":"IF(BM6<>\"\",\"●\",\"\")","v":"●"},{"$f":"IF(S6<>\"\",IF(LEN(S6)<>8,\"「ＩＤ」が８桁ではありません。事前に送付する案内文書の送付状に記載されている医療機関ＩＤ（８桁）をご記入ください。\",IF(ISNUMBER(S6*1),IF(OR(AS22=S6,AS23=S6),\"「ＩＤ」が「医療機関コード」と同様になっています。事前に送付する案内文書の送付状に記載されている医療機関ＩＤ（８桁）をご記入ください。\",\"\"),\"「ＩＤ」が数値以外で記入されています。数値でご記入ください。\")),\"「ＩＤ」が未記入です。ご記入ください。\")","v":"「ＩＤ」が未記入です。ご記入ください。"}]
[]
["◎医療機関住所",null,null,null,null,null,null,null,null,null,null,null,null,null,null,null,null,null,"〒",null,null,null,null,null,null,null,null,null,null,null,"-",null,null,null,null,null,null,null,null,null,null,null,null,null,null,null,null,null,null,null,null,null,null,null,null,null,null,null,null,null,null,null,null,{"$f":"IF(BM8<>\"\",\"●\",\"\")","v":"●"},{"$f":"IF(AND(W8<>\"\",AH8<>\"\"),IF(AND(ISNUMBER(W8*1),ISNUMBER(AH8*1)),\"\",\"「郵便番号」が数値以外で記入されています。数値でご記入ください。\"),\"「郵便番号」に未記入の欄があります。すべての欄にご記入ください。\")","v":"「郵便番号」に未記入の欄があります。すべての欄にご記入ください。"}]
[null,null,null,null,null,null,null,null,null,null,null,null,null,null,null,null,null,null,null,null,null,null,null,null,null,null,null,null,null,null,null,null,null,null,null,null,null,null,null,null,null,null,null,null,null,null,null,null,null,null,null,null,null,null,null,null,null,null,null,null,null,null,null,{"$f":"IF(BM9<>\"\",\"●\",\"\")","v":"●"},{"$f":"IF(OR(S9<>\"\"),\"\",\"「医療機関住所」が未記入です。ご記入ください。\")","v":"「医療機関住所」が未記入です。ご記入ください。"}]
[]
["◎報告担当者",null,null,null,null,null,null,null,null,null,"氏　名",null,null,null,null,null,null,null,null,null,null,null,null,null,null,null,null,null,null,null,null,null,null,null,null,null,null,null,null,null,null,null,null,null,null,null,null,null,null,null,null,null,null,null,null,null,null,null,null,null,null,null,null,{"$f":"IF(BM11<>\"\",\"●\",\"\")","v":"●"},{"$f":"IF(S11<>\"\",\"\",\"「氏名」が未記入です。ご記入ください。\")","v":"「氏名」が未記入です。ご記入ください。"}]
[null,null,null,null,null,null,null,null,null,null,"部署名"]
[null,null,null,null,null,null,null,null,null,null,"連絡先",null,null,null,null,null,null,null,"電話番号",null,null,null,null,null,null,null,"市 外\n局 番",null,null,null,null,null,null,null,"-",null,null,null,null,null,null,null,null,null,"-",null,null,null,null,null,null,null,null,null,null,null,null,null,null,null,null,null,null,{"$f":"IF(BM13<>\"\",\"●\",\"\")","v":"●"},{"$f":"IF(AND(AE13<>\"\",AK13<>\"\",AU13<>\"\"),IF(AND(ISNUMBER(AE13*1),ISNUMBER(AK13*1),ISNUMBER(AU13*1)),\"\",\"「電話番号」が数値以外で記入されています。数値でご記入ください。\"),\"「電話番号」に未記入の欄があります。すべての欄にご記入ください。\")","v":"「電話番号」に未記入の欄があります。すべての欄にご記入ください。"}]
[null,null,null,null,null,null,null,null,null,null,null,null,null,null,null,null,null,null,"FAX番号",null,null,null,null,null,null,null,"市 外\n局 番",null,null,null,null,null,null,null,"-",null,null,null,null,null,null,null,null,null,"-",null,null,null,null,null,null,null,null,null,null,null,null,null,null,null,null,null,null,{"$f":"IF(BM14<>\"\",\"●\",\"\")","v":""},{"$f":"IF(AND(AE14=\"\",AK14=\"\",AU14=\"\"),\"\",IF(AND(AE14<>\"\",AK14<>\"\",AU14<>\"\"),IF(AND(ISNUMBER(AE14*1),ISNUMBER(AK14*1),ISNUMBER(AU14*1)),\"\",\"「FAX番号」が数値以外で記入されています。数値でご記入ください。\"),\"「FAX番号」に未記入の欄があります。すべての欄にご記入ください。\"))","v":""}]
[null,null,null,null,null,null,null,null,null,null,null,null,null,null,null,null,null,null,"ｅ-ｍａｉｌ",null,null,null,null,null,null,null,null,null,null,null,null,null,null,null,null,null,null,null,null,null,null,null,null,null,"＠",null,null,null,null,null,null,null,null,null,null,null,null,null,null,null,null,null,null,{"$f":"IF(BM15<>\"\",\"●\",\"\")","v":""},{"$f":"IF(AND(AA15=\"\",AU15=\"\"),\"\",IF(AND(AA15<>\"\",AU15<>\"\"),\"\",\"「e-mail」に未記入の欄があります。すべての欄にご記入ください。\"))","v":""}]
[]
[null,null,null,null,null,null,null,null,null,null,null,null,null,null,null,null,null,null,null,null,null,null,null,null,null,null,null,null,null,null,null,null,null,null,null,null,null,null,null,null,null,null,null,null,null,null,null,null,null,null,null,null,null,null,null,null,null,null,null,null,null,null,null,"",""]
["◎【平成29年７月１日時点】における病院・有床診療所の種別",null,null,null,null,null,null,null,null,null,null,null,null,null,null,null,null,null,null,null,null,null,null,null,null,null,null,null,null,"　１．病院　２．有床診療所",null,null,null,null,null,null,null,null,null,null,null,null,null,null,null,null,null,"該当番号 ⇒",null,null,null,null,null,null,null,null,null,null,null,null,null,null,null,{"$f":"IF(BM18<>\"\",\"●\",\"\")","v":"●"},{"$f":"IF(BF18=\"\",\"選択番号が未記入です。該当する選択肢をご記入ください。\",\"\")","v":"選択番号が未記入です。該当する選択肢をご記入ください。"}]
[null,null,null,null,null,null,null,null,null,null,null,null,null,null,null,null,null,null,null,null,null,null,null,null,null,null,null,null,null,null,null,null,null,null,null,null,null,null,null,null,null,null,null,null,null,null,null,null,null,null,null,null,null,null,null,null,null,null,null,null,null,null,null,"",""]
[]
["◎都道府県番号・医療機関コード",null,null,null,null,null,null,null,null,null,null,null,null,null,null,null,null,null,null,null,null,null,"都道府県番号\n（２桁）",null,null,null,null,null,null,null,null,null,null,null,null,"点数表コード",null,null,null,null,null,null,null,null,"医療機関コード\n（７桁）"]
[null,"（平成29年７月の診療報酬\n　請求時に医科レセプト、\n　歯科レセプトに記載した\n　医療機関コード）",null,null,null,null,null,null,null,null,null,null,null,null,null,null,null,null,"医科用",null,null,null,null,null,null,null,{"$f":"IF(W22=\"\",\"\",VLOOKUP(W22,都道府県!$A$1:$B$47,2,FALSE))","v":""},null,null,null,null,null,null,"-",null,1,null,null,null,null,null,null,"-",null,null,null,null,null,null,null,null,null,null,null,null,null,null,null,null,null,null,null,null,{"$f":"IF(BM22<>\"\",\"●\",\"\")","v":""},{"$f":"IF(AND(W22=\"\",AS22=\"\"),\"\",IF(AND(W22<>\"\",AS22<>\"\"),IF(LEN(AS22)<>7,\"「医療機関コード」が７桁ではありません。診療報酬明細書を作成する際に記載する医療機関コード（７桁）をご記入ください。\",IF(ISNUMBER(W22*1),IF(ISNUMBER(AS22*1),IF(S6=AS22,\"「医療機関コード」が「ＩＤ（送付状に記載の８桁コード）」と同様になっています。診療報酬明細書を作成する際に記載する医療機関コード（７桁）をご記入ください。\",IF(W23=\"\",\"\",IF(W22=W23,\"\",\"「医科用」と「歯科用」の「都道府県番号が異なります。同一の都道府県コードをご記入ください。\"))),\"「医療機関コード」が数値以外で記入されています。数値でご記入ください。\"),\"「都道府県番号」が数値以外で記入されています。数値でご記入ください。\")),\"「都道府県番号」あるいは「医療機関コード」に未記入の欄があります。すべての欄にご記入ください。\"))","v":""}]
[null,null,null,null,null,null,null,null,null,null,null,null,null,null,null,null,null,null,"歯科用",null,null,null,null,null,null,null,{"$f":"IF(W23=\"\",\"\",VLOOKUP(W23,都道府県!$A$1:$B$47,2,FALSE))","v":""},null,null,null,null,null,null,"-",null,3,null,null,null,null,null,null,"-",null,null,null,null,null,null,null,null,null,null,null,null,null,null,null,null,null,null,null,null,{"$f":"IF(BM23<>\"\",\"●\",\"\")","v":""},{"$f":"IF(AND(W23=\"\",AS23=\"\"),\"\",IF(AND(W23<>\"\",AS23<>\"\"),IF(LEN(AS23)<>7,\"「医療機関コード」が７桁ではありません。診療報酬明細書を作成する際に記載する医療機関コード（７桁）をご記入ください。\",IF(ISNUMBER(W23*1),IF(ISNUMBER(AS23*1),IF(S6=AS23,\"「医療機関コード」が「ＩＤ（送付状に記載の８桁コード）」と同様になっています。診療報酬明細書を作成する際に記載する医療機関コード（７桁）をご記入ください。\",IF(W22=\"\",\"\",IF(W22=W23,\"\",\"「医科用」と「歯科用」の「都道府県番号が異なります。同一の都道府県コードをご記入ください。\"))),\"「医療機関コード」が数値以外で記入されています。数値でご記入ください。\"),\"「都道府県番号」が数値以外で記入されています。数値でご記入ください。\")),\"「都道府県番号」あるいは「医療機関コード」に未記入の欄があります。すべての欄にご記入ください。\"))","v":""}]
[null,null,null,null,null,null,null,null,null,null,null,null,null,null,null,null,null,null,null,null,null,null,null,null,null,null,null,null,null,null,null,null,null,null,null,null,null,null,null,null,null,null,null,null,null,null,null,null,null,null,null,null,null,null,null,null,null,null,null,null,null,null,null,"",""]
[]
[null,null,null,"電子レセプトにより診療報酬請求を行っていない医療機関、６月診療分であって７月審査分の「入院レセプト」がない医療機関（介護療養病床における入院であるために入院外レセプトで請求を行っている医療機関、６月診療分を８月以降の審査で請求している医療機関、紙レセプトにより請求を行っている医療機関等）の皆様へ\n\n○本様式へのご回答は可能な範囲で構いません。\n○報告対象は、入院患者に対して行った具体的な医療の内容のうち、「平成29年６月診療分」であってかつ\n　「平成29年７月審査分」で報告項目に該当する診療行為となります。\n○一般病床・療養病床における平成29年６月診療分であってかつ７月審査分の各診療行為の実施状況について、当該\n　診療報酬の施設基準・算定要件を満たす「レセプト件数」、「算定日数」、「算定回数」をご記入いただきます。\n　※ご記入に当たっては、確認・記入要領に記載している各種留意事項をあらかじめご確認ください。\n○医療保険の対象でない公費負担医療等、確認・記入要領に掲げる医療の診療行為のうち、本制度の報告項目に該当\n　するものがあれば、それらを社会保険診療分に追加で計上していただくことも可能です。\n　追加の計上につきましては、医療機関の経済的・人的負担を考慮し、任意となりますので、可能な範囲でご対応\n　ください。\n　※追加で計上できる医療の例については、確認・記入要領（P.８～10）をご確認ください。\n\n≪電子の入院レセプトへの「病棟コード」（一般病床または療養病床分）の入力の有無に係る報告方法≫\n・病棟コードを全てまたは一部に入力している病院：病棟ごとに集計した確認用データを送付しますので、内容を\n　ご確認いただき、報告してください。病棟コードが未入力分のデータに関しては、医療機関で病棟ごとに集計\n　した上で、報告してください。\n・病棟コードが全て未入力の病院：医療機関ごとに集計した確認用データを送付しますので、内容をご確認\n　いただき、病棟ごとに集計した上で、報告してください。\n※なお、病棟コードを一部に入力または全て未入力の病院は、データを病棟ごとに集計する際には、厚生労働省ホーム\n　ページより「報告様式２Ｂ」をダウンロードする等して、報告してください（病院のみ対象。有床診療所は除く）。\n\n○本様式にご記入のうえ、本確認・記入要領及び報告マニュアルに従って、10月31日（火）まで（必着）に事務局\n　あてにご提出ください。"]
[]
[]
[]
[]
[]
[null,"病院における全ての病棟あるいは有床診療所において、休床等により平成29年６月診療分であって７月審査分の入院レセプトがない場合、本制度の報告項目に該当する診療行為がない場合等、報告様式２の全ての項目が「０」となる場合には、右の項目にチェックを入れてください。病棟票の設問は回答不要となりますので、病棟票の作成・提出は不要です。\n病院において一部の病棟で、報告様式２の全ての項目が「０」となる場合には、当該病棟について次頁の病棟コードの項目における右の記入欄にそれぞれチェックを入れてください。"]
[]
[]
[]
[]
["◎病棟コード【貴院において、平成29年７月１日時点で一般病床・療養病床を有する全ての入院病棟の病棟コードを\n　入力してください（病棟コードの記入は、病院のみ対象。有床診療所は除く）。】\n　※病棟の単位は、各病棟における看護体制の１単位をもって病棟として取り扱うものとします。特定入院料を算定する\n　　治療室・病室については、当該施設基準の要件を満たす体制の１単位をもって病棟として取り扱うものとします。\n　　（特殊疾患入院医療管理料、小児入院医療管理料４、地域包括ケア入院医療管理料１又は２を算定する場合は除く。）\n　※病棟コードは、電子レセプトにより診療報酬請求を行っている病院であって、６月診療分であって７月審査分の電子の\n　　入院レセプトに一般病床または療養病床の入院に係る「病棟コード」を記録頂いた場合、電子レセプトに記録頂いた\n　　病棟コード（「1906*****」の９桁コード）をご記入ください。\n　　上記以外の医療機関・病棟は、以下の病床機能報告制度ホームページに掲載されている「病床機能報告に関する電子\n　　レセプト作成の手引き」をはじめとする通知及びマスターファイル等ご参照のうえ、病棟ごとに報告様式１・２を\n　　作成する際に共通となる病棟コード（「1906*****」の９桁コード）を選定しご記入ください（ただし、電子\n　　レセプトに記録していない場合であって休棟中等の場合、病棟コードの５桁目を「５」とすることは可とします）。\n　　　www.mhlw.go.jp/stf/seisakunitsuite/bunya/0000055891.html\n　　　（厚生労働省ホームページ＞政策について＞分野別の政策一覧＞健康・医療＞医療＞病床機能報告）\n　※１つの病棟単位に対して複数の「病棟コード」を付与、あるいは１つの「病棟コード」に対して複数の病棟単位が混在する\n　　ことのないようご留意ください。"]
[null,"病院において一部の病棟で、休床等により平成29年６月診療分であって７月審査分の入院レセプトがない場合、本制度の報告項目に該当する診療行為がない場合等、報告様式２の全ての項目が「０」となる場合には、当該病棟の項目にそれぞれチェックを入れてください。当該病棟の病棟票の設問は回答不要となりますので、当該病棟分の病棟票の作成・提出は不要です。"]
[]
[]
[null,"病棟No.",null,null,null,null,null,null,null,null,"レセプトに印字又は表示した名称",null,null,null,null,null,null,null,null,null,null,null,null,null,null,null,null,null,"病棟コード※",null,null,null,null,null,null,null,null,null,null,null,null,null,null,null,null,null,null,null,null,null,null,null,null,null,null,null,null,"報告様式２\nの全ての\n項目が\n「０」\nとなる場合"]
[null,"病棟No.1",null,null,null,null,null,null,null,null,{"$f":"IF(AL42=\"\",\"\",IF(OR(LEFT(AL42,1)*1<1,LEFT(AL42,1)*1>5,RIGHT(AL42,4)*1<1,RIGHT(AL42,4)*1>50),\"該当コード無し\",IF(MID(AL42,1,1)*1=1,\"高度急性期機能\"&MID(AL42,4,2),IF(MID(AL42,1,1)*1=2,\"急性期機能病棟\"&MID(AL42,4,2),IF(MID(AL42,1,1)*1=3,\"回復期機能病棟\"&MID(AL42,4,2),IF(MID(AL42,1,1)*1=4,\"慢性期機能病棟\"&MID(AL42,4,2),IF(MID(AL42,1,1)*1=5,\"休棟中等\"&MID(AL42,4,2),\"該当コード無し\")))))))","v":""},null,null,null,null,null,null,null,null,null,null,null,null,null,null,null,null,null,"1  9  0  6"]
[null,null,null,null,null,null,null,null,null,null,null,null,null,null,null,null,null,null,null,null,null,null,null,null,null,null,null,null,null,null,null,null,null,null,null,null,null,null,null,null,null,null,null,null,null,null,null,null,null,null,null,null,null,null,null,null,null,null,"　",null,null,null,null,{"$f":"IF(BM43=\"\",\"\",IF(BM43=\"有床診療所は、「病棟コード」の記入は不要になります。病院の場合のみご記入ください。\",\"\",\"●\"))","v":"●"},{"$f":"IF($BF$18=2,IF(AL42=\"\",\"\",\"有床診療所は、「病棟コード」の記入は不要になります。病院の場合のみご記入ください。\"),IF(COUNTA($AL$42:$BE$221)>0,IF(COUNTIF($AL$42:$BE$221,AL42)>1,\"同一の「病棟コード」が複数記載されています。１つの病棟単位に対して複数の「病棟コード」を付与、あるいは１つの「病棟コード」に対して複数の病棟単位が混在することのないようご留意ください。\",IF(AL42=\"\",\"\",IF(ISNUMBER(AL42*1),IF(OR(LEN(AL42)<>5,LEFT(AL42,1)*1<1,LEFT(AL42,1)*1>5,RIGHT(AL42,4)*1<1,RIGHT(AL42,4)*1>50),\"「病棟コード」が右欄の「１９０６」とあわせて９桁でないか、厚生労働省ホームページで公開されている病床機能報告用マスターファイルで指定されている病棟コードと異なります。正しい病棟コード（９桁）をご記入ください（ただし、休棟中等の場合、病棟コードの５桁目を「５」とすることは可とします）。\",\"\"),\"「病棟コード」が数値以外で記入されています。数値でご記入ください。\"))),\"病院は、「病棟コード」の記入が必須になります。貴院が病院の場合は必ずご記入ください。\"))","v":"病院は、「病棟コード」の記入が必須になります。貴院が病院の場合は必ずご記入ください。"}]
[]
[null,"病棟No.2",null,null,null,null,null,null,null,null,{"$f":"IF(AL45=\"\",\"\",IF(OR(LEFT(AL45,1)*1<1,LEFT(AL45,1)*1>5,RIGHT(AL45,4)*1<1,RIGHT(AL45,4)*1>50),\"該当コード無し\",IF(MID(AL45,1,1)*1=1,\"高度急性期機能\"&MID(AL45,4,2),IF(MID(AL45,1,1)*1=2,\"急性期機能病棟\"&MID(AL45,4,2),IF(MID(AL45,1,1)*1=3,\"回復期機能病棟\"&MID(AL45,4,2),IF(MID(AL45,1,1)*1=4,\"慢性期機能病棟\"&MID(AL45,4,2),IF(MID(AL45,1,1)*1=5,\"休棟中等\"&MID(AL45,4,2),\"該当コード無し\")))))))","v":""},null,null,null,null,null,null,null,null,null,null,null,null,null,null,null,null,null,"1  9  0  6"]
[null,null,null,null,null,null,null,null,null,null,null,null,null,null,null,null,null,null,null,null,null,null,null,null,null,null,null,null,null,null,null,null,null,null,null,null,null,null,null,null,null,null,null,null,null,null,null,null,null,null,null,null,null,null,null,null,null,null,"　",null,null,null,null,{"$f":"IF(BM46=\"\",\"\",IF(BM46=\"有床診療所は、「病棟コード」の記入は不要になります。病院の場合のみご記入ください。\",\"\",\"●\"))","v":"●"},{"$f":"IF($BF$18=2,IF(AL45=\"\",\"\",\"有床診療所は、「病棟コード」の記入は不要になります。病院の場合のみご記入ください。\"),IF(COUNTA($AL$42:$BE$221)>0,IF(COUNTIF($AL$42:$BE$221,AL45)>1,\"同一の「病棟コード」が複数記載されています。１つの病棟単位に対して複数の「病棟コード」を付与、あるいは１つの「病棟コード」に対して複数の病棟単位が混在することのないようご留意ください。\",IF(AL45=\"\",\"\",IF(ISNUMBER(AL45*1),IF(OR(LEN(AL45)<>5,LEFT(AL45,1)*1<1,LEFT(AL45,1)*1>5,RIGHT(AL45,4)*1<1,RIGHT(AL45,4)*1>50),\"「病棟コード」が右欄の「１９０６」とあわせて９桁でないか、厚生労働省ホームページで公開されている病床機能報告用マスターファイルで指定されている病棟コードと異なります。正しい病棟コード（９桁）をご記入ください（ただし、休棟中等の場合、病棟コードの５桁目を「５」とすることは可とします）。\",\"\"),\"「病棟コード」が数値以外で記入されています。数値でご記入ください。\"))),\"病院は、「病棟コード」の記入が必須になります。貴院が病院の場合は必ずご記入ください。\"))","v":"病院は、「病棟コード」の記入が必須になります。貴院が病院の場合は必ずご記入ください。"}]
[]
[null,"病棟No.3",null,null,null,null,null,null,null,null,{"$f":"IF(AL48=\"\",\"\",IF(OR(LEFT(AL48,1)*1<1,LEFT(AL48,1)*1>5,RIGHT(AL48,4)*1<1,RIGHT(AL48,4)*1>50),\"該当コード無し\",IF(MID(AL48,1,1)*1=1,\"高度急性期機能\"&MID(AL48,4,2),IF(MID(AL48,1,1)*1=2,\"急性期機能病棟\"&MID(AL48,4,2),IF(MID(AL48,1,1)*1=3,\"回復期機能病棟\"&MID(AL48,4,2),IF(MID(AL48,1,1)*1=4,\"慢性期機能病棟\"&MID(AL48,4,2),IF(MID(AL48,1,1)*1=5,\"休棟中等\"&MID(AL48,4,2),\"該当コード無し\")))))))","v":""},null,null,null,null,null,null,null,null,null,null,null,null,null,null,null,null,null,"1  9  0  6"]
[null,null,null,null,null,null,null,null,null,null,null,null,null,null,null,null,null,null,null,null,null,null,null,null,null,null,null,null,null,null,null,null,null,null,null,null,null,null,null,null,null,null,null,null,null,null,null,null,null,null,null,null,null,null,null,null,null,null,"　",null,null,null,null,{"$f":"IF(BM49=\"\",\"\",IF(BM49=\"有床診療所は、「病棟コード」の記入は不要になります。病院の場合のみご記入ください。\",\"\",\"●\"))","v":"●"},{"$f":"IF($BF$18=2,IF(AL48=\"\",\"\",\"有床診療所は、「病棟コード」の記入は不要になります。病院の場合のみご記入ください。\"),IF(COUNTA($AL$42:$BE$221)>0,IF(COUNTIF($AL$42:$BE$221,AL48)>1,\"同一の「病棟コード」が複数記載されています。１つの病棟単位に対して複数の「病棟コード」を付与、あるいは１つの「病棟コード」に対して複数の病棟単位が混在することのないようご留意ください。\",IF(AL48=\"\",\"\",IF(ISNUMBER(AL48*1),IF(OR(LEN(AL48)<>5,LEFT(AL48,1)*1<1,LEFT(AL48,1)*1>5,RIGHT(AL48,4)*1<1,RIGHT(AL48,4)*1>50),\"「病棟コード」が右欄の「１９０６」とあわせて９桁でないか、厚生労働省ホームページで公開されている病床機能報告用マスターファイルで指定されている病棟コードと異なります。正しい病棟コード（９桁）をご記入ください（ただし、休棟中等の場合、病棟コードの５桁目を「５」とすることは可とします）。\",\"\"),\"「病棟コード」が数値以外で記入されています。数値でご記入ください。\"))),\"病院は、「病棟コード」の記入が必須になります。貴院が病院の場合は必ずご記入ください。\"))","v":"病院は、「病棟コード」の記入が必須になります。貴院が病院の場合は必ずご記入ください。"}]
[]
[null,"病棟No.4",null,null,null,null,null,null,null,null,{"$f":"IF(AL51=\"\",\"\",IF(OR(LEFT(AL51,1)*1<1,LEFT(AL51,1)*1>5,RIGHT(AL51,4)*1<1,RIGHT(AL51,4)*1>50),\"該当コード無し\",IF(MID(AL51,1,1)*1=1,\"高度急性期機能\"&MID(AL51,4,2),IF(MID(AL51,1,1)*1=2,\"急性期機能病棟\"&MID(AL51,4,2),IF(MID(AL51,1,1)*1=3,\"回復期機能病棟\"&MID(AL51,4,2),IF(MID(AL51,1,1)*1=4,\"慢性期機能病棟\"&MID(AL51,4,2),IF(MID(AL51,1,1)*1=5,\"休棟中等\"&MID(AL51,4,2),\"該当コード無し\")))))))","v":""},null,null,null,null,null,null,null,null,null,null,null,null,null,null,null,null,null,"1  9  0  6"]
[null,null,null,null,null,null,null,null,null,null,null,null,null,null,null,null,null,null,null,null,null,null,null,null,null,null,null,null,null,null,null,null,null,null,null,null,null,null,null,null,null,null,null,null,null,null,null,null,null,null,null,null,null,null,null,null,null,null,"　",null,null,null,null,{"$f":"IF(BM52=\"\",\"\",IF(BM52=\"有床診療所は、「病棟コード」の記入は不要になります。病院の場合のみご記入ください。\",\"\",\"●\"))","v":"●"},{"$f":"IF($BF$18=2,IF(AL51=\"\",\"\",\"有床診療所は、「病棟コード」の記入は不要になります。病院の場合のみご記入ください。\"),IF(COUNTA($AL$42:$BE$221)>0,IF(COUNTIF($AL$42:$BE$221,AL51)>1,\"同一の「病棟コード」が複数記載されています。１つの病棟単位に対して複数の「病棟コード」を付与、あるいは１つの「病棟コード」に対して複数の病棟単位が混在することのないようご留意ください。\",IF(AL51=\"\",\"\",IF(ISNUMBER(AL51*1),IF(OR(LEN(AL51)<>5,LEFT(AL51,1)*1<1,LEFT(AL51,1)*1>5,RIGHT(AL51,4)*1<1,RIGHT(AL51,4)*1>50),\"「病棟コード」が右欄の「１９０６」とあわせて９桁でないか、厚生労働省ホームページで公開されている病床機能報告用マスターファイルで指定されている病棟コードと異なります。正しい病棟コード（９桁）をご記入ください（ただし、休棟中等の場合、病棟コードの５桁目を「５」とすることは可とします）。\",\"\"),\"「病棟コード」が数値以外で記入されています。数値でご記入ください。\"))),\"病院は、「病棟コード」の記入が必須になります。貴院が病院の場合は必ずご記入ください。\"))","v":"病院は、「病棟コード」の記入が必須になります。貴院が病院の場合は必ずご記入ください。"}]
[]
[null,"病棟No.5",null,null,null,null,null,null,null,null,{"$f":"IF(AL54=\"\",\"\",IF(OR(LEFT(AL54,1)*1<1,LEFT(AL54,1)*1>5,RIGHT(AL54,4)*1<1,RIGHT(AL54,4)*1>50),\"該当コード無し\",IF(MID(AL54,1,1)*1=1,\"高度急性期機能\"&MID(AL54,4,2),IF(MID(AL54,1,1)*1=2,\"急性期機能病棟\"&MID(AL54,4,2),IF(MID(AL54,1,1)*1=3,\"回復期機能病棟\"&MID(AL54,4,2),IF(MID(AL54,1,1)*1=4,\"慢性期機能病棟\"&MID(AL54,4,2),IF(MID(AL54,1,1)*1=5,\"休棟中等\"&MID(AL54,4,2),\"該当コード無し\")))))))","v":""},null,null,null,null,null,null,null,null,null,null,null,null,null,null,null,null,null,"1  9  0  6"]
[null,null,null,null,null,null,null,null,null,null,null,null,null,null,null,null,null,null,null,null,null,null,null,null,null,null,null,null,null,null,null,null,null,null,null,null,null,null,null,null,null,null,null,null,null,null,null,null,null,null,null,null,null,null,null,null,null,null,"　",null,null,null,null,{"$f":"IF(BM55=\"\",\"\",IF(BM55=\"有床診療所は、「病棟コード」の記入は不要になります。病院の場合のみご記入ください。\",\"\",\"●\"))","v":"●"},{"$f":"IF($BF$18=2,IF(AL54=\"\",\"\",\"有床診療所は、「病棟コード」の記入は不要になります。病院の場合のみご記入ください。\"),IF(COUNTA($AL$42:$BE$221)>0,IF(COUNTIF($AL$42:$BE$221,AL54)>1,\"同一の「病棟コード」が複数記載されています。１つの病棟単位に対して複数の「病棟コード」を付与、あるいは１つの「病棟コード」に対して複数の病棟単位が混在することのないようご留意ください。\",IF(AL54=\"\",\"\",IF(ISNUMBER(AL54*1),IF(OR(LEN(AL54)<>5,LEFT(AL54,1)*1<1,LEFT(AL54,1)*1>5,RIGHT(AL54,4)*1<1,RIGHT(AL54,4)*1>50),\"「病棟コード」が右欄の「１９０６」とあわせて９桁でないか、厚生労働省ホームページで公開されている病床機能報告用マスターファイルで指定されている病棟コードと異なります。正しい病棟コード（９桁）をご記入ください（ただし、休棟中等の場合、病棟コードの５桁目を「５」とすることは可とします）。\",\"\"),\"「病棟コード」が数値以外で記入されています。数値でご記入ください。\"))),\"病院は、「病棟コード」の記入が必須になります。貴院が病院の場合は必ずご記入ください。\"))","v":"病院は、「病棟コード」の記入が必須になります。貴院が病院の場合は必ずご記入ください。"}]
[]
[null,"病棟No.6",null,null,null,null,null,null,null,null,{"$f":"IF(AL57=\"\",\"\",IF(OR(LEFT(AL57,1)*1<1,LEFT(AL57,1)*1>5,RIGHT(AL57,4)*1<1,RIGHT(AL57,4)*1>50),\"該当コード無し\",IF(MID(AL57,1,1)*1=1,\"高度急性期機能\"&MID(AL57,4,2),IF(MID(AL57,1,1)*1=2,\"急性期機能病棟\"&MID(AL57,4,2),IF(MID(AL57,1,1)*1=3,\"回復期機能病棟\"&MID(AL57,4,2),IF(MID(AL57,1,1)*1=4,\"慢性期機能病棟\"&MID(AL57,4,2),IF(MID(AL57,1,1)*1=5,\"休棟中等\"&MID(AL57,4,2),\"該当コード無し\")))))))","v":""},null,null,null,null,null,null,null,null,null,null,null,null,null,null,null,null,null,"1  9  0  6"]
[null,null,null,null,null,null,null,null,null,null,null,null,null,null,null,null,null,null,null,null,null,null,null,null,null,null,null,null,null,null,null,null,null,null,null,null,null,null,null,null,null,null,null,null,null,null,null,null,null,null,null,null,null,null,null,null,null,null,"　",null,null,null,null,{"$f":"IF(BM58=\"\",\"\",IF(BM58=\"有床診療所は、「病棟コード」の記入は不要になります。病院の場合のみご記入ください。\",\"\",\"●\"))","v":"●"},{"$f":"IF($BF$18=2,IF(AL57=\"\",\"\",\"有床診療所は、「病棟コード」の記入は不要になります。病院の場合のみご記入ください。\"),IF(COUNTA($AL$42:$BE$221)>0,IF(COUNTIF($AL$42:$BE$221,AL57)>1,\"同一の「病棟コード」が複数記載されています。１つの病棟単位に対して複数の「病棟コード」を付与、あるいは１つの「病棟コード」に対して複数の病棟単位が混在することのないようご留意ください。\",IF(AL57=\"\",\"\",IF(ISNUMBER(AL57*1),IF(OR(LEN(AL57)<>5,LEFT(AL57,1)*1<1,LEFT(AL57,1)*1>5,RIGHT(AL57,4)*1<1,RIGHT(AL57,4)*1>50),\"「病棟コード」が右欄の「１９０６」とあわせて９桁でないか、厚生労働省ホームページで公開されている病床機能報告用マスターファイルで指定されている病棟コードと異なります。正しい病棟コード（９桁）をご記入ください（ただし、休棟中等の場合、病棟コードの５桁目を「５」とすることは可とします）。\",\"\"),\"「病棟コード」が数値以外で記入されています。数値でご記入ください。\"))),\"病院は、「病棟コード」の記入が必須になります。貴院が病院の場合は必ずご記入ください。\"))","v":"病院は、「病棟コード」の記入が必須になります。貴院が病院の場合は必ずご記入ください。"}]
[]
[null,"病棟No.7",null,null,null,null,null,null,null,null,{"$f":"IF(AL60=\"\",\"\",IF(OR(LEFT(AL60,1)*1<1,LEFT(AL60,1)*1>5,RIGHT(AL60,4)*1<1,RIGHT(AL60,4)*1>50),\"該当コード無し\",IF(MID(AL60,1,1)*1=1,\"高度急性期機能\"&MID(AL60,4,2),IF(MID(AL60,1,1)*1=2,\"急性期機能病棟\"&MID(AL60,4,2),IF(MID(AL60,1,1)*1=3,\"回復期機能病棟\"&MID(AL60,4,2),IF(MID(AL60,1,1)*1=4,\"慢性期機能病棟\"&MID(AL60,4,2),IF(MID(AL60,1,1)*1=5,\"休棟中等\"&MID(AL60,4,2),\"該当コード無し\")))))))","v":""},null,null,null,null,null,null,null,null,null,null,null,null,null,null,null,null,null,"1  9  0  6"]
[null,null,null,null,null,null,null,null,null,null,null,null,null,null,null,null,null,null,null,null,null,null,null,null,null,null,null,null,null,null,null,null,null,null,null,null,null,null,null,null,null,null,null,null,null,null,null,null,null,null,null,null,null,null,null,null,null,null,"　",null,null,null,null,{"$f":"IF(BM61=\"\",\"\",IF(BM61=\"有床診療所は、「病棟コード」の記入は不要になります。病院の場合のみご記入ください。\",\"\",\"●\"))","v":"●"},{"$f":"IF($BF$18=2,IF(AL60=\"\",\"\",\"有床診療所は、「病棟コード」の記入は不要になります。病院の場合のみご記入ください。\"),IF(COUNTA($AL$42:$BE$221)>0,IF(COUNTIF($AL$42:$BE$221,AL60)>1,\"同一の「病棟コード」が複数記載されています。１つの病棟単位に対して複数の「病棟コード」を付与、あるいは１つの「病棟コード」に対して複数の病棟単位が混在することのないようご留意ください。\",IF(AL60=\"\",\"\",IF(ISNUMBER(AL60*1),IF(OR(LEN(AL60)<>5,LEFT(AL60,1)*1<1,LEFT(AL60,1)*1>5,RIGHT(AL60,4)*1<1,RIGHT(AL60,4)*1>50),\"「病棟コード」が右欄の「１９０６」とあわせて９桁でないか、厚生労働省ホームページで公開されている病床機能報告用マスターファイルで指定されている病棟コードと異なります。正しい病棟コード（９桁）をご記入ください（ただし、休棟中等の場合、病棟コードの５桁目を「５」とすることは可とします）。\",\"\"),\"「病棟コード」が数値以外で記入されています。数値でご記入ください。\"))),\"病院は、「病棟コード」の記入が必須になります。貴院が病院の場合は必ずご記入ください。\"))","v":"病院は、「病棟コード」の記入が必須になります。貴院が病院の場合は必ずご記入ください。"}]
[]
[null,"病棟No.8",null,null,null,null,null,null,null,null,{"$f":"IF(AL63=\"\",\"\",IF(OR(LEFT(AL63,1)*1<1,LEFT(AL63,1)*1>5,RIGHT(AL63,4)*1<1,RIGHT(AL63,4)*1>50),\"該当コード無し\",IF(MID(AL63,1,1)*1=1,\"高度急性期機能\"&MID(AL63,4,2),IF(MID(AL63,1,1)*1=2,\"急性期機能病棟\"&MID(AL63,4,2),IF(MID(AL63,1,1)*1=3,\"回復期機能病棟\"&MID(AL63,4,2),IF(MID(AL63,1,1)*1=4,\"慢性期機能病棟\"&MID(AL63,4,2),IF(MID(AL63,1,1)*1=5,\"休棟中等\"&MID(AL63,4,2),\"該当コード無し\")))))))","v":""},null,null,null,null,null,null,null,null,null,null,null,null,null,null,null,null,null,"1  9  0  6"]
[null,null,null,null,null,null,null,null,null,null,null,null,null,null,null,null,null,null,null,null,null,null,null,null,null,null,null,null,null,null,null,null,null,null,null,null,null,null,null,null,null,null,null,null,null,null,null,null,null,null,null,null,null,null,null,null,null,null,"　",null,null,null,null,{"$f":"IF(BM64=\"\",\"\",IF(BM64=\"有床診療所は、「病棟コード」の記入は不要になります。病院の場合のみご記入ください。\",\"\",\"●\"))","v":"●"},{"$f":"IF($BF$18=2,IF(AL63=\"\",\"\",\"有床診療所は、「病棟コード」の記入は不要になります。病院の場合のみご記入ください。\"),IF(COUNTA($AL$42:$BE$221)>0,IF(COUNTIF($AL$42:$BE$221,AL63)>1,\"同一の「病棟コード」が複数記載されています。１つの病棟単位に対して複数の「病棟コード」を付与、あるいは１つの「病棟コード」に対して複数の病棟単位が混在することのないようご留意ください。\",IF(AL63=\"\",\"\",IF(ISNUMBER(AL63*1),IF(OR(LEN(AL63)<>5,LEFT(AL63,1)*1<1,LEFT(AL63,1)*1>5,RIGHT(AL63,4)*1<1,RIGHT(AL63,4)*1>50),\"「病棟コード」が右欄の「１９０６」とあわせて９桁でないか、厚生労働省ホームページで公開されている病床機能報告用マスターファイルで指定されている病棟コードと異なります。正しい病棟コード（９桁）をご記入ください（ただし、休棟中等の場合、病棟コードの５桁目を「５」とすることは可とします）。\",\"\"),\"「病棟コード」が数値以外で記入されています。数値でご記入ください。\"))),\"病院は、「病棟コード」の記入が必須になります。貴院が病院の場合は必ずご記入ください。\"))","v":"病院は、「病棟コード」の記入が必須になります。貴院が病院の場合は必ずご記入ください。"}]
[]
[null,"病棟No.9",null,null,null,null,null,null,null,null,{"$f":"IF(AL66=\"\",\"\",IF(OR(LEFT(AL66,1)*1<1,LEFT(AL66,1)*1>5,RIGHT(AL66,4)*1<1,RIGHT(AL66,4)*1>50),\"該当コード無し\",IF(MID(AL66,1,1)*1=1,\"高度急性期機能\"&MID(AL66,4,2),IF(MID(AL66,1,1)*1=2,\"急性期機能病棟\"&MID(AL66,4,2),IF(MID(AL66,1,1)*1=3,\"回復期機能病棟\"&MID(AL66,4,2),IF(MID(AL66,1,1)*1=4,\"慢性期機能病棟\"&MID(AL66,4,2),IF(MID(AL66,1,1)*1=5,\"休棟中等\"&MID(AL66,4,2),\"該当コード無し\")))))))","v":""},null,null,null,null,null,null,null,null,null,null,null,null,null,null,null,null,null,"1  9  0  6"]
[null,null,null,null,null,null,null,null,null,null,null,null,null,null,null,null,null,null,null,null,null,null,null,null,null,null,null,null,null,null,null,null,null,null,null,null,null,null,null,null,null,null,null,null,null,null,null,null,null,null,null,null,null,null,null,null,null,null,"　",null,null,null,null,{"$f":"IF(BM67=\"\",\"\",IF(BM67=\"有床診療所は、「病棟コード」の記入は不要になります。病院の場合のみご記入ください。\",\"\",\"●\"))","v":"●"},{"$f":"IF($BF$18=2,IF(AL66=\"\",\"\",\"有床診療所は、「病棟コード」の記入は不要になります。病院の場合のみご記入ください。\"),IF(COUNTA($AL$42:$BE$221)>0,IF(COUNTIF($AL$42:$BE$221,AL66)>1,\"同一の「病棟コード」が複数記載されています。１つの病棟単位に対して複数の「病棟コード」を付与、あるいは１つの「病棟コード」に対して複数の病棟単位が混在することのないようご留意ください。\",IF(AL66=\"\",\"\",IF(ISNUMBER(AL66*1),IF(OR(LEN(AL66)<>5,LEFT(AL66,1)*1<1,LEFT(AL66,1)*1>5,RIGHT(AL66,4)*1<1,RIGHT(AL66,4)*1>50),\"「病棟コード」が右欄の「１９０６」とあわせて９桁でないか、厚生労働省ホームページで公開されている病床機能報告用マスターファイルで指定されている病棟コードと異なります。正しい病棟コード（９桁）をご記入ください（ただし、休棟中等の場合、病棟コードの５桁目を「５」とすることは可とします）。\",\"\"),\"「病棟コード」が数値以外で記入されています。数値でご記入ください。\"))),\"病院は、「病棟コード」の記入が必須になります。貴院が病院の場合は必ずご記入ください。\"))","v":"病院は、「病棟コード」の記入が必須になります。貴院が病院の場合は必ずご記入ください。"}]
[]
[null,"病棟No.10",null,null,null,null,null,null,null,null,{"$f":"IF(AL69=\"\",\"\",IF(OR(LEFT(AL69,1)*1<1,LEFT(AL69,1)*1>5,RIGHT(AL69,4)*1<1,RIGHT(AL69,4)*1>50),\"該当コード無し\",IF(MID(AL69,1,1)*1=1,\"高度急性期機能\"&MID(AL69,4,2),IF(MID(AL69,1,1)*1=2,\"急性期機能病棟\"&MID(AL69,4,2),IF(MID(AL69,1,1)*1=3,\"回復期機能病棟\"&MID(AL69,4,2),IF(MID(AL69,1,1)*1=4,\"慢性期機能病棟\"&MID(AL69,4,2),IF(MID(AL69,1,1)*1=5,\"休棟中等\"&MID(AL69,4,2),\"該当コード無し\")))))))","v":""},null,null,null,null,null,null,null,null,null,null,null,null,null,null,null,null,null,"1  9  0  6"]
[null,null,null,null,null,null,null,null,null,null,null,null,null,null,null,null,null,null,null,null,null,null,null,null,null,null,null,null,null,null,null,null,null,null,null,null,null,null,null,null,null,null,null,null,null,null,null,null,null,null,null,null,null,null,null,null,null,null,"　",null,null,null,null,{"$f":"IF(BM70=\"\",\"\",IF(BM70=\"有床診療所は、「病棟コード」の記入は不要になります。病院の場合のみご記入ください。\",\"\",\"●\"))","v":"●"},{"$f":"IF($BF$18=2,IF(AL69=\"\",\"\",\"有床診療所は、「病棟コード」の記入は不要になります。病院の場合のみご記入ください。\"),IF(COUNTA($AL$42:$BE$221)>0,IF(COUNTIF($AL$42:$BE$221,AL69)>1,\"同一の「病棟コード」が複数記載されています。１つの病棟単位に対して複数の「病棟コード」を付与、あるいは１つの「病棟コード」に対して複数の病棟単位が混在することのないようご留意ください。\",IF(AL69=\"\",\"\",IF(ISNUMBER(AL69*1),IF(OR(LEN(AL69)<>5,LEFT(AL69,1)*1<1,LEFT(AL69,1)*1>5,RIGHT(AL69,4)*1<1,RIGHT(AL69,4)*1>50),\"「病棟コード」が右欄の「１９０６」とあわせて９桁でないか、厚生労働省ホームページで公開されている病床機能報告用マスターファイルで指定されている病棟コードと異なります。正しい病棟コード（９桁）をご記入ください（ただし、休棟中等の場合、病棟コードの５桁目を「５」とすることは可とします）。\",\"\"),\"「病棟コード」が数値以外で記入されています。数値でご記入ください。\"))),\"病院は、「病棟コード」の記入が必須になります。貴院が病院の場合は必ずご記入ください。\"))","v":"病院は、「病棟コード」の記入が必須になります。貴院が病院の場合は必ずご記入ください。"}]
[]
[null,"病棟No.11",null,null,null,null,null,null,null,null,{"$f":"IF(AL72=\"\",\"\",IF(OR(LEFT(AL72,1)*1<1,LEFT(AL72,1)*1>5,RIGHT(AL72,4)*1<1,RIGHT(AL72,4)*1>50),\"該当コード無し\",IF(MID(AL72,1,1)*1=1,\"高度急性期機能\"&MID(AL72,4,2),IF(MID(AL72,1,1)*1=2,\"急性期機能病棟\"&MID(AL72,4,2),IF(MID(AL72,1,1)*1=3,\"回復期機能病棟\"&MID(AL72,4,2),IF(MID(AL72,1,1)*1=4,\"慢性期機能病棟\"&MID(AL72,4,2),IF(MID(AL72,1,1)*1=5,\"休棟中等\"&MID(AL72,4,2),\"該当コード無し\")))))))","v":""},null,null,null,null,null,null,null,null,null,null,null,null,null,null,null,null,null,"1  9  0  6"]
[null,null,null,null,null,null,null,null,null,null,null,null,null,null,null,null,null,null,null,null,null,null,null,null,null,null,null,null,null,null,null,null,null,null,null,null,null,null,null,null,null,null,null,null,null,null,null,null,null,null,null,null,null,null,null,null,null,null,"　",null,null,null,null,{"$f":"IF(BM73=\"\",\"\",IF(BM73=\"有床診療所は、「病棟コード」の記入は不要になります。病院の場合のみご記入ください。\",\"\",\"●\"))","v":"●"},{"$f":"IF($BF$18=2,IF(AL72=\"\",\"\",\"有床診療所は、「病棟コード」の記入は不要になります。病院の場合のみご記入ください。\"),IF(COUNTA($AL$42:$BE$221)>0,IF(COUNTIF($AL$42:$BE$221,AL72)>1,\"同一の「病棟コード」が複数記載されています。１つの病棟単位に対して複数の「病棟コード」を付与、あるいは１つの「病棟コード」に対して複数の病棟単位が混在することのないようご留意ください。\",IF(AL72=\"\",\"\",IF(ISNUMBER(AL72*1),IF(OR(LEN(AL72)<>5,LEFT(AL72,1)*1<1,LEFT(AL72,1)*1>5,RIGHT(AL72,4)*1<1,RIGHT(AL72,4)*1>50),\"「病棟コード」が右欄の「１９０６」とあわせて９桁でないか、厚生労働省ホームページで公開されている病床機能報告用マスターファイルで指定されている病棟コードと異なります。正しい病棟コード（９桁）をご記入ください（ただし、休棟中等の場合、病棟コードの５桁目を「５」とすることは可とします）。\",\"\"),\"「病棟コード」が数値以外で記入されています。数値でご記入ください。\"))),\"病院は、「病棟コード」の記入が必須になります。貴院が病院の場合は必ずご記入ください。\"))","v":"病院は、「病棟コード」の記入が必須になります。貴院が病院の場合は必ずご記入ください。"}]
[]
[null,"病棟No.12",null,null,null,null,null,null,null,null,{"$f":"IF(AL75=\"\",\"\",IF(OR(LEFT(AL75,1)*1<1,LEFT(AL75,1)*1>5,RIGHT(AL75,4)*1<1,RIGHT(AL75,4)*1>50),\"該当コード無し\",IF(MID(AL75,1,1)*1=1,\"高度急性期機能\"&MID(AL75,4,2),IF(MID(AL75,1,1)*1=2,\"急性期機能病棟\"&MID(AL75,4,2),IF(MID(AL75,1,1)*1=3,\"回復期機能病棟\"&MID(AL75,4,2),IF(MID(AL75,1,1)*1=4,\"慢性期機能病棟\"&MID(AL75,4,2),IF(MID(AL75,1,1)*1=5,\"休棟中等\"&MID(AL75,4,2),\"該当コード無し\")))))))","v":""},null,null,null,null,null,null,null,null,null,null,null,null,null,null,null,null,null,"1  9  0  6"]
[null,null,null,null,null,null,null,null,null,null,null,null,null,null,null,null,null,null,null,null,null,null,null,null,null,null,null,null,null,null,null,null,null,null,null,null,null,null,null,null,null,null,null,null,null,null,null,null,null,null,null,null,null,null,null,null,null,null,"　",null,null,null,null,{"$f":"IF(BM76=\"\",\"\",IF(BM76=\"有床診療所は、「病棟コード」の記入は不要になります。病院の場合のみご記入ください。\",\"\",\"●\"))","v":"●"},{"$f":"IF($BF$18=2,IF(AL75=\"\",\"\",\"有床診療所は、「病棟コード」の記入は不要になります。病院の場合のみご記入ください。\"),IF(COUNTA($AL$42:$BE$221)>0,IF(COUNTIF($AL$42:$BE$221,AL75)>1,\"同一の「病棟コード」が複数記載されています。１つの病棟単位に対して複数の「病棟コード」を付与、あるいは１つの「病棟コード」に対して複数の病棟単位が混在することのないようご留意ください。\",IF(AL75=\"\",\"\",IF(ISNUMBER(AL75*1),IF(OR(LEN(AL75)<>5,LEFT(AL75,1)*1<1,LEFT(AL75,1)*1>5,RIGHT(AL75,4)*1<1,RIGHT(AL75,4)*1>50),\"「病棟コード」が右欄の「１９０６」とあわせて９桁でないか、厚生労働省ホームページで公開されている病床機能報告用マスターファイルで指定されている病棟コードと異なります。正しい病棟コード（９桁）をご記入ください（ただし、休棟中等の場合、病棟コードの５桁目を「５」とすることは可とします）。\",\"\"),\"「病棟コード」が数値以外で記入されています。数値でご記入ください。\"))),\"病院は、「病棟コード」の記入が必須になります。貴院が病院の場合は必ずご記入ください。\"))","v":"病院は、「病棟コード」の記入が必須になります。貴院が病院の場合は必ずご記入ください。"}]
[]
[null,"病棟No.13",null,null,null,null,null,null,null,null,{"$f":"IF(AL78=\"\",\"\",IF(OR(LEFT(AL78,1)*1<1,LEFT(AL78,1)*1>5,RIGHT(AL78,4)*1<1,RIGHT(AL78,4)*1>50),\"該当コード無し\",IF(MID(AL78,1,1)*1=1,\"高度急性期機能\"&MID(AL78,4,2),IF(MID(AL78,1,1)*1=2,\"急性期機能病棟\"&MID(AL78,4,2),IF(MID(AL78,1,1)*1=3,\"回復期機能病棟\"&MID(AL78,4,2),IF(MID(AL78,1,1)*1=4,\"慢性期機能病棟\"&MID(AL78,4,2),IF(MID(AL78,1,1)*1=5,\"休棟中等\"&MID(AL78,4,2),\"該当コード無し\")))))))","v":""},null,null,null,null,null,null,null,null,null,null,null,null,null,null,null,null,null,"1  9  0  6"]
[null,null,null,null,null,null,null,null,null,null,null,null,null,null,null,null,null,null,null,null,null,null,null,null,null,null,null,null,null,null,null,null,null,null,null,null,null,null,null,null,null,null,null,null,null,null,null,null,null,null,null,null,null,null,null,null,null,null,"　",null,null,null,null,{"$f":"IF(BM79=\"\",\"\",IF(BM79=\"有床診療所は、「病棟コード」の記入は不要になります。病院の場合のみご記入ください。\",\"\",\"●\"))","v":"●"},{"$f":"IF($BF$18=2,IF(AL78=\"\",\"\",\"有床診療所は、「病棟コード」の記入は不要になります。病院の場合のみご記入ください。\"),IF(COUNTA($AL$42:$BE$221)>0,IF(COUNTIF($AL$42:$BE$221,AL78)>1,\"同一の「病棟コード」が複数記載されています。１つの病棟単位に対して複数の「病棟コード」を付与、あるいは１つの「病棟コード」に対して複数の病棟単位が混在することのないようご留意ください。\",IF(AL78=\"\",\"\",IF(ISNUMBER(AL78*1),IF(OR(LEN(AL78)<>5,LEFT(AL78,1)*1<1,LEFT(AL78,1)*1>5,RIGHT(AL78,4)*1<1,RIGHT(AL78,4)*1>50),\"「病棟コード」が右欄の「１９０６」とあわせて９桁でないか、厚生労働省ホームページで公開されている病床機能報告用マスターファイルで指定されている病棟コードと異なります。正しい病棟コード（９桁）をご記入ください（ただし、休棟中等の場合、病棟コードの５桁目を「５」とすることは可とします）。\",\"\"),\"「病棟コード」が数値以外で記入されています。数値でご記入ください。\"))),\"病院は、「病棟コード」の記入が必須になります。貴院が病院の場合は必ずご記入ください。\"))","v":"病院は、「病棟コード」の記入が必須になります。貴院が病院の場合は必ずご記入ください。"}]
[]
[null,"病棟No.14",null,null,null,null,null,null,null,null,{"$f":"IF(AL81=\"\",\"\",IF(OR(LEFT(AL81,1)*1<1,LEFT(AL81,1)*1>5,RIGHT(AL81,4)*1<1,RIGHT(AL81,4)*1>50),\"該当コード無し\",IF(MID(AL81,1,1)*1=1,\"高度急性期機能\"&MID(AL81,4,2),IF(MID(AL81,1,1)*1=2,\"急性期機能病棟\"&MID(AL81,4,2),IF(MID(AL81,1,1)*1=3,\"回復期機能病棟\"&MID(AL81,4,2),IF(MID(AL81,1,1)*1=4,\"慢性期機能病棟\"&MID(AL81,4,2),IF(MID(AL81,1,1)*1=5,\"休棟中等\"&MID(AL81,4,2),\"該当コード無し\")))))))","v":""},null,null,null,null,null,null,null,null,null,null,null,null,null,null,null,null,null,"1  9  0  6"]
[null,null,null,null,null,null,null,null,null,null,null,null,null,null,null,null,null,null,null,null,null,null,null,null,null,null,null,null,null,null,null,null,null,null,null,null,null,null,null,null,null,null,null,null,null,null,null,null,null,null,null,null,null,null,null,null,null,null,"　",null,null,null,null,{"$f":"IF(BM82=\"\",\"\",IF(BM82=\"有床診療所は、「病棟コード」の記入は不要になります。病院の場合のみご記入ください。\",\"\",\"●\"))","v":"●"},{"$f":"IF($BF$18=2,IF(AL81=\"\",\"\",\"有床診療所は、「病棟コード」の記入は不要になります。病院の場合のみご記入ください。\"),IF(COUNTA($AL$42:$BE$221)>0,IF(COUNTIF($AL$42:$BE$221,AL81)>1,\"同一の「病棟コード」が複数記載されています。１つの病棟単位に対して複数の「病棟コード」を付与、あるいは１つの「病棟コード」に対して複数の病棟単位が混在することのないようご留意ください。\",IF(AL81=\"\",\"\",IF(ISNUMBER(AL81*1),IF(OR(LEN(AL81)<>5,LEFT(AL81,1)*1<1,LEFT(AL81,1)*1>5,RIGHT(AL81,4)*1<1,RIGHT(AL81,4)*1>50),\"「病棟コード」が右欄の「１９０６」とあわせて９桁でないか、厚生労働省ホームページで公開されている病床機能報告用マスターファイルで指定されている病棟コードと異なります。正しい病棟コード（９桁）をご記入ください（ただし、休棟中等の場合、病棟コードの５桁目を「５」とすることは可とします）。\",\"\"),\"「病棟コード」が数値以外で記入されています。数値でご記入ください。\"))),\"病院は、「病棟コード」の記入が必須になります。貴院が病院の場合は必ずご記入ください。\"))","v":"病院は、「病棟コード」の記入が必須になります。貴院が病院の場合は必ずご記入ください。"}]
[]
[null,"病棟No.15",null,null,null,null,null,null,null,null,{"$f":"IF(AL84=\"\",\"\",IF(OR(LEFT(AL84,1)*1<1,LEFT(AL84,1)*1>5,RIGHT(AL84,4)*1<1,RIGHT(AL84,4)*1>50),\"該当コード無し\",IF(MID(AL84,1,1)*1=1,\"高度急性期機能\"&MID(AL84,4,2),IF(MID(AL84,1,1)*1=2,\"急性期機能病棟\"&MID(AL84,4,2),IF(MID(AL84,1,1)*1=3,\"回復期機能病棟\"&MID(AL84,4,2),IF(MID(AL84,1,1)*1=4,\"慢性期機能病棟\"&MID(AL84,4,2),IF(MID(AL84,1,1)*1=5,\"休棟中等\"&MID(AL84,4,2),\"該当コード無し\")))))))","v":""},null,null,null,null,null,null,null,null,null,null,null,null,null,null,null,null,null,"1  9  0  6"]
[null,null,null,null,null,null,null,null,null,null,null,null,null,null,null,null,null,null,null,null,null,null,null,null,null,null,null,null,null,null,null,null,null,null,null,null,null,null,null,null,null,null,null,null,null,null,null,null,null,null,null,null,null,null,null,null,null,null,"　",null,null,null,null,{"$f":"IF(BM85=\"\",\"\",IF(BM85=\"有床診療所は、「病棟コード」の記入は不要になります。病院の場合のみご記入ください。\",\"\",\"●\"))","v":"●"},{"$f":"IF($BF$18=2,IF(AL84=\"\",\"\",\"有床診療所は、「病棟コード」の記入は不要になります。病院の場合のみご記入ください。\"),IF(COUNTA($AL$42:$BE$221)>0,IF(COUNTIF($AL$42:$BE$221,AL84)>1,\"同一の「病棟コード」が複数記載されています。１つの病棟単位に対して複数の「病棟コード」を付与、あるいは１つの「病棟コード」に対して複数の病棟単位が混在することのないようご留意ください。\",IF(AL84=\"\",\"\",IF(ISNUMBER(AL84*1),IF(OR(LEN(AL84)<>5,LEFT(AL84,1)*1<1,LEFT(AL84,1)*1>5,RIGHT(AL84,4)*1<1,RIGHT(AL84,4)*1>50),\"「病棟コード」が右欄の「１９０６」とあわせて９桁でないか、厚生労働省ホームページで公開されている病床機能報告用マスターファイルで指定されている病棟コードと異なります。正しい病棟コード（９桁）をご記入ください（ただし、休棟中等の場合、病棟コードの５桁目を「５」とすることは可とします）。\",\"\"),\"「病棟コード」が数値以外で記入されています。数値でご記入ください。\"))),\"病院は、「病棟コード」の記入が必須になります。貴院が病院の場合は必ずご記入ください。\"))","v":"病院は、「病棟コード」の記入が必須になります。貴院が病院の場合は必ずご記入ください。"}]
[]
[null,"病棟No.16",null,null,null,null,null,null,null,null,{"$f":"IF(AL87=\"\",\"\",IF(OR(LEFT(AL87,1)*1<1,LEFT(AL87,1)*1>5,RIGHT(AL87,4)*1<1,RIGHT(AL87,4)*1>50),\"該当コード無し\",IF(MID(AL87,1,1)*1=1,\"高度急性期機能\"&MID(AL87,4,2),IF(MID(AL87,1,1)*1=2,\"急性期機能病棟\"&MID(AL87,4,2),IF(MID(AL87,1,1)*1=3,\"回復期機能病棟\"&MID(AL87,4,2),IF(MID(AL87,1,1)*1=4,\"慢性期機能病棟\"&MID(AL87,4,2),IF(MID(AL87,1,1)*1=5,\"休棟中等\"&MID(AL87,4,2),\"該当コード無し\")))))))","v":""},null,null,null,null,null,null,null,null,null,null,null,null,null,null,null,null,null,"1  9  0  6"]
[null,null,null,null,null,null,null,null,null,null,null,null,null,null,null,null,null,null,null,null,null,null,null,null,null,null,null,null,null,null,null,null,null,null,null,null,null,null,null,null,null,null,null,null,null,null,null,null,null,null,null,null,null,null,null,null,null,null,"　",null,null,null,null,{"$f":"IF(BM88=\"\",\"\",IF(BM88=\"有床診療所は、「病棟コード」の記入は不要になります。病院の場合のみご記入ください。\",\"\",\"●\"))","v":"●"},{"$f":"IF($BF$18=2,IF(AL87=\"\",\"\",\"有床診療所は、「病棟コード」の記入は不要になります。病院の場合のみご記入ください。\"),IF(COUNTA($AL$42:$BE$221)>0,IF(COUNTIF($AL$42:$BE$221,AL87)>1,\"同一の「病棟コード」が複数記載されています。１つの病棟単位に対して複数の「病棟コード」を付与、あるいは１つの「病棟コード」に対して複数の病棟単位が混在することのないようご留意ください。\",IF(AL87=\"\",\"\",IF(ISNUMBER(AL87*1),IF(OR(LEN(AL87)<>5,LEFT(AL87,1)*1<1,LEFT(AL87,1)*1>5,RIGHT(AL87,4)*1<1,RIGHT(AL87,4)*1>50),\"「病棟コード」が右欄の「１９０６」とあわせて９桁でないか、厚生労働省ホームページで公開されている病床機能報告用マスターファイルで指定されている病棟コードと異なります。正しい病棟コード（９桁）をご記入ください（ただし、休棟中等の場合、病棟コードの５桁目を「５」とすることは可とします）。\",\"\"),\"「病棟コード」が数値以外で記入されています。数値でご記入ください。\"))),\"病院は、「病棟コード」の記入が必須になります。貴院が病院の場合は必ずご記入ください。\"))","v":"病院は、「病棟コード」の記入が必須になります。貴院が病院の場合は必ずご記入ください。"}]
[]
[null,"病棟No.17",null,null,null,null,null,null,null,null,{"$f":"IF(AL90=\"\",\"\",IF(OR(LEFT(AL90,1)*1<1,LEFT(AL90,1)*1>5,RIGHT(AL90,4)*1<1,RIGHT(AL90,4)*1>50),\"該当コード無し\",IF(MID(AL90,1,1)*1=1,\"高度急性期機能\"&MID(AL90,4,2),IF(MID(AL90,1,1)*1=2,\"急性期機能病棟\"&MID(AL90,4,2),IF(MID(AL90,1,1)*1=3,\"回復期機能病棟\"&MID(AL90,4,2),IF(MID(AL90,1,1)*1=4,\"慢性期機能病棟\"&MID(AL90,4,2),IF(MID(AL90,1,1)*1=5,\"休棟中等\"&MID(AL90,4,2),\"該当コード無し\")))))))","v":""},null,null,null,null,null,null,null,null,null,null,null,null,null,null,null,null,null,"1  9  0  6"]
[null,null,null,null,null,null,null,null,null,null,null,null,null,null,null,null,null,null,null,null,null,null,null,null,null,null,null,null,null,null,null,null,null,null,null,null,null,null,null,null,null,null,null,null,null,null,null,null,null,null,null,null,null,null,null,null,null,null,"　",null,null,null,null,{"$f":"IF(BM91=\"\",\"\",IF(BM91=\"有床診療所は、「病棟コード」の記入は不要になります。病院の場合のみご記入ください。\",\"\",\"●\"))","v":"●"},{"$f":"IF($BF$18=2,IF(AL90=\"\",\"\",\"有床診療所は、「病棟コード」の記入は不要になります。病院の場合のみご記入ください。\"),IF(COUNTA($AL$42:$BE$221)>0,IF(COUNTIF($AL$42:$BE$221,AL90)>1,\"同一の「病棟コード」が複数記載されています。１つの病棟単位に対して複数の「病棟コード」を付与、あるいは１つの「病棟コード」に対して複数の病棟単位が混在することのないようご留意ください。\",IF(AL90=\"\",\"\",IF(ISNUMBER(AL90*1),IF(OR(LEN(AL90)<>5,LEFT(AL90,1)*1<1,LEFT(AL90,1)*1>5,RIGHT(AL90,4)*1<1,RIGHT(AL90,4)*1>50),\"「病棟コード」が右欄の「１９０６」とあわせて９桁でないか、厚生労働省ホームページで公開されている病床機能報告用マスターファイルで指定されている病棟コードと異なります。正しい病棟コード（９桁）をご記入ください（ただし、休棟中等の場合、病棟コードの５桁目を「５」とすることは可とします）。\",\"\"),\"「病棟コード」が数値以外で記入されています。数値でご記入ください。\"))),\"病院は、「病棟コード」の記入が必須になります。貴院が病院の場合は必ずご記入ください。\"))","v":"病院は、「病棟コード」の記入が必須になります。貴院が病院の場合は必ずご記入ください。"}]
[]
[null,"病棟No.18",null,null,null,null,null,null,null,null,{"$f":"IF(AL93=\"\",\"\",IF(OR(LEFT(AL93,1)*1<1,LEFT(AL93,1)*1>5,RIGHT(AL93,4)*1<1,RIGHT(AL93,4)*1>50),\"該当コード無し\",IF(MID(AL93,1,1)*1=1,\"高度急性期機能\"&MID(AL93,4,2),IF(MID(AL93,1,1)*1=2,\"急性期機能病棟\"&MID(AL93,4,2),IF(MID(AL93,1,1)*1=3,\"回復期機能病棟\"&MID(AL93,4,2),IF(MID(AL93,1,1)*1=4,\"慢性期機能病棟\"&MID(AL93,4,2),IF(MID(AL93,1,1)*1=5,\"休棟中等\"&MID(AL93,4,2),\"該当コード無し\")))))))","v":""},null,null,null,null,null,null,null,null,null,null,null,null,null,null,null,null,null,"1  9  0  6"]
[null,null,null,null,null,null,null,null,null,null,null,null,null,null,null,null,null,null,null,null,null,null,null,null,null,null,null,null,null,null,null,null,null,null,null,null,null,null,null,null,null,null,null,null,null,null,null,null,null,null,null,null,null,null,null,null,null,null,"　",null,null,null,null,{"$f":"IF(BM94=\"\",\"\",IF(BM94=\"有床診療所は、「病棟コード」の記入は不要になります。病院の場合のみご記入ください。\",\"\",\"●\"))","v":"●"},{"$f":"IF($BF$18=2,IF(AL93=\"\",\"\",\"有床診療所は、「病棟コード」の記入は不要になります。病院の場合のみご記入ください。\"),IF(COUNTA($AL$42:$BE$221)>0,IF(COUNTIF($AL$42:$BE$221,AL93)>1,\"同一の「病棟コード」が複数記載されています。１つの病棟単位に対して複数の「病棟コード」を付与、あるいは１つの「病棟コード」に対して複数の病棟単位が混在することのないようご留意ください。\",IF(AL93=\"\",\"\",IF(ISNUMBER(AL93*1),IF(OR(LEN(AL93)<>5,LEFT(AL93,1)*1<1,LEFT(AL93,1)*1>5,RIGHT(AL93,4)*1<1,RIGHT(AL93,4)*1>50),\"「病棟コード」が右欄の「１９０６」とあわせて９桁でないか、厚生労働省ホームページで公開されている病床機能報告用マスターファイルで指定されている病棟コードと異なります。正しい病棟コード（９桁）をご記入ください（ただし、休棟中等の場合、病棟コードの５桁目を「５」とすることは可とします）。\",\"\"),\"「病棟コード」が数値以外で記入されています。数値でご記入ください。\"))),\"病院は、「病棟コード」の記入が必須になります。貴院が病院の場合は必ずご記入ください。\"))","v":"病院は、「病棟コード」の記入が必須になります。貴院が病院の場合は必ずご記入ください。"}]
[]
[null,"病棟No.19",null,null,null,null,null,null,null,null,{"$f":"IF(AL96=\"\",\"\",IF(OR(LEFT(AL96,1)*1<1,LEFT(AL96,1)*1>5,RIGHT(AL96,4)*1<1,RIGHT(AL96,4)*1>50),\"該当コード無し\",IF(MID(AL96,1,1)*1=1,\"高度急性期機能\"&MID(AL96,4,2),IF(MID(AL96,1,1)*1=2,\"急性期機能病棟\"&MID(AL96,4,2),IF(MID(AL96,1,1)*1=3,\"回復期機能病棟\"&MID(AL96,4,2),IF(MID(AL96,1,1)*1=4,\"慢性期機能病棟\"&MID(AL96,4,2),IF(MID(AL96,1,1)*1=5,\"休棟中等\"&MID(AL96,4,2),\"該当コード無し\")))))))","v":""},null,null,null,null,null,null,null,null,null,null,null,null,null,null,null,null,null,"1  9  0  6"]
[null,null,null,null,null,null,null,null,null,null,null,null,null,null,null,null,null,null,null,null,null,null,null,null,null,null,null,null,null,null,null,null,null,null,null,null,null,null,null,null,null,null,null,null,null,null,null,null,null,null,null,null,null,null,null,null,null,null,"　",null,null,null,null,{"$f":"IF(BM97=\"\",\"\",IF(BM97=\"有床診療所は、「病棟コード」の記入は不要になります。病院の場合のみご記入ください。\",\"\",\"●\"))","v":"●"},{"$f":"IF($BF$18=2,IF(AL96=\"\",\"\",\"有床診療所は、「病棟コード」の記入は不要になります。病院の場合のみご記入ください。\"),IF(COUNTA($AL$42:$BE$221)>0,IF(COUNTIF($AL$42:$BE$221,AL96)>1,\"同一の「病棟コード」が複数記載されています。１つの病棟単位に対して複数の「病棟コード」を付与、あるいは１つの「病棟コード」に対して複数の病棟単位が混在することのないようご留意ください。\",IF(AL96=\"\",\"\",IF(ISNUMBER(AL96*1),IF(OR(LEN(AL96)<>5,LEFT(AL96,1)*1<1,LEFT(AL96,1)*1>5,RIGHT(AL96,4)*1<1,RIGHT(AL96,4)*1>50),\"「病棟コード」が右欄の「１９０６」とあわせて９桁でないか、厚生労働省ホームページで公開されている病床機能報告用マスターファイルで指定されている病棟コードと異なります。正しい病棟コード（９桁）をご記入ください（ただし、休棟中等の場合、病棟コードの５桁目を「５」とすることは可とします）。\",\"\"),\"「病棟コード」が数値以外で記入されています。数値でご記入ください。\"))),\"病院は、「病棟コード」の記入が必須になります。貴院が病院の場合は必ずご記入ください。\"))","v":"病院は、「病棟コード」の記入が必須になります。貴院が病院の場合は必ずご記入ください。"}]
[]
[null,"病棟No.20",null,null,null,null,null,null,null,null,{"$f":"IF(AL99=\"\",\"\",IF(OR(LEFT(AL99,1)*1<1,LEFT(AL99,1)*1>5,RIGHT(AL99,4)*1<1,RIGHT(AL99,4)*1>50),\"該当コード無し\",IF(MID(AL99,1,1)*1=1,\"高度急性期機能\"&MID(AL99,4,2),IF(MID(AL99,1,1)*1=2,\"急性期機能病棟\"&MID(AL99,4,2),IF(MID(AL99,1,1)*1=3,\"回復期機能病棟\"&MID(AL99,4,2),IF(MID(AL99,1,1)*1=4,\"慢性期機能病棟\"&MID(AL99,4,2),IF(MID(AL99,1,1)*1=5,\"休棟中等\"&MID(AL99,4,2),\"該当コード無し\")))))))","v":""},null,null,null,null,null,null,null,null,null,null,null,null,null,null,null,null,null,"1  9  0  6"]
[null,null,null,null,null,null,null,null,null,null,null,null,null,null,null,null,null,null,null,null,null,null,null,null,null,null,null,null,null,null,null,null,null,null,null,null,null,null,null,null,null,null,null,null,null,null,null,null,null,null,null,null,null,null,null,null,null,null,"　",null,null,null,null,{"$f":"IF(BM100=\"\",\"\",IF(BM100=\"有床診療所は、「病棟コード」の記入は不要になります。病院の場合のみご記入ください。\",\"\",\"●\"))","v":"●"},{"$f":"IF($BF$18=2,IF(AL99=\"\",\"\",\"有床診療所は、「病棟コード」の記入は不要になります。病院の場合のみご記入ください。\"),IF(COUNTA($AL$42:$BE$221)>0,IF(COUNTIF($AL$42:$BE$221,AL99)>1,\"同一の「病棟コード」が複数記載されています。１つの病棟単位に対して複数の「病棟コード」を付与、あるいは１つの「病棟コード」に対して複数の病棟単位が混在することのないようご留意ください。\",IF(AL99=\"\",\"\",IF(ISNUMBER(AL99*1),IF(OR(LEN(AL99)<>5,LEFT(AL99,1)*1<1,LEFT(AL99,1)*1>5,RIGHT(AL99,4)*1<1,RIGHT(AL99,4)*1>50),\"「病棟コード」が右欄の「１９０６」とあわせて９桁でないか、厚生労働省ホームページで公開されている病床機能報告用マスターファイルで指定されている病棟コードと異なります。正しい病棟コード（９桁）をご記入ください（ただし、休棟中等の場合、病棟コードの５桁目を「５」とすることは可とします）。\",\"\"),\"「病棟コード」が数値以外で記入されています。数値でご記入ください。\"))),\"病院は、「病棟コード」の記入が必須になります。貴院が病院の場合は必ずご記入ください。\"))","v":"病院は、「病棟コード」の記入が必須になります。貴院が病院の場合は必ずご記入ください。"}]
[]
[null,"病棟No.21",null,null,null,null,null,null,null,null,{"$f":"IF(AL102=\"\",\"\",IF(OR(LEFT(AL102,1)*1<1,LEFT(AL102,1)*1>5,RIGHT(AL102,4)*1<1,RIGHT(AL102,4)*1>50),\"該当コード無し\",IF(MID(AL102,1,1)*1=1,\"高度急性期機能\"&MID(AL102,4,2),IF(MID(AL102,1,1)*1=2,\"急性期機能病棟\"&MID(AL102,4,2),IF(MID(AL102,1,1)*1=3,\"回復期機能病棟\"&MID(AL102,4,2),IF(MID(AL102,1,1)*1=4,\"慢性期機能病棟\"&MID(AL102,4,2),IF(MID(AL102,1,1)*1=5,\"休棟中等\"&MID(AL102,4,2),\"該当コード無し\")))))))","v":""},null,null,null,null,null,null,null,null,null,null,null,null,null,null,null,null,null,"1  9  0  6"]
[null,null,null,null,null,null,null,null,null,null,null,null,null,null,null,null,null,null,null,null,null,null,null,null,null,null,null,null,null,null,null,null,null,null,null,null,null,null,null,null,null,null,null,null,null,null,null,null,null,null,null,null,null,null,null,null,null,null,"　",null,null,null,null,{"$f":"IF(BM103=\"\",\"\",IF(BM103=\"有床診療所は、「病棟コード」の記入は不要になります。病院の場合のみご記入ください。\",\"\",\"●\"))","v":"●"},{"$f":"IF($BF$18=2,IF(AL102=\"\",\"\",\"有床診療所は、「病棟コード」の記入は不要になります。病院の場合のみご記入ください。\"),IF(COUNTA($AL$42:$BE$221)>0,IF(COUNTIF($AL$42:$BE$221,AL102)>1,\"同一の「病棟コード」が複数記載されています。１つの病棟単位に対して複数の「病棟コード」を付与、あるいは１つの「病棟コード」に対して複数の病棟単位が混在することのないようご留意ください。\",IF(AL102=\"\",\"\",IF(ISNUMBER(AL102*1),IF(OR(LEN(AL102)<>5,LEFT(AL102,1)*1<1,LEFT(AL102,1)*1>5,RIGHT(AL102,4)*1<1,RIGHT(AL102,4)*1>50),\"「病棟コード」が右欄の「１９０６」とあわせて９桁でないか、厚生労働省ホームページで公開されている病床機能報告用マスターファイルで指定されている病棟コードと異なります。正しい病棟コード（９桁）をご記入ください（ただし、休棟中等の場合、病棟コードの５桁目を「５」とすることは可とします）。\",\"\"),\"「病棟コード」が数値以外で記入されています。数値でご記入ください。\"))),\"病院は、「病棟コード」の記入が必須になります。貴院が病院の場合は必ずご記入ください。\"))","v":"病院は、「病棟コード」の記入が必須になります。貴院が病院の場合は必ずご記入ください。"}]
[]
[null,"病棟No.22",null,null,null,null,null,null,null,null,{"$f":"IF(AL105=\"\",\"\",IF(OR(LEFT(AL105,1)*1<1,LEFT(AL105,1)*1>5,RIGHT(AL105,4)*1<1,RIGHT(AL105,4)*1>50),\"該当コード無し\",IF(MID(AL105,1,1)*1=1,\"高度急性期機能\"&MID(AL105,4,2),IF(MID(AL105,1,1)*1=2,\"急性期機能病棟\"&MID(AL105,4,2),IF(MID(AL105,1,1)*1=3,\"回復期機能病棟\"&MID(AL105,4,2),IF(MID(AL105,1,1)*1=4,\"慢性期機能病棟\"&MID(AL105,4,2),IF(MID(AL105,1,1)*1=5,\"休棟中等\"&MID(AL105,4,2),\"該当コード無し\")))))))","v":""},null,null,null,null,null,null,null,null,null,null,null,null,null,null,null,null,null,"1  9  0  6"]
[null,null,null,null,null,null,null,null,null,null,null,null,null,null,null,null,null,null,null,null,null,null,null,null,null,null,null,null,null,null,null,null,null,null,null,null,null,null,null,null,null,null,null,null,null,null,null,null,null,null,null,null,null,null,null,null,null,null,"　",null,null,null,null,{"$f":"IF(BM106=\"\",\"\",IF(BM106=\"有床診療所は、「病棟コード」の記入は不要になります。病院の場合のみご記入ください。\",\"\",\"●\"))","v":"●"},{"$f":"IF($BF$18=2,IF(AL105=\"\",\"\",\"有床診療所は、「病棟コード」の記入は不要になります。病院の場合のみご記入ください。\"),IF(COUNTA($AL$42:$BE$221)>0,IF(COUNTIF($AL$42:$BE$221,AL105)>1,\"同一の「病棟コード」が複数記載されています。１つの病棟単位に対して複数の「病棟コード」を付与、あるいは１つの「病棟コード」に対して複数の病棟単位が混在することのないようご留意ください。\",IF(AL105=\"\",\"\",IF(ISNUMBER(AL105*1),IF(OR(LEN(AL105)<>5,LEFT(AL105,1)*1<1,LEFT(AL105,1)*1>5,RIGHT(AL105,4)*1<1,RIGHT(AL105,4)*1>50),\"「病棟コード」が右欄の「１９０６」とあわせて９桁でないか、厚生労働省ホームページで公開されている病床機能報告用マスターファイルで指定されている病棟コードと異なります。正しい病棟コード（９桁）をご記入ください（ただし、休棟中等の場合、病棟コードの５桁目を「５」とすることは可とします）。\",\"\"),\"「病棟コード」が数値以外で記入されています。数値でご記入ください。\"))),\"病院は、「病棟コード」の記入が必須になります。貴院が病院の場合は必ずご記入ください。\"))","v":"病院は、「病棟コード」の記入が必須になります。貴院が病院の場合は必ずご記入ください。"}]
[]
[null,"病棟No.23",null,null,null,null,null,null,null,null,{"$f":"IF(AL108=\"\",\"\",IF(OR(LEFT(AL108,1)*1<1,LEFT(AL108,1)*1>5,RIGHT(AL108,4)*1<1,RIGHT(AL108,4)*1>50),\"該当コード無し\",IF(MID(AL108,1,1)*1=1,\"高度急性期機能\"&MID(AL108,4,2),IF(MID(AL108,1,1)*1=2,\"急性期機能病棟\"&MID(AL108,4,2),IF(MID(AL108,1,1)*1=3,\"回復期機能病棟\"&MID(AL108,4,2),IF(MID(AL108,1,1)*1=4,\"慢性期機能病棟\"&MID(AL108,4,2),IF(MID(AL108,1,1)*1=5,\"休棟中等\"&MID(AL108,4,2),\"該当コード無し\")))))))","v":""},null,null,null,null,null,null,null,null,null,null,null,null,null,null,null,null,null,"1  9  0  6"]
[null,null,null,null,null,null,null,null,null,null,null,null,null,null,null,null,null,null,null,null,null,null,null,null,null,null,null,null,null,null,null,null,null,null,null,null,null,null,null,null,null,null,null,null,null,null,null,null,null,null,null,null,null,null,null,null,null,null,"　",null,null,null,null,{"$f":"IF(BM109=\"\",\"\",IF(BM109=\"有床診療所は、「病棟コード」の記入は不要になります。病院の場合のみご記入ください。\",\"\",\"●\"))","v":"●"},{"$f":"IF($BF$18=2,IF(AL108=\"\",\"\",\"有床診療所は、「病棟コード」の記入は不要になります。病院の場合のみご記入ください。\"),IF(COUNTA($AL$42:$BE$221)>0,IF(COUNTIF($AL$42:$BE$221,AL108)>1,\"同一の「病棟コード」が複数記載されています。１つの病棟単位に対して複数の「病棟コード」を付与、あるいは１つの「病棟コード」に対して複数の病棟単位が混在することのないようご留意ください。\",IF(AL108=\"\",\"\",IF(ISNUMBER(AL108*1),IF(OR(LEN(AL108)<>5,LEFT(AL108,1)*1<1,LEFT(AL108,1)*1>5,RIGHT(AL108,4)*1<1,RIGHT(AL108,4)*1>50),\"「病棟コード」が右欄の「１９０６」とあわせて９桁でないか、厚生労働省ホームページで公開されている病床機能報告用マスターファイルで指定されている病棟コードと異なります。正しい病棟コード（９桁）をご記入ください（ただし、休棟中等の場合、病棟コードの５桁目を「５」とすることは可とします）。\",\"\"),\"「病棟コード」が数値以外で記入されています。数値でご記入ください。\"))),\"病院は、「病棟コード」の記入が必須になります。貴院が病院の場合は必ずご記入ください。\"))","v":"病院は、「病棟コード」の記入が必須になります。貴院が病院の場合は必ずご記入ください。"}]
[]
[null,"病棟No.24",null,null,null,null,null,null,null,null,{"$f":"IF(AL111=\"\",\"\",IF(OR(LEFT(AL111,1)*1<1,LEFT(AL111,1)*1>5,RIGHT(AL111,4)*1<1,RIGHT(AL111,4)*1>50),\"該当コード無し\",IF(MID(AL111,1,1)*1=1,\"高度急性期機能\"&MID(AL111,4,2),IF(MID(AL111,1,1)*1=2,\"急性期機能病棟\"&MID(AL111,4,2),IF(MID(AL111,1,1)*1=3,\"回復期機能病棟\"&MID(AL111,4,2),IF(MID(AL111,1,1)*1=4,\"慢性期機能病棟\"&MID(AL111,4,2),IF(MID(AL111,1,1)*1=5,\"休棟中等\"&MID(AL111,4,2),\"該当コード無し\")))))))","v":""},null,null,null,null,null,null,null,null,null,null,null,null,null,null,null,null,null,"1  9  0  6"]
[null,null,null,null,null,null,null,null,null,null,null,null,null,null,null,null,null,null,null,null,null,null,null,null,null,null,null,null,null,null,null,null,null,null,null,null,null,null,null,null,null,null,null,null,null,null,null,null,null,null,null,null,null,null,null,null,null,null,"　",null,null,null,null,{"$f":"IF(BM112=\"\",\"\",IF(BM112=\"有床診療所は、「病棟コード」の記入は不要になります。病院の場合のみご記入ください。\",\"\",\"●\"))","v":"●"},{"$f":"IF($BF$18=2,IF(AL111=\"\",\"\",\"有床診療所は、「病棟コード」の記入は不要になります。病院の場合のみご記入ください。\"),IF(COUNTA($AL$42:$BE$221)>0,IF(COUNTIF($AL$42:$BE$221,AL111)>1,\"同一の「病棟コード」が複数記載されています。１つの病棟単位に対して複数の「病棟コード」を付与、あるいは１つの「病棟コード」に対して複数の病棟単位が混在することのないようご留意ください。\",IF(AL111=\"\",\"\",IF(ISNUMBER(AL111*1),IF(OR(LEN(AL111)<>5,LEFT(AL111,1)*1<1,LEFT(AL111,1)*1>5,RIGHT(AL111,4)*1<1,RIGHT(AL111,4)*1>50),\"「病棟コード」が右欄の「１９０６」とあわせて９桁でないか、厚生労働省ホームページで公開されている病床機能報告用マスターファイルで指定されている病棟コードと異なります。正しい病棟コード（９桁）をご記入ください（ただし、休棟中等の場合、病棟コードの５桁目を「５」とすることは可とします）。\",\"\"),\"「病棟コード」が数値以外で記入されています。数値でご記入ください。\"))),\"病院は、「病棟コード」の記入が必須になります。貴院が病院の場合は必ずご記入ください。\"))","v":"病院は、「病棟コード」の記入が必須になります。貴院が病院の場合は必ずご記入ください。"}]
[]
[null,"病棟No.25",null,null,null,null,null,null,null,null,{"$f":"IF(AL114=\"\",\"\",IF(OR(LEFT(AL114,1)*1<1,LEFT(AL114,1)*1>5,RIGHT(AL114,4)*1<1,RIGHT(AL114,4)*1>50),\"該当コード無し\",IF(MID(AL114,1,1)*1=1,\"高度急性期機能\"&MID(AL114,4,2),IF(MID(AL114,1,1)*1=2,\"急性期機能病棟\"&MID(AL114,4,2),IF(MID(AL114,1,1)*1=3,\"回復期機能病棟\"&MID(AL114,4,2),IF(MID(AL114,1,1)*1=4,\"慢性期機能病棟\"&MID(AL114,4,2),IF(MID(AL114,1,1)*1=5,\"休棟中等\"&MID(AL114,4,2),\"該当コード無し\")))))))","v":""},null,null,null,null,null,null,null,null,null,null,null,null,null,null,null,null,null,"1  9  0  6"]
[null,null,null,null,null,null,null,null,null,null,null,null,null,null,null,null,null,null,null,null,null,null,null,null,null,null,null,null,null,null,null,null,null,null,null,null,null,null,null,null,null,null,null,null,null,null,null,null,null,null,null,null,null,null,null,null,null,null,"　",null,null,null,null,{"$f":"IF(BM115=\"\",\"\",IF(BM115=\"有床診療所は、「病棟コード」の記入は不要になります。病院の場合のみご記入ください。\",\"\",\"●\"))","v":"●"},{"$f":"IF($BF$18=2,IF(AL114=\"\",\"\",\"有床診療所は、「病棟コード」の記入は不要になります。病院の場合のみご記入ください。\"),IF(COUNTA($AL$42:$BE$221)>0,IF(COUNTIF($AL$42:$BE$221,AL114)>1,\"同一の「病棟コード」が複数記載されています。１つの病棟単位に対して複数の「病棟コード」を付与、あるいは１つの「病棟コード」に対して複数の病棟単位が混在することのないようご留意ください。\",IF(AL114=\"\",\"\",IF(ISNUMBER(AL114*1),IF(OR(LEN(AL114)<>5,LEFT(AL114,1)*1<1,LEFT(AL114,1)*1>5,RIGHT(AL114,4)*1<1,RIGHT(AL114,4)*1>50),\"「病棟コード」が右欄の「１９０６」とあわせて９桁でないか、厚生労働省ホームページで公開されている病床機能報告用マスターファイルで指定されている病棟コードと異なります。正しい病棟コード（９桁）をご記入ください（ただし、休棟中等の場合、病棟コードの５桁目を「５」とすることは可とします）。\",\"\"),\"「病棟コード」が数値以外で記入されています。数値でご記入ください。\"))),\"病院は、「病棟コード」の記入が必須になります。貴院が病院の場合は必ずご記入ください。\"))","v":"病院は、「病棟コード」の記入が必須になります。貴院が病院の場合は必ずご記入ください。"}]
[]
[null,"病棟No.26",null,null,null,null,null,null,null,null,{"$f":"IF(AL117=\"\",\"\",IF(OR(LEFT(AL117,1)*1<1,LEFT(AL117,1)*1>5,RIGHT(AL117,4)*1<1,RIGHT(AL117,4)*1>50),\"該当コード無し\",IF(MID(AL117,1,1)*1=1,\"高度急性期機能\"&MID(AL117,4,2),IF(MID(AL117,1,1)*1=2,\"急性期機能病棟\"&MID(AL117,4,2),IF(MID(AL117,1,1)*1=3,\"回復期機能病棟\"&MID(AL117,4,2),IF(MID(AL117,1,1)*1=4,\"慢性期機能病棟\"&MID(AL117,4,2),IF(MID(AL117,1,1)*1=5,\"休棟中等\"&MID(AL117,4,2),\"該当コード無し\")))))))","v":""},null,null,null,null,null,null,null,null,null,null,null,null,null,null,null,null,null,"1  9  0  6"]
[null,null,null,null,null,null,null,null,null,null,null,null,null,null,null,null,null,null,null,null,null,null,null,null,null,null,null,null,null,null,null,null,null,null,null,null,null,null,null,null,null,null,null,null,null,null,null,null,null,null,null,null,null,null,null,null,null,null,"　",null,null,null,null,{"$f":"IF(BM118=\"\",\"\",IF(BM118=\"有床診療所は、「病棟コード」の記入は不要になります。病院の場合のみご記入ください。\",\"\",\"●\"))","v":"●"},{"$f":"IF($BF$18=2,IF(AL117=\"\",\"\",\"有床診療所は、「病棟コード」の記入は不要になります。病院の場合のみご記入ください。\"),IF(COUNTA($AL$42:$BE$221)>0,IF(COUNTIF($AL$42:$BE$221,AL117)>1,\"同一の「病棟コード」が複数記載されています。１つの病棟単位に対して複数の「病棟コード」を付与、あるいは１つの「病棟コード」に対して複数の病棟単位が混在することのないようご留意ください。\",IF(AL117=\"\",\"\",IF(ISNUMBER(AL117*1),IF(OR(LEN(AL117)<>5,LEFT(AL117,1)*1<1,LEFT(AL117,1)*1>5,RIGHT(AL117,4)*1<1,RIGHT(AL117,4)*1>50),\"「病棟コード」が右欄の「１９０６」とあわせて９桁でないか、厚生労働省ホームページで公開されている病床機能報告用マスターファイルで指定されている病棟コードと異なります。正しい病棟コード（９桁）をご記入ください（ただし、休棟中等の場合、病棟コードの５桁目を「５」とすることは可とします）。\",\"\"),\"「病棟コード」が数値以外で記入されています。数値でご記入ください。\"))),\"病院は、「病棟コード」の記入が必須になります。貴院が病院の場合は必ずご記入ください。\"))","v":"病院は、「病棟コード」の記入が必須になります。貴院が病院の場合は必ずご記入ください。"}]
[]
[null,"病棟No.27",null,null,null,null,null,null,null,null,{"$f":"IF(AL120=\"\",\"\",IF(OR(LEFT(AL120,1)*1<1,LEFT(AL120,1)*1>5,RIGHT(AL120,4)*1<1,RIGHT(AL120,4)*1>50),\"該当コード無し\",IF(MID(AL120,1,1)*1=1,\"高度急性期機能\"&MID(AL120,4,2),IF(MID(AL120,1,1)*1=2,\"急性期機能病棟\"&MID(AL120,4,2),IF(MID(AL120,1,1)*1=3,\"回復期機能病棟\"&MID(AL120,4,2),IF(MID(AL120,1,1)*1=4,\"慢性期機能病棟\"&MID(AL120,4,2),IF(MID(AL120,1,1)*1=5,\"休棟中等\"&MID(AL120,4,2),\"該当コード無し\")))))))","v":""},null,null,null,null,null,null,null,null,null,null,null,null,null,null,null,null,null,"1  9  0  6"]
[null,null,null,null,null,null,null,null,null,null,null,null,null,null,null,null,null,null,null,null,null,null,null,null,null,null,null,null,null,null,null,null,null,null,null,null,null,null,null,null,null,null,null,null,null,null,null,null,null,null,null,null,null,null,null,null,null,null,"　",null,null,null,null,{"$f":"IF(BM121=\"\",\"\",IF(BM121=\"有床診療所は、「病棟コード」の記入は不要になります。病院の場合のみご記入ください。\",\"\",\"●\"))","v":"●"},{"$f":"IF($BF$18=2,IF(AL120=\"\",\"\",\"有床診療所は、「病棟コード」の記入は不要になります。病院の場合のみご記入ください。\"),IF(COUNTA($AL$42:$BE$221)>0,IF(COUNTIF($AL$42:$BE$221,AL120)>1,\"同一の「病棟コード」が複数記載されています。１つの病棟単位に対して複数の「病棟コード」を付与、あるいは１つの「病棟コード」に対して複数の病棟単位が混在することのないようご留意ください。\",IF(AL120=\"\",\"\",IF(ISNUMBER(AL120*1),IF(OR(LEN(AL120)<>5,LEFT(AL120,1)*1<1,LEFT(AL120,1)*1>5,RIGHT(AL120,4)*1<1,RIGHT(AL120,4)*1>50),\"「病棟コード」が右欄の「１９０６」とあわせて９桁でないか、厚生労働省ホームページで公開されている病床機能報告用マスターファイルで指定されている病棟コードと異なります。正しい病棟コード（９桁）をご記入ください（ただし、休棟中等の場合、病棟コードの５桁目を「５」とすることは可とします）。\",\"\"),\"「病棟コード」が数値以外で記入されています。数値でご記入ください。\"))),\"病院は、「病棟コード」の記入が必須になります。貴院が病院の場合は必ずご記入ください。\"))","v":"病院は、「病棟コード」の記入が必須になります。貴院が病院の場合は必ずご記入ください。"}]
[]
[null,"病棟No.28",null,null,null,null,null,null,null,null,{"$f":"IF(AL123=\"\",\"\",IF(OR(LEFT(AL123,1)*1<1,LEFT(AL123,1)*1>5,RIGHT(AL123,4)*1<1,RIGHT(AL123,4)*1>50),\"該当コード無し\",IF(MID(AL123,1,1)*1=1,\"高度急性期機能\"&MID(AL123,4,2),IF(MID(AL123,1,1)*1=2,\"急性期機能病棟\"&MID(AL123,4,2),IF(MID(AL123,1,1)*1=3,\"回復期機能病棟\"&MID(AL123,4,2),IF(MID(AL123,1,1)*1=4,\"慢性期機能病棟\"&MID(AL123,4,2),IF(MID(AL123,1,1)*1=5,\"休棟中等\"&MID(AL123,4,2),\"該当コード無し\")))))))","v":""},null,null,null,null,null,null,null,null,null,null,null,null,null,null,null,null,null,"1  9  0  6"]
[null,null,null,null,null,null,null,null,null,null,null,null,null,null,null,null,null,null,null,null,null,null,null,null,null,null,null,null,null,null,null,null,null,null,null,null,null,null,null,null,null,null,null,null,null,null,null,null,null,null,null,null,null,null,null,null,null,null,"　",null,null,null,null,{"$f":"IF(BM124=\"\",\"\",IF(BM124=\"有床診療所は、「病棟コード」の記入は不要になります。病院の場合のみご記入ください。\",\"\",\"●\"))","v":"●"},{"$f":"IF($BF$18=2,IF(AL123=\"\",\"\",\"有床診療所は、「病棟コード」の記入は不要になります。病院の場合のみご記入ください。\"),IF(COUNTA($AL$42:$BE$221)>0,IF(COUNTIF($AL$42:$BE$221,AL123)>1,\"同一の「病棟コード」が複数記載されています。１つの病棟単位に対して複数の「病棟コード」を付与、あるいは１つの「病棟コード」に対して複数の病棟単位が混在することのないようご留意ください。\",IF(AL123=\"\",\"\",IF(ISNUMBER(AL123*1),IF(OR(LEN(AL123)<>5,LEFT(AL123,1)*1<1,LEFT(AL123,1)*1>5,RIGHT(AL123,4)*1<1,RIGHT(AL123,4)*1>50),\"「病棟コード」が右欄の「１９０６」とあわせて９桁でないか、厚生労働省ホームページで公開されている病床機能報告用マスターファイルで指定されている病棟コードと異なります。正しい病棟コード（９桁）をご記入ください（ただし、休棟中等の場合、病棟コードの５桁目を「５」とすることは可とします）。\",\"\"),\"「病棟コード」が数値以外で記入されています。数値でご記入ください。\"))),\"病院は、「病棟コード」の記入が必須になります。貴院が病院の場合は必ずご記入ください。\"))","v":"病院は、「病棟コード」の記入が必須になります。貴院が病院の場合は必ずご記入ください。"}]
[]
[null,"病棟No.29",null,null,null,null,null,null,null,null,{"$f":"IF(AL126=\"\",\"\",IF(OR(LEFT(AL126,1)*1<1,LEFT(AL126,1)*1>5,RIGHT(AL126,4)*1<1,RIGHT(AL126,4)*1>50),\"該当コード無し\",IF(MID(AL126,1,1)*1=1,\"高度急性期機能\"&MID(AL126,4,2),IF(MID(AL126,1,1)*1=2,\"急性期機能病棟\"&MID(AL126,4,2),IF(MID(AL126,1,1)*1=3,\"回復期機能病棟\"&MID(AL126,4,2),IF(MID(AL126,1,1)*1=4,\"慢性期機能病棟\"&MID(AL126,4,2),IF(MID(AL126,1,1)*1=5,\"休棟中等\"&MID(AL126,4,2),\"該当コード無し\")))))))","v":""},null,null,null,null,null,null,null,null,null,null,null,null,null,null,null,null,null,"1  9  0  6"]
[null,null,null,null,null,null,null,null,null,null,null,null,null,null,null,null,null,null,null,null,null,null,null,null,null,null,null,null,null,null,null,null,null,null,null,null,null,null,null,null,null,null,null,null,null,null,null,null,null,null,null,null,null,null,null,null,null,null,"　",null,null,null,null,{"$f":"IF(BM127=\"\",\"\",IF(BM127=\"有床診療所は、「病棟コード」の記入は不要になります。病院の場合のみご記入ください。\",\"\",\"●\"))","v":"●"},{"$f":"IF($BF$18=2,IF(AL126=\"\",\"\",\"有床診療所は、「病棟コード」の記入は不要になります。病院の場合のみご記入ください。\"),IF(COUNTA($AL$42:$BE$221)>0,IF(COUNTIF($AL$42:$BE$221,AL126)>1,\"同一の「病棟コード」が複数記載されています。１つの病棟単位に対して複数の「病棟コード」を付与、あるいは１つの「病棟コード」に対して複数の病棟単位が混在することのないようご留意ください。\",IF(AL126=\"\",\"\",IF(ISNUMBER(AL126*1),IF(OR(LEN(AL126)<>5,LEFT(AL126,1)*1<1,LEFT(AL126,1)*1>5,RIGHT(AL126,4)*1<1,RIGHT(AL126,4)*1>50),\"「病棟コード」が右欄の「１９０６」とあわせて９桁でないか、厚生労働省ホームページで公開されている病床機能報告用マスターファイルで指定されている病棟コードと異なります。正しい病棟コード（９桁）をご記入ください（ただし、休棟中等の場合、病棟コードの５桁目を「５」とすることは可とします）。\",\"\"),\"「病棟コード」が数値以外で記入されています。数値でご記入ください。\"))),\"病院は、「病棟コード」の記入が必須になります。貴院が病院の場合は必ずご記入ください。\"))","v":"病院は、「病棟コード」の記入が必須になります。貴院が病院の場合は必ずご記入ください。"}]
[]
[null,"病棟No.30",null,null,null,null,null,null,null,null,{"$f":"IF(AL129=\"\",\"\",IF(OR(LEFT(AL129,1)*1<1,LEFT(AL129,1)*1>5,RIGHT(AL129,4)*1<1,RIGHT(AL129,4)*1>50),\"該当コード無し\",IF(MID(AL129,1,1)*1=1,\"高度急性期機能\"&MID(AL129,4,2),IF(MID(AL129,1,1)*1=2,\"急性期機能病棟\"&MID(AL129,4,2),IF(MID(AL129,1,1)*1=3,\"回復期機能病棟\"&MID(AL129,4,2),IF(MID(AL129,1,1)*1=4,\"慢性期機能病棟\"&MID(AL129,4,2),IF(MID(AL129,1,1)*1=5,\"休棟中等\"&MID(AL129,4,2),\"該当コード無し\")))))))","v":""},null,null,null,null,null,null,null,null,null,null,null,null,null,null,null,null,null,"1  9  0  6"]
[null,null,null,null,null,null,null,null,null,null,null,null,null,null,null,null,null,null,null,null,null,null,null,null,null,null,null,null,null,null,null,null,null,null,null,null,null,null,null,null,null,null,null,null,null,null,null,null,null,null,null,null,null,null,null,null,null,null,"　",null,null,null,null,{"$f":"IF(BM130=\"\",\"\",IF(BM130=\"有床診療所は、「病棟コード」の記入は不要になります。病院の場合のみご記入ください。\",\"\",\"●\"))","v":"●"},{"$f":"IF($BF$18=2,IF(AL129=\"\",\"\",\"有床診療所は、「病棟コード」の記入は不要になります。病院の場合のみご記入ください。\"),IF(COUNTA($AL$42:$BE$221)>0,IF(COUNTIF($AL$42:$BE$221,AL129)>1,\"同一の「病棟コード」が複数記載されています。１つの病棟単位に対して複数の「病棟コード」を付与、あるいは１つの「病棟コード」に対して複数の病棟単位が混在することのないようご留意ください。\",IF(AL129=\"\",\"\",IF(ISNUMBER(AL129*1),IF(OR(LEN(AL129)<>5,LEFT(AL129,1)*1<1,LEFT(AL129,1)*1>5,RIGHT(AL129,4)*1<1,RIGHT(AL129,4)*1>50),\"「病棟コード」が右欄の「１９０６」とあわせて９桁でないか、厚生労働省ホームページで公開されている病床機能報告用マスターファイルで指定されている病棟コードと異なります。正しい病棟コード（９桁）をご記入ください（ただし、休棟中等の場合、病棟コードの５桁目を「５」とすることは可とします）。\",\"\"),\"「病棟コード」が数値以外で記入されています。数値でご記入ください。\"))),\"病院は、「病棟コード」の記入が必須になります。貴院が病院の場合は必ずご記入ください。\"))","v":"病院は、「病棟コード」の記入が必須になります。貴院が病院の場合は必ずご記入ください。"}]
[]
[null,"病棟No.31",null,null,null,null,null,null,null,null,{"$f":"IF(AL132=\"\",\"\",IF(OR(LEFT(AL132,1)*1<1,LEFT(AL132,1)*1>5,RIGHT(AL132,4)*1<1,RIGHT(AL132,4)*1>50),\"該当コード無し\",IF(MID(AL132,1,1)*1=1,\"高度急性期機能\"&MID(AL132,4,2),IF(MID(AL132,1,1)*1=2,\"急性期機能病棟\"&MID(AL132,4,2),IF(MID(AL132,1,1)*1=3,\"回復期機能病棟\"&MID(AL132,4,2),IF(MID(AL132,1,1)*1=4,\"慢性期機能病棟\"&MID(AL132,4,2),IF(MID(AL132,1,1)*1=5,\"休棟中等\"&MID(AL132,4,2),\"該当コード無し\")))))))","v":""},null,null,null,null,null,null,null,null,null,null,null,null,null,null,null,null,null,"1  9  0  6"]
[null,null,null,null,null,null,null,null,null,null,null,null,null,null,null,null,null,null,null,null,null,null,null,null,null,null,null,null,null,null,null,null,null,null,null,null,null,null,null,null,null,null,null,null,null,null,null,null,null,null,null,null,null,null,null,null,null,null,"　",null,null,null,null,{"$f":"IF(BM133=\"\",\"\",IF(BM133=\"有床診療所は、「病棟コード」の記入は不要になります。病院の場合のみご記入ください。\",\"\",\"●\"))","v":"●"},{"$f":"IF($BF$18=2,IF(AL132=\"\",\"\",\"有床診療所は、「病棟コード」の記入は不要になります。病院の場合のみご記入ください。\"),IF(COUNTA($AL$42:$BE$221)>0,IF(COUNTIF($AL$42:$BE$221,AL132)>1,\"同一の「病棟コード」が複数記載されています。１つの病棟単位に対して複数の「病棟コード」を付与、あるいは１つの「病棟コード」に対して複数の病棟単位が混在することのないようご留意ください。\",IF(AL132=\"\",\"\",IF(ISNUMBER(AL132*1),IF(OR(LEN(AL132)<>5,LEFT(AL132,1)*1<1,LEFT(AL132,1)*1>5,RIGHT(AL132,4)*1<1,RIGHT(AL132,4)*1>50),\"「病棟コード」が右欄の「１９０６」とあわせて９桁でないか、厚生労働省ホームページで公開されている病床機能報告用マスターファイルで指定されている病棟コードと異なります。正しい病棟コード（９桁）をご記入ください（ただし、休棟中等の場合、病棟コードの５桁目を「５」とすることは可とします）。\",\"\"),\"「病棟コード」が数値以外で記入されています。数値でご記入ください。\"))),\"病院は、「病棟コード」の記入が必須になります。貴院が病院の場合は必ずご記入ください。\"))","v":"病院は、「病棟コード」の記入が必須になります。貴院が病院の場合は必ずご記入ください。"}]
[]
[null,"病棟No.32",null,null,null,null,null,null,null,null,{"$f":"IF(AL135=\"\",\"\",IF(OR(LEFT(AL135,1)*1<1,LEFT(AL135,1)*1>5,RIGHT(AL135,4)*1<1,RIGHT(AL135,4)*1>50),\"該当コード無し\",IF(MID(AL135,1,1)*1=1,\"高度急性期機能\"&MID(AL135,4,2),IF(MID(AL135,1,1)*1=2,\"急性期機能病棟\"&MID(AL135,4,2),IF(MID(AL135,1,1)*1=3,\"回復期機能病棟\"&MID(AL135,4,2),IF(MID(AL135,1,1)*1=4,\"慢性期機能病棟\"&MID(AL135,4,2),IF(MID(AL135,1,1)*1=5,\"休棟中等\"&MID(AL135,4,2),\"該当コード無し\")))))))","v":""},null,null,null,null,null,null,null,null,null,null,null,null,null,null,null,null,null,"1  9  0  6"]
[null,null,null,null,null,null,null,null,null,null,null,null,null,null,null,null,null,null,null,null,null,null,null,null,null,null,null,null,null,null,null,null,null,null,null,null,null,null,null,null,null,null,null,null,null,null,null,null,null,null,null,null,null,null,null,null,null,null,"　",null,null,null,null,{"$f":"IF(BM136=\"\",\"\",IF(BM136=\"有床診療所は、「病棟コード」の記入は不要になります。病院の場合のみご記入ください。\",\"\",\"●\"))","v":"●"},{"$f":"IF($BF$18=2,IF(AL135=\"\",\"\",\"有床診療所は、「病棟コード」の記入は不要になります。病院の場合のみご記入ください。\"),IF(COUNTA($AL$42:$BE$221)>0,IF(COUNTIF($AL$42:$BE$221,AL135)>1,\"同一の「病棟コード」が複数記載されています。１つの病棟単位に対して複数の「病棟コード」を付与、あるいは１つの「病棟コード」に対して複数の病棟単位が混在することのないようご留意ください。\",IF(AL135=\"\",\"\",IF(ISNUMBER(AL135*1),IF(OR(LEN(AL135)<>5,LEFT(AL135,1)*1<1,LEFT(AL135,1)*1>5,RIGHT(AL135,4)*1<1,RIGHT(AL135,4)*1>50),\"「病棟コード」が右欄の「１９０６」とあわせて９桁でないか、厚生労働省ホームページで公開されている病床機能報告用マスターファイルで指定されている病棟コードと異なります。正しい病棟コード（９桁）をご記入ください（ただし、休棟中等の場合、病棟コードの５桁目を「５」とすることは可とします）。\",\"\"),\"「病棟コード」が数値以外で記入されています。数値でご記入ください。\"))),\"病院は、「病棟コード」の記入が必須になります。貴院が病院の場合は必ずご記入ください。\"))","v":"病院は、「病棟コード」の記入が必須になります。貴院が病院の場合は必ずご記入ください。"}]
[]
[null,"病棟No.33",null,null,null,null,null,null,null,null,{"$f":"IF(AL138=\"\",\"\",IF(OR(LEFT(AL138,1)*1<1,LEFT(AL138,1)*1>5,RIGHT(AL138,4)*1<1,RIGHT(AL138,4)*1>50),\"該当コード無し\",IF(MID(AL138,1,1)*1=1,\"高度急性期機能\"&MID(AL138,4,2),IF(MID(AL138,1,1)*1=2,\"急性期機能病棟\"&MID(AL138,4,2),IF(MID(AL138,1,1)*1=3,\"回復期機能病棟\"&MID(AL138,4,2),IF(MID(AL138,1,1)*1=4,\"慢性期機能病棟\"&MID(AL138,4,2),IF(MID(AL138,1,1)*1=5,\"休棟中等\"&MID(AL138,4,2),\"該当コード無し\")))))))","v":""},null,null,null,null,null,null,null,null,null,null,null,null,null,null,null,null,null,"1  9  0  6"]
[null,null,null,null,null,null,null,null,null,null,null,null,null,null,null,null,null,null,null,null,null,null,null,null,null,null,null,null,null,null,null,null,null,null,null,null,null,null,null,null,null,null,null,null,null,null,null,null,null,null,null,null,null,null,null,null,null,null,"　",null,null,null,null,{"$f":"IF(BM139=\"\",\"\",IF(BM139=\"有床診療所は、「病棟コード」の記入は不要になります。病院の場合のみご記入ください。\",\"\",\"●\"))","v":"●"},{"$f":"IF($BF$18=2,IF(AL138=\"\",\"\",\"有床診療所は、「病棟コード」の記入は不要になります。病院の場合のみご記入ください。\"),IF(COUNTA($AL$42:$BE$221)>0,IF(COUNTIF($AL$42:$BE$221,AL138)>1,\"同一の「病棟コード」が複数記載されています。１つの病棟単位に対して複数の「病棟コード」を付与、あるいは１つの「病棟コード」に対して複数の病棟単位が混在することのないようご留意ください。\",IF(AL138=\"\",\"\",IF(ISNUMBER(AL138*1),IF(OR(LEN(AL138)<>5,LEFT(AL138,1)*1<1,LEFT(AL138,1)*1>5,RIGHT(AL138,4)*1<1,RIGHT(AL138,4)*1>50),\"「病棟コード」が右欄の「１９０６」とあわせて９桁でないか、厚生労働省ホームページで公開されている病床機能報告用マスターファイルで指定されている病棟コードと異なります。正しい病棟コード（９桁）をご記入ください（ただし、休棟中等の場合、病棟コードの５桁目を「５」とすることは可とします）。\",\"\"),\"「病棟コード」が数値以外で記入されています。数値でご記入ください。\"))),\"病院は、「病棟コード」の記入が必須になります。貴院が病院の場合は必ずご記入ください。\"))","v":"病院は、「病棟コード」の記入が必須になります。貴院が病院の場合は必ずご記入ください。"}]
[]
[null,"病棟No.34",null,null,null,null,null,null,null,null,{"$f":"IF(AL141=\"\",\"\",IF(OR(LEFT(AL141,1)*1<1,LEFT(AL141,1)*1>5,RIGHT(AL141,4)*1<1,RIGHT(AL141,4)*1>50),\"該当コード無し\",IF(MID(AL141,1,1)*1=1,\"高度急性期機能\"&MID(AL141,4,2),IF(MID(AL141,1,1)*1=2,\"急性期機能病棟\"&MID(AL141,4,2),IF(MID(AL141,1,1)*1=3,\"回復期機能病棟\"&MID(AL141,4,2),IF(MID(AL141,1,1)*1=4,\"慢性期機能病棟\"&MID(AL141,4,2),IF(MID(AL141,1,1)*1=5,\"休棟中等\"&MID(AL141,4,2),\"該当コード無し\")))))))","v":""},null,null,null,null,null,null,null,null,null,null,null,null,null,null,null,null,null,"1  9  0  6"]
[null,null,null,null,null,null,null,null,null,null,null,null,null,null,null,null,null,null,null,null,null,null,null,null,null,null,null,null,null,null,null,null,null,null,null,null,null,null,null,null,null,null,null,null,null,null,null,null,null,null,null,null,null,null,null,null,null,null,"　",null,null,null,null,{"$f":"IF(BM142=\"\",\"\",IF(BM142=\"有床診療所は、「病棟コード」の記入は不要になります。病院の場合のみご記入ください。\",\"\",\"●\"))","v":"●"},{"$f":"IF($BF$18=2,IF(AL141=\"\",\"\",\"有床診療所は、「病棟コード」の記入は不要になります。病院の場合のみご記入ください。\"),IF(COUNTA($AL$42:$BE$221)>0,IF(COUNTIF($AL$42:$BE$221,AL141)>1,\"同一の「病棟コード」が複数記載されています。１つの病棟単位に対して複数の「病棟コード」を付与、あるいは１つの「病棟コード」に対して複数の病棟単位が混在することのないようご留意ください。\",IF(AL141=\"\",\"\",IF(ISNUMBER(AL141*1),IF(OR(LEN(AL141)<>5,LEFT(AL141,1)*1<1,LEFT(AL141,1)*1>5,RIGHT(AL141,4)*1<1,RIGHT(AL141,4)*1>50),\"「病棟コード」が右欄の「１９０６」とあわせて９桁でないか、厚生労働省ホームページで公開されている病床機能報告用マスターファイルで指定されている病棟コードと異なります。正しい病棟コード（９桁）をご記入ください（ただし、休棟中等の場合、病棟コードの５桁目を「５」とすることは可とします）。\",\"\"),\"「病棟コード」が数値以外で記入されています。数値でご記入ください。\"))),\"病院は、「病棟コード」の記入が必須になります。貴院が病院の場合は必ずご記入ください。\"))","v":"病院は、「病棟コード」の記入が必須になります。貴院が病院の場合は必ずご記入ください。"}]
[]
[null,"病棟No.35",null,null,null,null,null,null,null,null,{"$f":"IF(AL144=\"\",\"\",IF(OR(LEFT(AL144,1)*1<1,LEFT(AL144,1)*1>5,RIGHT(AL144,4)*1<1,RIGHT(AL144,4)*1>50),\"該当コード無し\",IF(MID(AL144,1,1)*1=1,\"高度急性期機能\"&MID(AL144,4,2),IF(MID(AL144,1,1)*1=2,\"急性期機能病棟\"&MID(AL144,4,2),IF(MID(AL144,1,1)*1=3,\"回復期機能病棟\"&MID(AL144,4,2),IF(MID(AL144,1,1)*1=4,\"慢性期機能病棟\"&MID(AL144,4,2),IF(MID(AL144,1,1)*1=5,\"休棟中等\"&MID(AL144,4,2),\"該当コード無し\")))))))","v":""},null,null,null,null,null,null,null,null,null,null,null,null,null,null,null,null,null,"1  9  0  6"]
[null,null,null,null,null,null,null,null,null,null,null,null,null,null,null,null,null,null,null,null,null,null,null,null,null,null,null,null,null,null,null,null,null,null,null,null,null,null,null,null,null,null,null,null,null,null,null,null,null,null,null,null,null,null,null,null,null,null,"　",null,null,null,null,{"$f":"IF(BM145=\"\",\"\",IF(BM145=\"有床診療所は、「病棟コード」の記入は不要になります。病院の場合のみご記入ください。\",\"\",\"●\"))","v":"●"},{"$f":"IF($BF$18=2,IF(AL144=\"\",\"\",\"有床診療所は、「病棟コード」の記入は不要になります。病院の場合のみご記入ください。\"),IF(COUNTA($AL$42:$BE$221)>0,IF(COUNTIF($AL$42:$BE$221,AL144)>1,\"同一の「病棟コード」が複数記載されています。１つの病棟単位に対して複数の「病棟コード」を付与、あるいは１つの「病棟コード」に対して複数の病棟単位が混在することのないようご留意ください。\",IF(AL144=\"\",\"\",IF(ISNUMBER(AL144*1),IF(OR(LEN(AL144)<>5,LEFT(AL144,1)*1<1,LEFT(AL144,1)*1>5,RIGHT(AL144,4)*1<1,RIGHT(AL144,4)*1>50),\"「病棟コード」が右欄の「１９０６」とあわせて９桁でないか、厚生労働省ホームページで公開されている病床機能報告用マスターファイルで指定されている病棟コードと異なります。正しい病棟コード（９桁）をご記入ください（ただし、休棟中等の場合、病棟コードの５桁目を「５」とすることは可とします）。\",\"\"),\"「病棟コード」が数値以外で記入されています。数値でご記入ください。\"))),\"病院は、「病棟コード」の記入が必須になります。貴院が病院の場合は必ずご記入ください。\"))","v":"病院は、「病棟コード」の記入が必須になります。貴院が病院の場合は必ずご記入ください。"}]
[]
[null,"病棟No.36",null,null,null,null,null,null,null,null,{"$f":"IF(AL147=\"\",\"\",IF(OR(LEFT(AL147,1)*1<1,LEFT(AL147,1)*1>5,RIGHT(AL147,4)*1<1,RIGHT(AL147,4)*1>50),\"該当コード無し\",IF(MID(AL147,1,1)*1=1,\"高度急性期機能\"&MID(AL147,4,2),IF(MID(AL147,1,1)*1=2,\"急性期機能病棟\"&MID(AL147,4,2),IF(MID(AL147,1,1)*1=3,\"回復期機能病棟\"&MID(AL147,4,2),IF(MID(AL147,1,1)*1=4,\"慢性期機能病棟\"&MID(AL147,4,2),IF(MID(AL147,1,1)*1=5,\"休棟中等\"&MID(AL147,4,2),\"該当コード無し\")))))))","v":""},null,null,null,null,null,null,null,null,null,null,null,null,null,null,null,null,null,"1  9  0  6"]
[null,null,null,null,null,null,null,null,null,null,null,null,null,null,null,null,null,null,null,null,null,null,null,null,null,null,null,null,null,null,null,null,null,null,null,null,null,null,null,null,null,null,null,null,null,null,null,null,null,null,null,null,null,null,null,null,null,null,"　",null,null,null,null,{"$f":"IF(BM148=\"\",\"\",IF(BM148=\"有床診療所は、「病棟コード」の記入は不要になります。病院の場合のみご記入ください。\",\"\",\"●\"))","v":"●"},{"$f":"IF($BF$18=2,IF(AL147=\"\",\"\",\"有床診療所は、「病棟コード」の記入は不要になります。病院の場合のみご記入ください。\"),IF(COUNTA($AL$42:$BE$221)>0,IF(COUNTIF($AL$42:$BE$221,AL147)>1,\"同一の「病棟コード」が複数記載されています。１つの病棟単位に対して複数の「病棟コード」を付与、あるいは１つの「病棟コード」に対して複数の病棟単位が混在することのないようご留意ください。\",IF(AL147=\"\",\"\",IF(ISNUMBER(AL147*1),IF(OR(LEN(AL147)<>5,LEFT(AL147,1)*1<1,LEFT(AL147,1)*1>5,RIGHT(AL147,4)*1<1,RIGHT(AL147,4)*1>50),\"「病棟コード」が右欄の「１９０６」とあわせて９桁でないか、厚生労働省ホームページで公開されている病床機能報告用マスターファイルで指定されている病棟コードと異なります。正しい病棟コード（９桁）をご記入ください（ただし、休棟中等の場合、病棟コードの５桁目を「５」とすることは可とします）。\",\"\"),\"「病棟コード」が数値以外で記入されています。数値でご記入ください。\"))),\"病院は、「病棟コード」の記入が必須になります。貴院が病院の場合は必ずご記入ください。\"))","v":"病院は、「病棟コード」の記入が必須になります。貴院が病院の場合は必ずご記入ください。"}]
[]
[null,"病棟No.37",null,null,null,null,null,null,null,null,{"$f":"IF(AL150=\"\",\"\",IF(OR(LEFT(AL150,1)*1<1,LEFT(AL150,1)*1>5,RIGHT(AL150,4)*1<1,RIGHT(AL150,4)*1>50),\"該当コード無し\",IF(MID(AL150,1,1)*1=1,\"高度急性期機能\"&MID(AL150,4,2),IF(MID(AL150,1,1)*1=2,\"急性期機能病棟\"&MID(AL150,4,2),IF(MID(AL150,1,1)*1=3,\"回復期機能病棟\"&MID(AL150,4,2),IF(MID(AL150,1,1)*1=4,\"慢性期機能病棟\"&MID(AL150,4,2),IF(MID(AL150,1,1)*1=5,\"休棟中等\"&MID(AL150,4,2),\"該当コード無し\")))))))","v":""},null,null,null,null,null,null,null,null,null,null,null,null,null,null,null,null,null,"1  9  0  6"]
[null,null,null,null,null,null,null,null,null,null,null,null,null,null,null,null,null,null,null,null,null,null,null,null,null,null,null,null,null,null,null,null,null,null,null,null,null,null,null,null,null,null,null,null,null,null,null,null,null,null,null,null,null,null,null,null,null,null,"　",null,null,null,null,{"$f":"IF(BM151=\"\",\"\",IF(BM151=\"有床診療所は、「病棟コード」の記入は不要になります。病院の場合のみご記入ください。\",\"\",\"●\"))","v":"●"},{"$f":"IF($BF$18=2,IF(AL150=\"\",\"\",\"有床診療所は、「病棟コード」の記入は不要になります。病院の場合のみご記入ください。\"),IF(COUNTA($AL$42:$BE$221)>0,IF(COUNTIF($AL$42:$BE$221,AL150)>1,\"同一の「病棟コード」が複数記載されています。１つの病棟単位に対して複数の「病棟コード」を付与、あるいは１つの「病棟コード」に対して複数の病棟単位が混在することのないようご留意ください。\",IF(AL150=\"\",\"\",IF(ISNUMBER(AL150*1),IF(OR(LEN(AL150)<>5,LEFT(AL150,1)*1<1,LEFT(AL150,1)*1>5,RIGHT(AL150,4)*1<1,RIGHT(AL150,4)*1>50),\"「病棟コード」が右欄の「１９０６」とあわせて９桁でないか、厚生労働省ホームページで公開されている病床機能報告用マスターファイルで指定されている病棟コードと異なります。正しい病棟コード（９桁）をご記入ください（ただし、休棟中等の場合、病棟コードの５桁目を「５」とすることは可とします）。\",\"\"),\"「病棟コード」が数値以外で記入されています。数値でご記入ください。\"))),\"病院は、「病棟コード」の記入が必須になります。貴院が病院の場合は必ずご記入ください。\"))","v":"病院は、「病棟コード」の記入が必須になります。貴院が病院の場合は必ずご記入ください。"}]
[]
[null,"病棟No.38",null,null,null,null,null,null,null,null,{"$f":"IF(AL153=\"\",\"\",IF(OR(LEFT(AL153,1)*1<1,LEFT(AL153,1)*1>5,RIGHT(AL153,4)*1<1,RIGHT(AL153,4)*1>50),\"該当コード無し\",IF(MID(AL153,1,1)*1=1,\"高度急性期機能\"&MID(AL153,4,2),IF(MID(AL153,1,1)*1=2,\"急性期機能病棟\"&MID(AL153,4,2),IF(MID(AL153,1,1)*1=3,\"回復期機能病棟\"&MID(AL153,4,2),IF(MID(AL153,1,1)*1=4,\"慢性期機能病棟\"&MID(AL153,4,2),IF(MID(AL153,1,1)*1=5,\"休棟中等\"&MID(AL153,4,2),\"該当コード無し\")))))))","v":""},null,null,null,null,null,null,null,null,null,null,null,null,null,null,null,null,null,"1  9  0  6"]
[null,null,null,null,null,null,null,null,null,null,null,null,null,null,null,null,null,null,null,null,null,null,null,null,null,null,null,null,null,null,null,null,null,null,null,null,null,null,null,null,null,null,null,null,null,null,null,null,null,null,null,null,null,null,null,null,null,null,"　",null,null,null,null,{"$f":"IF(BM154=\"\",\"\",IF(BM154=\"有床診療所は、「病棟コード」の記入は不要になります。病院の場合のみご記入ください。\",\"\",\"●\"))","v":"●"},{"$f":"IF($BF$18=2,IF(AL153=\"\",\"\",\"有床診療所は、「病棟コード」の記入は不要になります。病院の場合のみご記入ください。\"),IF(COUNTA($AL$42:$BE$221)>0,IF(COUNTIF($AL$42:$BE$221,AL153)>1,\"同一の「病棟コード」が複数記載されています。１つの病棟単位に対して複数の「病棟コード」を付与、あるいは１つの「病棟コード」に対して複数の病棟単位が混在することのないようご留意ください。\",IF(AL153=\"\",\"\",IF(ISNUMBER(AL153*1),IF(OR(LEN(AL153)<>5,LEFT(AL153,1)*1<1,LEFT(AL153,1)*1>5,RIGHT(AL153,4)*1<1,RIGHT(AL153,4)*1>50),\"「病棟コード」が右欄の「１９０６」とあわせて９桁でないか、厚生労働省ホームページで公開されている病床機能報告用マスターファイルで指定されている病棟コードと異なります。正しい病棟コード（９桁）をご記入ください（ただし、休棟中等の場合、病棟コードの５桁目を「５」とすることは可とします）。\",\"\"),\"「病棟コード」が数値以外で記入されています。数値でご記入ください。\"))),\"病院は、「病棟コード」の記入が必須になります。貴院が病院の場合は必ずご記入ください。\"))","v":"病院は、「病棟コード」の記入が必須になります。貴院が病院の場合は必ずご記入ください。"}]
[]
[null,"病棟No.39",null,null,null,null,null,null,null,null,{"$f":"IF(AL156=\"\",\"\",IF(OR(LEFT(AL156,1)*1<1,LEFT(AL156,1)*1>5,RIGHT(AL156,4)*1<1,RIGHT(AL156,4)*1>50),\"該当コード無し\",IF(MID(AL156,1,1)*1=1,\"高度急性期機能\"&MID(AL156,4,2),IF(MID(AL156,1,1)*1=2,\"急性期機能病棟\"&MID(AL156,4,2),IF(MID(AL156,1,1)*1=3,\"回復期機能病棟\"&MID(AL156,4,2),IF(MID(AL156,1,1)*1=4,\"慢性期機能病棟\"&MID(AL156,4,2),IF(MID(AL156,1,1)*1=5,\"休棟中等\"&MID(AL156,4,2),\"該当コード無し\")))))))","v":""},null,null,null,null,null,null,null,null,null,null,null,null,null,null,null,null,null,"1  9  0  6"]
[null,null,null,null,null,null,null,null,null,null,null,null,null,null,null,null,null,null,null,null,null,null,null,null,null,null,null,null,null,null,null,null,null,null,null,null,null,null,null,null,null,null,null,null,null,null,null,null,null,null,null,null,null,null,null,null,null,null,"　",null,null,null,null,{"$f":"IF(BM157=\"\",\"\",IF(BM157=\"有床診療所は、「病棟コード」の記入は不要になります。病院の場合のみご記入ください。\",\"\",\"●\"))","v":"●"},{"$f":"IF($BF$18=2,IF(AL156=\"\",\"\",\"有床診療所は、「病棟コード」の記入は不要になります。病院の場合のみご記入ください。\"),IF(COUNTA($AL$42:$BE$221)>0,IF(COUNTIF($AL$42:$BE$221,AL156)>1,\"同一の「病棟コード」が複数記載されています。１つの病棟単位に対して複数の「病棟コード」を付与、あるいは１つの「病棟コード」に対して複数の病棟単位が混在することのないようご留意ください。\",IF(AL156=\"\",\"\",IF(ISNUMBER(AL156*1),IF(OR(LEN(AL156)<>5,LEFT(AL156,1)*1<1,LEFT(AL156,1)*1>5,RIGHT(AL156,4)*1<1,RIGHT(AL156,4)*1>50),\"「病棟コード」が右欄の「１９０６」とあわせて９桁でないか、厚生労働省ホームページで公開されている病床機能報告用マスターファイルで指定されている病棟コードと異なります。正しい病棟コード（９桁）をご記入ください（ただし、休棟中等の場合、病棟コードの５桁目を「５」とすることは可とします）。\",\"\"),\"「病棟コード」が数値以外で記入されています。数値でご記入ください。\"))),\"病院は、「病棟コード」の記入が必須になります。貴院が病院の場合は必ずご記入ください。\"))","v":"病院は、「病棟コード」の記入が必須になります。貴院が病院の場合は必ずご記入ください。"}]
[]
[null,"病棟No.40",null,null,null,null,null,null,null,null,{"$f":"IF(AL159=\"\",\"\",IF(OR(LEFT(AL159,1)*1<1,LEFT(AL159,1)*1>5,RIGHT(AL159,4)*1<1,RIGHT(AL159,4)*1>50),\"該当コード無し\",IF(MID(AL159,1,1)*1=1,\"高度急性期機能\"&MID(AL159,4,2),IF(MID(AL159,1,1)*1=2,\"急性期機能病棟\"&MID(AL159,4,2),IF(MID(AL159,1,1)*1=3,\"回復期機能病棟\"&MID(AL159,4,2),IF(MID(AL159,1,1)*1=4,\"慢性期機能病棟\"&MID(AL159,4,2),IF(MID(AL159,1,1)*1=5,\"休棟中等\"&MID(AL159,4,2),\"該当コード無し\")))))))","v":""},null,null,null,null,null,null,null,null,null,null,null,null,null,null,null,null,null,"1  9  0  6"]
[null,null,null,null,null,null,null,null,null,null,null,null,null,null,null,null,null,null,null,null,null,null,null,null,null,null,null,null,null,null,null,null,null,null,null,null,null,null,null,null,null,null,null,null,null,null,null,null,null,null,null,null,null,null,null,null,null,null,"　",null,null,null,null,{"$f":"IF(BM160=\"\",\"\",IF(BM160=\"有床診療所は、「病棟コード」の記入は不要になります。病院の場合のみご記入ください。\",\"\",\"●\"))","v":"●"},{"$f":"IF($BF$18=2,IF(AL159=\"\",\"\",\"有床診療所は、「病棟コード」の記入は不要になります。病院の場合のみご記入ください。\"),IF(COUNTA($AL$42:$BE$221)>0,IF(COUNTIF($AL$42:$BE$221,AL159)>1,\"同一の「病棟コード」が複数記載されています。１つの病棟単位に対して複数の「病棟コード」を付与、あるいは１つの「病棟コード」に対して複数の病棟単位が混在することのないようご留意ください。\",IF(AL159=\"\",\"\",IF(ISNUMBER(AL159*1),IF(OR(LEN(AL159)<>5,LEFT(AL159,1)*1<1,LEFT(AL159,1)*1>5,RIGHT(AL159,4)*1<1,RIGHT(AL159,4)*1>50),\"「病棟コード」が右欄の「１９０６」とあわせて９桁でないか、厚生労働省ホームページで公開されている病床機能報告用マスターファイルで指定されている病棟コードと異なります。正しい病棟コード（９桁）をご記入ください（ただし、休棟中等の場合、病棟コードの５桁目を「５」とすることは可とします）。\",\"\"),\"「病棟コード」が数値以外で記入されています。数値でご記入ください。\"))),\"病院は、「病棟コード」の記入が必須になります。貴院が病院の場合は必ずご記入ください。\"))","v":"病院は、「病棟コード」の記入が必須になります。貴院が病院の場合は必ずご記入ください。"}]
[]
[null,"病棟No.41",null,null,null,null,null,null,null,null,{"$f":"IF(AL162=\"\",\"\",IF(OR(LEFT(AL162,1)*1<1,LEFT(AL162,1)*1>5,RIGHT(AL162,4)*1<1,RIGHT(AL162,4)*1>50),\"該当コード無し\",IF(MID(AL162,1,1)*1=1,\"高度急性期機能\"&MID(AL162,4,2),IF(MID(AL162,1,1)*1=2,\"急性期機能病棟\"&MID(AL162,4,2),IF(MID(AL162,1,1)*1=3,\"回復期機能病棟\"&MID(AL162,4,2),IF(MID(AL162,1,1)*1=4,\"慢性期機能病棟\"&MID(AL162,4,2),IF(MID(AL162,1,1)*1=5,\"休棟中等\"&MID(AL162,4,2),\"該当コード無し\")))))))","v":""},null,null,null,null,null,null,null,null,null,null,null,null,null,null,null,null,null,"1  9  0  6"]
[null,null,null,null,null,null,null,null,null,null,null,null,null,null,null,null,null,null,null,null,null,null,null,null,null,null,null,null,null,null,null,null,null,null,null,null,null,null,null,null,null,null,null,null,null,null,null,null,null,null,null,null,null,null,null,null,null,null,"　",null,null,null,null,{"$f":"IF(BM163=\"\",\"\",IF(BM163=\"有床診療所は、「病棟コード」の記入は不要になります。病院の場合のみご記入ください。\",\"\",\"●\"))","v":"●"},{"$f":"IF($BF$18=2,IF(AL162=\"\",\"\",\"有床診療所は、「病棟コード」の記入は不要になります。病院の場合のみご記入ください。\"),IF(COUNTA($AL$42:$BE$221)>0,IF(COUNTIF($AL$42:$BE$221,AL162)>1,\"同一の「病棟コード」が複数記載されています。１つの病棟単位に対して複数の「病棟コード」を付与、あるいは１つの「病棟コード」に対して複数の病棟単位が混在することのないようご留意ください。\",IF(AL162=\"\",\"\",IF(ISNUMBER(AL162*1),IF(OR(LEN(AL162)<>5,LEFT(AL162,1)*1<1,LEFT(AL162,1)*1>5,RIGHT(AL162,4)*1<1,RIGHT(AL162,4)*1>50),\"「病棟コード」が右欄の「１９０６」とあわせて９桁でないか、厚生労働省ホームページで公開されている病床機能報告用マスターファイルで指定されている病棟コードと異なります。正しい病棟コード（９桁）をご記入ください（ただし、休棟中等の場合、病棟コードの５桁目を「５」とすることは可とします）。\",\"\"),\"「病棟コード」が数値以外で記入されています。数値でご記入ください。\"))),\"病院は、「病棟コード」の記入が必須になります。貴院が病院の場合は必ずご記入ください。\"))","v":"病院は、「病棟コード」の記入が必須になります。貴院が病院の場合は必ずご記入ください。"}]
[]
[null,"病棟No.42",null,null,null,null,null,null,null,null,{"$f":"IF(AL165=\"\",\"\",IF(OR(LEFT(AL165,1)*1<1,LEFT(AL165,1)*1>5,RIGHT(AL165,4)*1<1,RIGHT(AL165,4)*1>50),\"該当コード無し\",IF(MID(AL165,1,1)*1=1,\"高度急性期機能\"&MID(AL165,4,2),IF(MID(AL165,1,1)*1=2,\"急性期機能病棟\"&MID(AL165,4,2),IF(MID(AL165,1,1)*1=3,\"回復期機能病棟\"&MID(AL165,4,2),IF(MID(AL165,1,1)*1=4,\"慢性期機能病棟\"&MID(AL165,4,2),IF(MID(AL165,1,1)*1=5,\"休棟中等\"&MID(AL165,4,2),\"該当コード無し\")))))))","v":""},null,null,null,null,null,null,null,null,null,null,null,null,null,null,null,null,null,"1  9  0  6"]
[null,null,null,null,null,null,null,null,null,null,null,null,null,null,null,null,null,null,null,null,null,null,null,null,null,null,null,null,null,null,null,null,null,null,null,null,null,null,null,null,null,null,null,null,null,null,null,null,null,null,null,null,null,null,null,null,null,null,"　",null,null,null,null,{"$f":"IF(BM166=\"\",\"\",IF(BM166=\"有床診療所は、「病棟コード」の記入は不要になります。病院の場合のみご記入ください。\",\"\",\"●\"))","v":"●"},{"$f":"IF($BF$18=2,IF(AL165=\"\",\"\",\"有床診療所は、「病棟コード」の記入は不要になります。病院の場合のみご記入ください。\"),IF(COUNTA($AL$42:$BE$221)>0,IF(COUNTIF($AL$42:$BE$221,AL165)>1,\"同一の「病棟コード」が複数記載されています。１つの病棟単位に対して複数の「病棟コード」を付与、あるいは１つの「病棟コード」に対して複数の病棟単位が混在することのないようご留意ください。\",IF(AL165=\"\",\"\",IF(ISNUMBER(AL165*1),IF(OR(LEN(AL165)<>5,LEFT(AL165,1)*1<1,LEFT(AL165,1)*1>5,RIGHT(AL165,4)*1<1,RIGHT(AL165,4)*1>50),\"「病棟コード」が右欄の「１９０６」とあわせて９桁でないか、厚生労働省ホームページで公開されている病床機能報告用マスターファイルで指定されている病棟コードと異なります。正しい病棟コード（９桁）をご記入ください（ただし、休棟中等の場合、病棟コードの５桁目を「５」とすることは可とします）。\",\"\"),\"「病棟コード」が数値以外で記入されています。数値でご記入ください。\"))),\"病院は、「病棟コード」の記入が必須になります。貴院が病院の場合は必ずご記入ください。\"))","v":"病院は、「病棟コード」の記入が必須になります。貴院が病院の場合は必ずご記入ください。"}]
[]
[null,"病棟No.43",null,null,null,null,null,null,null,null,{"$f":"IF(AL168=\"\",\"\",IF(OR(LEFT(AL168,1)*1<1,LEFT(AL168,1)*1>5,RIGHT(AL168,4)*1<1,RIGHT(AL168,4)*1>50),\"該当コード無し\",IF(MID(AL168,1,1)*1=1,\"高度急性期機能\"&MID(AL168,4,2),IF(MID(AL168,1,1)*1=2,\"急性期機能病棟\"&MID(AL168,4,2),IF(MID(AL168,1,1)*1=3,\"回復期機能病棟\"&MID(AL168,4,2),IF(MID(AL168,1,1)*1=4,\"慢性期機能病棟\"&MID(AL168,4,2),IF(MID(AL168,1,1)*1=5,\"休棟中等\"&MID(AL168,4,2),\"該当コード無し\")))))))","v":""},null,null,null,null,null,null,null,null,null,null,null,null,null,null,null,null,null,"1  9  0  6"]
[null,null,null,null,null,null,null,null,null,null,null,null,null,null,null,null,null,null,null,null,null,null,null,null,null,null,null,null,null,null,null,null,null,null,null,null,null,null,null,null,null,null,null,null,null,null,null,null,null,null,null,null,null,null,null,null,null,null,"　",null,null,null,null,{"$f":"IF(BM169=\"\",\"\",IF(BM169=\"有床診療所は、「病棟コード」の記入は不要になります。病院の場合のみご記入ください。\",\"\",\"●\"))","v":"●"},{"$f":"IF($BF$18=2,IF(AL168=\"\",\"\",\"有床診療所は、「病棟コード」の記入は不要になります。病院の場合のみご記入ください。\"),IF(COUNTA($AL$42:$BE$221)>0,IF(COUNTIF($AL$42:$BE$221,AL168)>1,\"同一の「病棟コード」が複数記載されています。１つの病棟単位に対して複数の「病棟コード」を付与、あるいは１つの「病棟コード」に対して複数の病棟単位が混在することのないようご留意ください。\",IF(AL168=\"\",\"\",IF(ISNUMBER(AL168*1),IF(OR(LEN(AL168)<>5,LEFT(AL168,1)*1<1,LEFT(AL168,1)*1>5,RIGHT(AL168,4)*1<1,RIGHT(AL168,4)*1>50),\"「病棟コード」が右欄の「１９０６」とあわせて９桁でないか、厚生労働省ホームページで公開されている病床機能報告用マスターファイルで指定されている病棟コードと異なります。正しい病棟コード（９桁）をご記入ください（ただし、休棟中等の場合、病棟コードの５桁目を「５」とすることは可とします）。\",\"\"),\"「病棟コード」が数値以外で記入されています。数値でご記入ください。\"))),\"病院は、「病棟コード」の記入が必須になります。貴院が病院の場合は必ずご記入ください。\"))","v":"病院は、「病棟コード」の記入が必須になります。貴院が病院の場合は必ずご記入ください。"}]
[]
[null,"病棟No.44",null,null,null,null,null,null,null,null,{"$f":"IF(AL171=\"\",\"\",IF(OR(LEFT(AL171,1)*1<1,LEFT(AL171,1)*1>5,RIGHT(AL171,4)*1<1,RIGHT(AL171,4)*1>50),\"該当コード無し\",IF(MID(AL171,1,1)*1=1,\"高度急性期機能\"&MID(AL171,4,2),IF(MID(AL171,1,1)*1=2,\"急性期機能病棟\"&MID(AL171,4,2),IF(MID(AL171,1,1)*1=3,\"回復期機能病棟\"&MID(AL171,4,2),IF(MID(AL171,1,1)*1=4,\"慢性期機能病棟\"&MID(AL171,4,2),IF(MID(AL171,1,1)*1=5,\"休棟中等\"&MID(AL171,4,2),\"該当コード無し\")))))))","v":""},null,null,null,null,null,null,null,null,null,null,null,null,null,null,null,null,null,"1  9  0  6"]
[null,null,null,null,null,null,null,null,null,null,null,null,null,null,null,null,null,null,null,null,null,null,null,null,null,null,null,null,null,null,null,null,null,null,null,null,null,null,null,null,null,null,null,null,null,null,null,null,null,null,null,null,null,null,null,null,null,null,"　",null,null,null,null,{"$f":"IF(BM172=\"\",\"\",IF(BM172=\"有床診療所は、「病棟コード」の記入は不要になります。病院の場合のみご記入ください。\",\"\",\"●\"))","v":"●"},{"$f":"IF($BF$18=2,IF(AL171=\"\",\"\",\"有床診療所は、「病棟コード」の記入は不要になります。病院の場合のみご記入ください。\"),IF(COUNTA($AL$42:$BE$221)>0,IF(COUNTIF($AL$42:$BE$221,AL171)>1,\"同一の「病棟コード」が複数記載されています。１つの病棟単位に対して複数の「病棟コード」を付与、あるいは１つの「病棟コード」に対して複数の病棟単位が混在することのないようご留意ください。\",IF(AL171=\"\",\"\",IF(ISNUMBER(AL171*1),IF(OR(LEN(AL171)<>5,LEFT(AL171,1)*1<1,LEFT(AL171,1)*1>5,RIGHT(AL171,4)*1<1,RIGHT(AL171,4)*1>50),\"「病棟コード」が右欄の「１９０６」とあわせて９桁でないか、厚生労働省ホームページで公開されている病床機能報告用マスターファイルで指定されている病棟コードと異なります。正しい病棟コード（９桁）をご記入ください（ただし、休棟中等の場合、病棟コードの５桁目を「５」とすることは可とします）。\",\"\"),\"「病棟コード」が数値以外で記入されています。数値でご記入ください。\"))),\"病院は、「病棟コード」の記入が必須になります。貴院が病院の場合は必ずご記入ください。\"))","v":"病院は、「病棟コード」の記入が必須になります。貴院が病院の場合は必ずご記入ください。"}]
[]
[null,"病棟No.45",null,null,null,null,null,null,null,null,{"$f":"IF(AL174=\"\",\"\",IF(OR(LEFT(AL174,1)*1<1,LEFT(AL174,1)*1>5,RIGHT(AL174,4)*1<1,RIGHT(AL174,4)*1>50),\"該当コード無し\",IF(MID(AL174,1,1)*1=1,\"高度急性期機能\"&MID(AL174,4,2),IF(MID(AL174,1,1)*1=2,\"急性期機能病棟\"&MID(AL174,4,2),IF(MID(AL174,1,1)*1=3,\"回復期機能病棟\"&MID(AL174,4,2),IF(MID(AL174,1,1)*1=4,\"慢性期機能病棟\"&MID(AL174,4,2),IF(MID(AL174,1,1)*1=5,\"休棟中等\"&MID(AL174,4,2),\"該当コード無し\")))))))","v":""},null,null,null,null,null,null,null,null,null,null,null,null,null,null,null,null,null,"1  9  0  6"]
[null,null,null,null,null,null,null,null,null,null,null,null,null,null,null,null,null,null,null,null,null,null,null,null,null,null,null,null,null,null,null,null,null,null,null,null,null,null,null,null,null,null,null,null,null,null,null,null,null,null,null,null,null,null,null,null,null,null,"　",null,null,null,null,{"$f":"IF(BM175=\"\",\"\",IF(BM175=\"有床診療所は、「病棟コード」の記入は不要になります。病院の場合のみご記入ください。\",\"\",\"●\"))","v":"●"},{"$f":"IF($BF$18=2,IF(AL174=\"\",\"\",\"有床診療所は、「病棟コード」の記入は不要になります。病院の場合のみご記入ください。\"),IF(COUNTA($AL$42:$BE$221)>0,IF(COUNTIF($AL$42:$BE$221,AL174)>1,\"同一の「病棟コード」が複数記載されています。１つの病棟単位に対して複数の「病棟コード」を付与、あるいは１つの「病棟コード」に対して複数の病棟単位が混在することのないようご留意ください。\",IF(AL174=\"\",\"\",IF(ISNUMBER(AL174*1),IF(OR(LEN(AL174)<>5,LEFT(AL174,1)*1<1,LEFT(AL174,1)*1>5,RIGHT(AL174,4)*1<1,RIGHT(AL174,4)*1>50),\"「病棟コード」が右欄の「１９０６」とあわせて９桁でないか、厚生労働省ホームページで公開されている病床機能報告用マスターファイルで指定されている病棟コードと異なります。正しい病棟コード（９桁）をご記入ください（ただし、休棟中等の場合、病棟コードの５桁目を「５」とすることは可とします）。\",\"\"),\"「病棟コード」が数値以外で記入されています。数値でご記入ください。\"))),\"病院は、「病棟コード」の記入が必須になります。貴院が病院の場合は必ずご記入ください。\"))","v":"病院は、「病棟コード」の記入が必須になります。貴院が病院の場合は必ずご記入ください。"}]
[]
[null,"病棟No.46",null,null,null,null,null,null,null,null,{"$f":"IF(AL177=\"\",\"\",IF(OR(LEFT(AL177,1)*1<1,LEFT(AL177,1)*1>5,RIGHT(AL177,4)*1<1,RIGHT(AL177,4)*1>50),\"該当コード無し\",IF(MID(AL177,1,1)*1=1,\"高度急性期機能\"&MID(AL177,4,2),IF(MID(AL177,1,1)*1=2,\"急性期機能病棟\"&MID(AL177,4,2),IF(MID(AL177,1,1)*1=3,\"回復期機能病棟\"&MID(AL177,4,2),IF(MID(AL177,1,1)*1=4,\"慢性期機能病棟\"&MID(AL177,4,2),IF(MID(AL177,1,1)*1=5,\"休棟中等\"&MID(AL177,4,2),\"該当コード無し\")))))))","v":""},null,null,null,null,null,null,null,null,null,null,null,null,null,null,null,null,null,"1  9  0  6"]
[null,null,null,null,null,null,null,null,null,null,null,null,null,null,null,null,null,null,null,null,null,null,null,null,null,null,null,null,null,null,null,null,null,null,null,null,null,null,null,null,null,null,null,null,null,null,null,null,null,null,null,null,null,null,null,null,null,null,"　",null,null,null,null,{"$f":"IF(BM178=\"\",\"\",IF(BM178=\"有床診療所は、「病棟コード」の記入は不要になります。病院の場合のみご記入ください。\",\"\",\"●\"))","v":"●"},{"$f":"IF($BF$18=2,IF(AL177=\"\",\"\",\"有床診療所は、「病棟コード」の記入は不要になります。病院の場合のみご記入ください。\"),IF(COUNTA($AL$42:$BE$221)>0,IF(COUNTIF($AL$42:$BE$221,AL177)>1,\"同一の「病棟コード」が複数記載されています。１つの病棟単位に対して複数の「病棟コード」を付与、あるいは１つの「病棟コード」に対して複数の病棟単位が混在することのないようご留意ください。\",IF(AL177=\"\",\"\",IF(ISNUMBER(AL177*1),IF(OR(LEN(AL177)<>5,LEFT(AL177,1)*1<1,LEFT(AL177,1)*1>5,RIGHT(AL177,4)*1<1,RIGHT(AL177,4)*1>50),\"「病棟コード」が右欄の「１９０６」とあわせて９桁でないか、厚生労働省ホームページで公開されている病床機能報告用マスターファイルで指定されている病棟コードと異なります。正しい病棟コード（９桁）をご記入ください（ただし、休棟中等の場合、病棟コードの５桁目を「５」とすることは可とします）。\",\"\"),\"「病棟コード」が数値以外で記入されています。数値でご記入ください。\"))),\"病院は、「病棟コード」の記入が必須になります。貴院が病院の場合は必ずご記入ください。\"))","v":"病院は、「病棟コード」の記入が必須になります。貴院が病院の場合は必ずご記入ください。"}]
[]
[null,"病棟No.47",null,null,null,null,null,null,null,null,{"$f":"IF(AL180=\"\",\"\",IF(OR(LEFT(AL180,1)*1<1,LEFT(AL180,1)*1>5,RIGHT(AL180,4)*1<1,RIGHT(AL180,4)*1>50),\"該当コード無し\",IF(MID(AL180,1,1)*1=1,\"高度急性期機能\"&MID(AL180,4,2),IF(MID(AL180,1,1)*1=2,\"急性期機能病棟\"&MID(AL180,4,2),IF(MID(AL180,1,1)*1=3,\"回復期機能病棟\"&MID(AL180,4,2),IF(MID(AL180,1,1)*1=4,\"慢性期機能病棟\"&MID(AL180,4,2),IF(MID(AL180,1,1)*1=5,\"休棟中等\"&MID(AL180,4,2),\"該当コード無し\")))))))","v":""},null,null,null,null,null,null,null,null,null,null,null,null,null,null,null,null,null,"1  9  0  6"]
[null,null,null,null,null,null,null,null,null,null,null,null,null,null,null,null,null,null,null,null,null,null,null,null,null,null,null,null,null,null,null,null,null,null,null,null,null,null,null,null,null,null,null,null,null,null,null,null,null,null,null,null,null,null,null,null,null,null,"　",null,null,null,null,{"$f":"IF(BM181=\"\",\"\",IF(BM181=\"有床診療所は、「病棟コード」の記入は不要になります。病院の場合のみご記入ください。\",\"\",\"●\"))","v":"●"},{"$f":"IF($BF$18=2,IF(AL180=\"\",\"\",\"有床診療所は、「病棟コード」の記入は不要になります。病院の場合のみご記入ください。\"),IF(COUNTA($AL$42:$BE$221)>0,IF(COUNTIF($AL$42:$BE$221,AL180)>1,\"同一の「病棟コード」が複数記載されています。１つの病棟単位に対して複数の「病棟コード」を付与、あるいは１つの「病棟コード」に対して複数の病棟単位が混在することのないようご留意ください。\",IF(AL180=\"\",\"\",IF(ISNUMBER(AL180*1),IF(OR(LEN(AL180)<>5,LEFT(AL180,1)*1<1,LEFT(AL180,1)*1>5,RIGHT(AL180,4)*1<1,RIGHT(AL180,4)*1>50),\"「病棟コード」が右欄の「１９０６」とあわせて９桁でないか、厚生労働省ホームページで公開されている病床機能報告用マスターファイルで指定されている病棟コードと異なります。正しい病棟コード（９桁）をご記入ください（ただし、休棟中等の場合、病棟コードの５桁目を「５」とすることは可とします）。\",\"\"),\"「病棟コード」が数値以外で記入されています。数値でご記入ください。\"))),\"病院は、「病棟コード」の記入が必須になります。貴院が病院の場合は必ずご記入ください。\"))","v":"病院は、「病棟コード」の記入が必須になります。貴院が病院の場合は必ずご記入ください。"}]
[]
[null,"病棟No.48",null,null,null,null,null,null,null,null,{"$f":"IF(AL183=\"\",\"\",IF(OR(LEFT(AL183,1)*1<1,LEFT(AL183,1)*1>5,RIGHT(AL183,4)*1<1,RIGHT(AL183,4)*1>50),\"該当コード無し\",IF(MID(AL183,1,1)*1=1,\"高度急性期機能\"&MID(AL183,4,2),IF(MID(AL183,1,1)*1=2,\"急性期機能病棟\"&MID(AL183,4,2),IF(MID(AL183,1,1)*1=3,\"回復期機能病棟\"&MID(AL183,4,2),IF(MID(AL183,1,1)*1=4,\"慢性期機能病棟\"&MID(AL183,4,2),IF(MID(AL183,1,1)*1=5,\"休棟中等\"&MID(AL183,4,2),\"該当コード無し\")))))))","v":""},null,null,null,null,null,null,null,null,null,null,null,null,null,null,null,null,null,"1  9  0  6"]
[null,null,null,null,null,null,null,null,null,null,null,null,null,null,null,null,null,null,null,null,null,null,null,null,null,null,null,null,null,null,null,null,null,null,null,null,null,null,null,null,null,null,null,null,null,null,null,null,null,null,null,null,null,null,null,null,null,null,"　",null,null,null,null,{"$f":"IF(BM184=\"\",\"\",IF(BM184=\"有床診療所は、「病棟コード」の記入は不要になります。病院の場合のみご記入ください。\",\"\",\"●\"))","v":"●"},{"$f":"IF($BF$18=2,IF(AL183=\"\",\"\",\"有床診療所は、「病棟コード」の記入は不要になります。病院の場合のみご記入ください。\"),IF(COUNTA($AL$42:$BE$221)>0,IF(COUNTIF($AL$42:$BE$221,AL183)>1,\"同一の「病棟コード」が複数記載されています。１つの病棟単位に対して複数の「病棟コード」を付与、あるいは１つの「病棟コード」に対して複数の病棟単位が混在することのないようご留意ください。\",IF(AL183=\"\",\"\",IF(ISNUMBER(AL183*1),IF(OR(LEN(AL183)<>5,LEFT(AL183,1)*1<1,LEFT(AL183,1)*1>5,RIGHT(AL183,4)*1<1,RIGHT(AL183,4)*1>50),\"「病棟コード」が右欄の「１９０６」とあわせて９桁でないか、厚生労働省ホームページで公開されている病床機能報告用マスターファイルで指定されている病棟コードと異なります。正しい病棟コード（９桁）をご記入ください（ただし、休棟中等の場合、病棟コードの５桁目を「５」とすることは可とします）。\",\"\"),\"「病棟コード」が数値以外で記入されています。数値でご記入ください。\"))),\"病院は、「病棟コード」の記入が必須になります。貴院が病院の場合は必ずご記入ください。\"))","v":"病院は、「病棟コード」の記入が必須になります。貴院が病院の場合は必ずご記入ください。"}]
[]
[null,"病棟No.49",null,null,null,null,null,null,null,null,{"$f":"IF(AL186=\"\",\"\",IF(OR(LEFT(AL186,1)*1<1,LEFT(AL186,1)*1>5,RIGHT(AL186,4)*1<1,RIGHT(AL186,4)*1>50),\"該当コード無し\",IF(MID(AL186,1,1)*1=1,\"高度急性期機能\"&MID(AL186,4,2),IF(MID(AL186,1,1)*1=2,\"急性期機能病棟\"&MID(AL186,4,2),IF(MID(AL186,1,1)*1=3,\"回復期機能病棟\"&MID(AL186,4,2),IF(MID(AL186,1,1)*1=4,\"慢性期機能病棟\"&MID(AL186,4,2),IF(MID(AL186,1,1)*1=5,\"休棟中等\"&MID(AL186,4,2),\"該当コード無し\")))))))","v":""},null,null,null,null,null,null,null,null,null,null,null,null,null,null,null,null,null,"1  9  0  6"]
[null,null,null,null,null,null,null,null,null,null,null,null,null,null,null,null,null,null,null,null,null,null,null,null,null,null,null,null,null,null,null,null,null,null,null,null,null,null,null,null,null,null,null,null,null,null,null,null,null,null,null,null,null,null,null,null,null,null,"　",null,null,null,null,{"$f":"IF(BM187=\"\",\"\",IF(BM187=\"有床診療所は、「病棟コード」の記入は不要になります。病院の場合のみご記入ください。\",\"\",\"●\"))","v":"●"},{"$f":"IF($BF$18=2,IF(AL186=\"\",\"\",\"有床診療所は、「病棟コード」の記入は不要になります。病院の場合のみご記入ください。\"),IF(COUNTA($AL$42:$BE$221)>0,IF(COUNTIF($AL$42:$BE$221,AL186)>1,\"同一の「病棟コード」が複数記載されています。１つの病棟単位に対して複数の「病棟コード」を付与、あるいは１つの「病棟コード」に対して複数の病棟単位が混在することのないようご留意ください。\",IF(AL186=\"\",\"\",IF(ISNUMBER(AL186*1),IF(OR(LEN(AL186)<>5,LEFT(AL186,1)*1<1,LEFT(AL186,1)*1>5,RIGHT(AL186,4)*1<1,RIGHT(AL186,4)*1>50),\"「病棟コード」が右欄の「１９０６」とあわせて９桁でないか、厚生労働省ホームページで公開されている病床機能報告用マスターファイルで指定されている病棟コードと異なります。正しい病棟コード（９桁）をご記入ください（ただし、休棟中等の場合、病棟コードの５桁目を「５」とすることは可とします）。\",\"\"),\"「病棟コード」が数値以外で記入されています。数値でご記入ください。\"))),\"病院は、「病棟コード」の記入が必須になります。貴院が病院の場合は必ずご記入ください。\"))","v":"病院は、「病棟コード」の記入が必須になります。貴院が病院の場合は必ずご記入ください。"}]
[]
[null,"病棟No.50",null,null,null,null,null,null,null,null,{"$f":"IF(AL189=\"\",\"\",IF(OR(LEFT(AL189,1)*1<1,LEFT(AL189,1)*1>5,RIGHT(AL189,4)*1<1,RIGHT(AL189,4)*1>50),\"該当コード無し\",IF(MID(AL189,1,1)*1=1,\"高度急性期機能\"&MID(AL189,4,2),IF(MID(AL189,1,1)*1=2,\"急性期機能病棟\"&MID(AL189,4,2),IF(MID(AL189,1,1)*1=3,\"回復期機能病棟\"&MID(AL189,4,2),IF(MID(AL189,1,1)*1=4,\"慢性期機能病棟\"&MID(AL189,4,2),IF(MID(AL189,1,1)*1=5,\"休棟中等\"&MID(AL189,4,2),\"該当コード無し\")))))))","v":""},null,null,null,null,null,null,null,null,null,null,null,null,null,null,null,null,null,"1  9  0  6"]
[null,null,null,null,null,null,null,null,null,null,null,null,null,null,null,null,null,null,null,null,null,null,null,null,null,null,null,null,null,null,null,null,null,null,null,null,null,null,null,null,null,null,null,null,null,null,null,null,null,null,null,null,null,null,null,null,null,null,"　",null,null,null,null,{"$f":"IF(BM190=\"\",\"\",IF(BM190=\"有床診療所は、「病棟コード」の記入は不要になります。病院の場合のみご記入ください。\",\"\",\"●\"))","v":"●"},{"$f":"IF($BF$18=2,IF(AL189=\"\",\"\",\"有床診療所は、「病棟コード」の記入は不要になります。病院の場合のみご記入ください。\"),IF(COUNTA($AL$42:$BE$221)>0,IF(COUNTIF($AL$42:$BE$221,AL189)>1,\"同一の「病棟コード」が複数記載されています。１つの病棟単位に対して複数の「病棟コード」を付与、あるいは１つの「病棟コード」に対して複数の病棟単位が混在することのないようご留意ください。\",IF(AL189=\"\",\"\",IF(ISNUMBER(AL189*1),IF(OR(LEN(AL189)<>5,LEFT(AL189,1)*1<1,LEFT(AL189,1)*1>5,RIGHT(AL189,4)*1<1,RIGHT(AL189,4)*1>50),\"「病棟コード」が右欄の「１９０６」とあわせて９桁でないか、厚生労働省ホームページで公開されている病床機能報告用マスターファイルで指定されている病棟コードと異なります。正しい病棟コード（９桁）をご記入ください（ただし、休棟中等の場合、病棟コードの５桁目を「５」とすることは可とします）。\",\"\"),\"「病棟コード」が数値以外で記入されています。数値でご記入ください。\"))),\"病院は、「病棟コード」の記入が必須になります。貴院が病院の場合は必ずご記入ください。\"))","v":"病院は、「病棟コード」の記入が必須になります。貴院が病院の場合は必ずご記入ください。"}]
[]
[null,"病棟No.51",null,null,null,null,null,null,null,null,{"$f":"IF(AL192=\"\",\"\",IF(OR(LEFT(AL192,1)*1<1,LEFT(AL192,1)*1>5,RIGHT(AL192,4)*1<1,RIGHT(AL192,4)*1>50),\"該当コード無し\",IF(MID(AL192,1,1)*1=1,\"高度急性期機能\"&MID(AL192,4,2),IF(MID(AL192,1,1)*1=2,\"急性期機能病棟\"&MID(AL192,4,2),IF(MID(AL192,1,1)*1=3,\"回復期機能病棟\"&MID(AL192,4,2),IF(MID(AL192,1,1)*1=4,\"慢性期機能病棟\"&MID(AL192,4,2),IF(MID(AL192,1,1)*1=5,\"休棟中等\"&MID(AL192,4,2),\"該当コード無し\")))))))","v":""},null,null,null,null,null,null,null,null,null,null,null,null,null,null,null,null,null,"1  9  0  6"]
[null,null,null,null,null,null,null,null,null,null,null,null,null,null,null,null,null,null,null,null,null,null,null,null,null,null,null,null,null,null,null,null,null,null,null,null,null,null,null,null,null,null,null,null,null,null,null,null,null,null,null,null,null,null,null,null,null,null,"　",null,null,null,null,{"$f":"IF(BM193=\"\",\"\",IF(BM193=\"有床診療所は、「病棟コード」の記入は不要になります。病院の場合のみご記入ください。\",\"\",\"●\"))","v":"●"},{"$f":"IF($BF$18=2,IF(AL192=\"\",\"\",\"有床診療所は、「病棟コード」の記入は不要になります。病院の場合のみご記入ください。\"),IF(COUNTA($AL$42:$BE$221)>0,IF(COUNTIF($AL$42:$BE$221,AL192)>1,\"同一の「病棟コード」が複数記載されています。１つの病棟単位に対して複数の「病棟コード」を付与、あるいは１つの「病棟コード」に対して複数の病棟単位が混在することのないようご留意ください。\",IF(AL192=\"\",\"\",IF(ISNUMBER(AL192*1),IF(OR(LEN(AL192)<>5,LEFT(AL192,1)*1<1,LEFT(AL192,1)*1>5,RIGHT(AL192,4)*1<1,RIGHT(AL192,4)*1>50),\"「病棟コード」が右欄の「１９０６」とあわせて９桁でないか、厚生労働省ホームページで公開されている病床機能報告用マスターファイルで指定されている病棟コードと異なります。正しい病棟コード（９桁）をご記入ください（ただし、休棟中等の場合、病棟コードの５桁目を「５」とすることは可とします）。\",\"\"),\"「病棟コード」が数値以外で記入されています。数値でご記入ください。\"))),\"病院は、「病棟コード」の記入が必須になります。貴院が病院の場合は必ずご記入ください。\"))","v":"病院は、「病棟コード」の記入が必須になります。貴院が病院の場合は必ずご記入ください。"}]
[]
[null,"病棟No.52",null,null,null,null,null,null,null,null,{"$f":"IF(AL195=\"\",\"\",IF(OR(LEFT(AL195,1)*1<1,LEFT(AL195,1)*1>5,RIGHT(AL195,4)*1<1,RIGHT(AL195,4)*1>50),\"該当コード無し\",IF(MID(AL195,1,1)*1=1,\"高度急性期機能\"&MID(AL195,4,2),IF(MID(AL195,1,1)*1=2,\"急性期機能病棟\"&MID(AL195,4,2),IF(MID(AL195,1,1)*1=3,\"回復期機能病棟\"&MID(AL195,4,2),IF(MID(AL195,1,1)*1=4,\"慢性期機能病棟\"&MID(AL195,4,2),IF(MID(AL195,1,1)*1=5,\"休棟中等\"&MID(AL195,4,2),\"該当コード無し\")))))))","v":""},null,null,null,null,null,null,null,null,null,null,null,null,null,null,null,null,null,"1  9  0  6"]
[null,null,null,null,null,null,null,null,null,null,null,null,null,null,null,null,null,null,null,null,null,null,null,null,null,null,null,null,null,null,null,null,null,null,null,null,null,null,null,null,null,null,null,null,null,null,null,null,null,null,null,null,null,null,null,null,null,null,"　",null,null,null,null,{"$f":"IF(BM196=\"\",\"\",IF(BM196=\"有床診療所は、「病棟コード」の記入は不要になります。病院の場合のみご記入ください。\",\"\",\"●\"))","v":"●"},{"$f":"IF($BF$18=2,IF(AL195=\"\",\"\",\"有床診療所は、「病棟コード」の記入は不要になります。病院の場合のみご記入ください。\"),IF(COUNTA($AL$42:$BE$221)>0,IF(COUNTIF($AL$42:$BE$221,AL195)>1,\"同一の「病棟コード」が複数記載されています。１つの病棟単位に対して複数の「病棟コード」を付与、あるいは１つの「病棟コード」に対して複数の病棟単位が混在することのないようご留意ください。\",IF(AL195=\"\",\"\",IF(ISNUMBER(AL195*1),IF(OR(LEN(AL195)<>5,LEFT(AL195,1)*1<1,LEFT(AL195,1)*1>5,RIGHT(AL195,4)*1<1,RIGHT(AL195,4)*1>50),\"「病棟コード」が右欄の「１９０６」とあわせて９桁でないか、厚生労働省ホームページで公開されている病床機能報告用マスターファイルで指定されている病棟コードと異なります。正しい病棟コード（９桁）をご記入ください（ただし、休棟中等の場合、病棟コードの５桁目を「５」とすることは可とします）。\",\"\"),\"「病棟コード」が数値以外で記入されています。数値でご記入ください。\"))),\"病院は、「病棟コード」の記入が必須になります。貴院が病院の場合は必ずご記入ください。\"))","v":"病院は、「病棟コード」の記入が必須になります。貴院が病院の場合は必ずご記入ください。"}]
[]
[null,"病棟No.53",null,null,null,null,null,null,null,null,{"$f":"IF(AL198=\"\",\"\",IF(OR(LEFT(AL198,1)*1<1,LEFT(AL198,1)*1>5,RIGHT(AL198,4)*1<1,RIGHT(AL198,4)*1>50),\"該当コード無し\",IF(MID(AL198,1,1)*1=1,\"高度急性期機能\"&MID(AL198,4,2),IF(MID(AL198,1,1)*1=2,\"急性期機能病棟\"&MID(AL198,4,2),IF(MID(AL198,1,1)*1=3,\"回復期機能病棟\"&MID(AL198,4,2),IF(MID(AL198,1,1)*1=4,\"慢性期機能病棟\"&MID(AL198,4,2),IF(MID(AL198,1,1)*1=5,\"休棟中等\"&MID(AL198,4,2),\"該当コード無し\")))))))","v":""},null,null,null,null,null,null,null,null,null,null,null,null,null,null,null,null,null,"1  9  0  6"]
[null,null,null,null,null,null,null,null,null,null,null,null,null,null,null,null,null,null,null,null,null,null,null,null,null,null,null,null,null,null,null,null,null,null,null,null,null,null,null,null,null,null,null,null,null,null,null,null,null,null,null,null,null,null,null,null,null,null,"　",null,null,null,null,{"$f":"IF(BM199=\"\",\"\",IF(BM199=\"有床診療所は、「病棟コード」の記入は不要になります。病院の場合のみご記入ください。\",\"\",\"●\"))","v":"●"},{"$f":"IF($BF$18=2,IF(AL198=\"\",\"\",\"有床診療所は、「病棟コード」の記入は不要になります。病院の場合のみご記入ください。\"),IF(COUNTA($AL$42:$BE$221)>0,IF(COUNTIF($AL$42:$BE$221,AL198)>1,\"同一の「病棟コード」が複数記載されています。１つの病棟単位に対して複数の「病棟コード」を付与、あるいは１つの「病棟コード」に対して複数の病棟単位が混在することのないようご留意ください。\",IF(AL198=\"\",\"\",IF(ISNUMBER(AL198*1),IF(OR(LEN(AL198)<>5,LEFT(AL198,1)*1<1,LEFT(AL198,1)*1>5,RIGHT(AL198,4)*1<1,RIGHT(AL198,4)*1>50),\"「病棟コード」が右欄の「１９０６」とあわせて９桁でないか、厚生労働省ホームページで公開されている病床機能報告用マスターファイルで指定されている病棟コードと異なります。正しい病棟コード（９桁）をご記入ください（ただし、休棟中等の場合、病棟コードの５桁目を「５」とすることは可とします）。\",\"\"),\"「病棟コード」が数値以外で記入されています。数値でご記入ください。\"))),\"病院は、「病棟コード」の記入が必須になります。貴院が病院の場合は必ずご記入ください。\"))","v":"病院は、「病棟コード」の記入が必須になります。貴院が病院の場合は必ずご記入ください。"}]
[]
[null,"病棟No.54",null,null,null,null,null,null,null,null,{"$f":"IF(AL201=\"\",\"\",IF(OR(LEFT(AL201,1)*1<1,LEFT(AL201,1)*1>5,RIGHT(AL201,4)*1<1,RIGHT(AL201,4)*1>50),\"該当コード無し\",IF(MID(AL201,1,1)*1=1,\"高度急性期機能\"&MID(AL201,4,2),IF(MID(AL201,1,1)*1=2,\"急性期機能病棟\"&MID(AL201,4,2),IF(MID(AL201,1,1)*1=3,\"回復期機能病棟\"&MID(AL201,4,2),IF(MID(AL201,1,1)*1=4,\"慢性期機能病棟\"&MID(AL201,4,2),IF(MID(AL201,1,1)*1=5,\"休棟中等\"&MID(AL201,4,2),\"該当コード無し\")))))))","v":""},null,null,null,null,null,null,null,null,null,null,null,null,null,null,null,null,null,"1  9  0  6"]
[null,null,null,null,null,null,null,null,null,null,null,null,null,null,null,null,null,null,null,null,null,null,null,null,null,null,null,null,null,null,null,null,null,null,null,null,null,null,null,null,null,null,null,null,null,null,null,null,null,null,null,null,null,null,null,null,null,null,"　",null,null,null,null,{"$f":"IF(BM202=\"\",\"\",IF(BM202=\"有床診療所は、「病棟コード」の記入は不要になります。病院の場合のみご記入ください。\",\"\",\"●\"))","v":"●"},{"$f":"IF($BF$18=2,IF(AL201=\"\",\"\",\"有床診療所は、「病棟コード」の記入は不要になります。病院の場合のみご記入ください。\"),IF(COUNTA($AL$42:$BE$221)>0,IF(COUNTIF($AL$42:$BE$221,AL201)>1,\"同一の「病棟コード」が複数記載されています。１つの病棟単位に対して複数の「病棟コード」を付与、あるいは１つの「病棟コード」に対して複数の病棟単位が混在することのないようご留意ください。\",IF(AL201=\"\",\"\",IF(ISNUMBER(AL201*1),IF(OR(LEN(AL201)<>5,LEFT(AL201,1)*1<1,LEFT(AL201,1)*1>5,RIGHT(AL201,4)*1<1,RIGHT(AL201,4)*1>50),\"「病棟コード」が右欄の「１９０６」とあわせて９桁でないか、厚生労働省ホームページで公開されている病床機能報告用マスターファイルで指定されている病棟コードと異なります。正しい病棟コード（９桁）をご記入ください（ただし、休棟中等の場合、病棟コードの５桁目を「５」とすることは可とします）。\",\"\"),\"「病棟コード」が数値以外で記入されています。数値でご記入ください。\"))),\"病院は、「病棟コード」の記入が必須になります。貴院が病院の場合は必ずご記入ください。\"))","v":"病院は、「病棟コード」の記入が必須になります。貴院が病院の場合は必ずご記入ください。"}]
[]
[null,"病棟No.55",null,null,null,null,null,null,null,null,{"$f":"IF(AL204=\"\",\"\",IF(OR(LEFT(AL204,1)*1<1,LEFT(AL204,1)*1>5,RIGHT(AL204,4)*1<1,RIGHT(AL204,4)*1>50),\"該当コード無し\",IF(MID(AL204,1,1)*1=1,\"高度急性期機能\"&MID(AL204,4,2),IF(MID(AL204,1,1)*1=2,\"急性期機能病棟\"&MID(AL204,4,2),IF(MID(AL204,1,1)*1=3,\"回復期機能病棟\"&MID(AL204,4,2),IF(MID(AL204,1,1)*1=4,\"慢性期機能病棟\"&MID(AL204,4,2),IF(MID(AL204,1,1)*1=5,\"休棟中等\"&MID(AL204,4,2),\"該当コード無し\")))))))","v":""},null,null,null,null,null,null,null,null,null,null,null,null,null,null,null,null,null,"1  9  0  6"]
[null,null,null,null,null,null,null,null,null,null,null,null,null,null,null,null,null,null,null,null,null,null,null,null,null,null,null,null,null,null,null,null,null,null,null,null,null,null,null,null,null,null,null,null,null,null,null,null,null,null,null,null,null,null,null,null,null,null,"　",null,null,null,null,{"$f":"IF(BM205=\"\",\"\",IF(BM205=\"有床診療所は、「病棟コード」の記入は不要になります。病院の場合のみご記入ください。\",\"\",\"●\"))","v":"●"},{"$f":"IF($BF$18=2,IF(AL204=\"\",\"\",\"有床診療所は、「病棟コード」の記入は不要になります。病院の場合のみご記入ください。\"),IF(COUNTA($AL$42:$BE$221)>0,IF(COUNTIF($AL$42:$BE$221,AL204)>1,\"同一の「病棟コード」が複数記載されています。１つの病棟単位に対して複数の「病棟コード」を付与、あるいは１つの「病棟コード」に対して複数の病棟単位が混在することのないようご留意ください。\",IF(AL204=\"\",\"\",IF(ISNUMBER(AL204*1),IF(OR(LEN(AL204)<>5,LEFT(AL204,1)*1<1,LEFT(AL204,1)*1>5,RIGHT(AL204,4)*1<1,RIGHT(AL204,4)*1>50),\"「病棟コード」が右欄の「１９０６」とあわせて９桁でないか、厚生労働省ホームページで公開されている病床機能報告用マスターファイルで指定されている病棟コードと異なります。正しい病棟コード（９桁）をご記入ください（ただし、休棟中等の場合、病棟コードの５桁目を「５」とすることは可とします）。\",\"\"),\"「病棟コード」が数値以外で記入されています。数値でご記入ください。\"))),\"病院は、「病棟コード」の記入が必須になります。貴院が病院の場合は必ずご記入ください。\"))","v":"病院は、「病棟コード」の記入が必須になります。貴院が病院の場合は必ずご記入ください。"}]
[]
[null,"病棟No.56",null,null,null,null,null,null,null,null,{"$f":"IF(AL207=\"\",\"\",IF(OR(LEFT(AL207,1)*1<1,LEFT(AL207,1)*1>5,RIGHT(AL207,4)*1<1,RIGHT(AL207,4)*1>50),\"該当コード無し\",IF(MID(AL207,1,1)*1=1,\"高度急性期機能\"&MID(AL207,4,2),IF(MID(AL207,1,1)*1=2,\"急性期機能病棟\"&MID(AL207,4,2),IF(MID(AL207,1,1)*1=3,\"回復期機能病棟\"&MID(AL207,4,2),IF(MID(AL207,1,1)*1=4,\"慢性期機能病棟\"&MID(AL207,4,2),IF(MID(AL207,1,1)*1=5,\"休棟中等\"&MID(AL207,4,2),\"該当コード無し\")))))))","v":""},null,null,null,null,null,null,null,null,null,null,null,null,null,null,null,null,null,"1  9  0  6"]
[null,null,null,null,null,null,null,null,null,null,null,null,null,null,null,null,null,null,null,null,null,null,null,null,null,null,null,null,null,null,null,null,null,null,null,null,null,null,null,null,null,null,null,null,null,null,null,null,null,null,null,null,null,null,null,null,null,null,"　",null,null,null,null,{"$f":"IF(BM208=\"\",\"\",IF(BM208=\"有床診療所は、「病棟コード」の記入は不要になります。病院の場合のみご記入ください。\",\"\",\"●\"))","v":"●"},{"$f":"IF($BF$18=2,IF(AL207=\"\",\"\",\"有床診療所は、「病棟コード」の記入は不要になります。病院の場合のみご記入ください。\"),IF(COUNTA($AL$42:$BE$221)>0,IF(COUNTIF($AL$42:$BE$221,AL207)>1,\"同一の「病棟コード」が複数記載されています。１つの病棟単位に対して複数の「病棟コード」を付与、あるいは１つの「病棟コード」に対して複数の病棟単位が混在することのないようご留意ください。\",IF(AL207=\"\",\"\",IF(ISNUMBER(AL207*1),IF(OR(LEN(AL207)<>5,LEFT(AL207,1)*1<1,LEFT(AL207,1)*1>5,RIGHT(AL207,4)*1<1,RIGHT(AL207,4)*1>50),\"「病棟コード」が右欄の「１９０６」とあわせて９桁でないか、厚生労働省ホームページで公開されている病床機能報告用マスターファイルで指定されている病棟コードと異なります。正しい病棟コード（９桁）をご記入ください（ただし、休棟中等の場合、病棟コードの５桁目を「５」とすることは可とします）。\",\"\"),\"「病棟コード」が数値以外で記入されています。数値でご記入ください。\"))),\"病院は、「病棟コード」の記入が必須になります。貴院が病院の場合は必ずご記入ください。\"))","v":"病院は、「病棟コード」の記入が必須になります。貴院が病院の場合は必ずご記入ください。"}]
[]
[null,"病棟No.57",null,null,null,null,null,null,null,null,{"$f":"IF(AL210=\"\",\"\",IF(OR(LEFT(AL210,1)*1<1,LEFT(AL210,1)*1>5,RIGHT(AL210,4)*1<1,RIGHT(AL210,4)*1>50),\"該当コード無し\",IF(MID(AL210,1,1)*1=1,\"高度急性期機能\"&MID(AL210,4,2),IF(MID(AL210,1,1)*1=2,\"急性期機能病棟\"&MID(AL210,4,2),IF(MID(AL210,1,1)*1=3,\"回復期機能病棟\"&MID(AL210,4,2),IF(MID(AL210,1,1)*1=4,\"慢性期機能病棟\"&MID(AL210,4,2),IF(MID(AL210,1,1)*1=5,\"休棟中等\"&MID(AL210,4,2),\"該当コード無し\")))))))","v":""},null,null,null,null,null,null,null,null,null,null,null,null,null,null,null,null,null,"1  9  0  6"]
[null,null,null,null,null,null,null,null,null,null,null,null,null,null,null,null,null,null,null,null,null,null,null,null,null,null,null,null,null,null,null,null,null,null,null,null,null,null,null,null,null,null,null,null,null,null,null,null,null,null,null,null,null,null,null,null,null,null,"　",null,null,null,null,{"$f":"IF(BM211=\"\",\"\",IF(BM211=\"有床診療所は、「病棟コード」の記入は不要になります。病院の場合のみご記入ください。\",\"\",\"●\"))","v":"●"},{"$f":"IF($BF$18=2,IF(AL210=\"\",\"\",\"有床診療所は、「病棟コード」の記入は不要になります。病院の場合のみご記入ください。\"),IF(COUNTA($AL$42:$BE$221)>0,IF(COUNTIF($AL$42:$BE$221,AL210)>1,\"同一の「病棟コード」が複数記載されています。１つの病棟単位に対して複数の「病棟コード」を付与、あるいは１つの「病棟コード」に対して複数の病棟単位が混在することのないようご留意ください。\",IF(AL210=\"\",\"\",IF(ISNUMBER(AL210*1),IF(OR(LEN(AL210)<>5,LEFT(AL210,1)*1<1,LEFT(AL210,1)*1>5,RIGHT(AL210,4)*1<1,RIGHT(AL210,4)*1>50),\"「病棟コード」が右欄の「１９０６」とあわせて９桁でないか、厚生労働省ホームページで公開されている病床機能報告用マスターファイルで指定されている病棟コードと異なります。正しい病棟コード（９桁）をご記入ください（ただし、休棟中等の場合、病棟コードの５桁目を「５」とすることは可とします）。\",\"\"),\"「病棟コード」が数値以外で記入されています。数値でご記入ください。\"))),\"病院は、「病棟コード」の記入が必須になります。貴院が病院の場合は必ずご記入ください。\"))","v":"病院は、「病棟コード」の記入が必須になります。貴院が病院の場合は必ずご記入ください。"}]
[]
[null,"病棟No.58",null,null,null,null,null,null,null,null,{"$f":"IF(AL213=\"\",\"\",IF(OR(LEFT(AL213,1)*1<1,LEFT(AL213,1)*1>5,RIGHT(AL213,4)*1<1,RIGHT(AL213,4)*1>50),\"該当コード無し\",IF(MID(AL213,1,1)*1=1,\"高度急性期機能\"&MID(AL213,4,2),IF(MID(AL213,1,1)*1=2,\"急性期機能病棟\"&MID(AL213,4,2),IF(MID(AL213,1,1)*1=3,\"回復期機能病棟\"&MID(AL213,4,2),IF(MID(AL213,1,1)*1=4,\"慢性期機能病棟\"&MID(AL213,4,2),IF(MID(AL213,1,1)*1=5,\"休棟中等\"&MID(AL213,4,2),\"該当コード無し\")))))))","v":""},null,null,null,null,null,null,null,null,null,null,null,null,null,null,null,null,null,"1  9  0  6"]
[null,null,null,null,null,null,null,null,null,null,null,null,null,null,null,null,null,null,null,null,null,null,null,null,null,null,null,null,null,null,null,null,null,null,null,null,null,null,null,null,null,null,null,null,null,null,null,null,null,null,null,null,null,null,null,null,null,null,"　",null,null,null,null,{"$f":"IF(BM214=\"\",\"\",IF(BM214=\"有床診療所は、「病棟コード」の記入は不要になります。病院の場合のみご記入ください。\",\"\",\"●\"))","v":"●"},{"$f":"IF($BF$18=2,IF(AL213=\"\",\"\",\"有床診療所は、「病棟コード」の記入は不要になります。病院の場合のみご記入ください。\"),IF(COUNTA($AL$42:$BE$221)>0,IF(COUNTIF($AL$42:$BE$221,AL213)>1,\"同一の「病棟コード」が複数記載されています。１つの病棟単位に対して複数の「病棟コード」を付与、あるいは１つの「病棟コード」に対して複数の病棟単位が混在することのないようご留意ください。\",IF(AL213=\"\",\"\",IF(ISNUMBER(AL213*1),IF(OR(LEN(AL213)<>5,LEFT(AL213,1)*1<1,LEFT(AL213,1)*1>5,RIGHT(AL213,4)*1<1,RIGHT(AL213,4)*1>50),\"「病棟コード」が右欄の「１９０６」とあわせて９桁でないか、厚生労働省ホームページで公開されている病床機能報告用マスターファイルで指定されている病棟コードと異なります。正しい病棟コード（９桁）をご記入ください（ただし、休棟中等の場合、病棟コードの５桁目を「５」とすることは可とします）。\",\"\"),\"「病棟コード」が数値以外で記入されています。数値でご記入ください。\"))),\"病院は、「病棟コード」の記入が必須になります。貴院が病院の場合は必ずご記入ください。\"))","v":"病院は、「病棟コード」の記入が必須になります。貴院が病院の場合は必ずご記入ください。"}]
[]
[null,"病棟No.59",null,null,null,null,null,null,null,null,{"$f":"IF(AL216=\"\",\"\",IF(OR(LEFT(AL216,1)*1<1,LEFT(AL216,1)*1>5,RIGHT(AL216,4)*1<1,RIGHT(AL216,4)*1>50),\"該当コード無し\",IF(MID(AL216,1,1)*1=1,\"高度急性期機能\"&MID(AL216,4,2),IF(MID(AL216,1,1)*1=2,\"急性期機能病棟\"&MID(AL216,4,2),IF(MID(AL216,1,1)*1=3,\"回復期機能病棟\"&MID(AL216,4,2),IF(MID(AL216,1,1)*1=4,\"慢性期機能病棟\"&MID(AL216,4,2),IF(MID(AL216,1,1)*1=5,\"休棟中等\"&MID(AL216,4,2),\"該当コード無し\")))))))","v":""},null,null,null,null,null,null,null,null,null,null,null,null,null,null,null,null,null,"1  9  0  6"]
[null,null,null,null,null,null,null,null,null,null,null,null,null,null,null,null,null,null,null,null,null,null,null,null,null,null,null,null,null,null,null,null,null,null,null,null,null,null,null,null,null,null,null,null,null,null,null,null,null,null,null,null,null,null,null,null,null,null,"　",null,null,null,null,{"$f":"IF(BM217=\"\",\"\",IF(BM217=\"有床診療所は、「病棟コード」の記入は不要になります。病院の場合のみご記入ください。\",\"\",\"●\"))","v":"●"},{"$f":"IF($BF$18=2,IF(AL216=\"\",\"\",\"有床診療所は、「病棟コード」の記入は不要になります。病院の場合のみご記入ください。\"),IF(COUNTA($AL$42:$BE$221)>0,IF(COUNTIF($AL$42:$BE$221,AL216)>1,\"同一の「病棟コード」が複数記載されています。１つの病棟単位に対して複数の「病棟コード」を付与、あるいは１つの「病棟コード」に対して複数の病棟単位が混在することのないようご留意ください。\",IF(AL216=\"\",\"\",IF(ISNUMBER(AL216*1),IF(OR(LEN(AL216)<>5,LEFT(AL216,1)*1<1,LEFT(AL216,1)*1>5,RIGHT(AL216,4)*1<1,RIGHT(AL216,4)*1>50),\"「病棟コード」が右欄の「１９０６」とあわせて９桁でないか、厚生労働省ホームページで公開されている病床機能報告用マスターファイルで指定されている病棟コードと異なります。正しい病棟コード（９桁）をご記入ください（ただし、休棟中等の場合、病棟コードの５桁目を「５」とすることは可とします）。\",\"\"),\"「病棟コード」が数値以外で記入されています。数値でご記入ください。\"))),\"病院は、「病棟コード」の記入が必須になります。貴院が病院の場合は必ずご記入ください。\"))","v":"病院は、「病棟コード」の記入が必須になります。貴院が病院の場合は必ずご記入ください。"}]
[]
[null,"病棟No.60",null,null,null,null,null,null,null,null,{"$f":"IF(AL219=\"\",\"\",IF(OR(LEFT(AL219,1)*1<1,LEFT(AL219,1)*1>5,RIGHT(AL219,4)*1<1,RIGHT(AL219,4)*1>50),\"該当コード無し\",IF(MID(AL219,1,1)*1=1,\"高度急性期機能\"&MID(AL219,4,2),IF(MID(AL219,1,1)*1=2,\"急性期機能病棟\"&MID(AL219,4,2),IF(MID(AL219,1,1)*1=3,\"回復期機能病棟\"&MID(AL219,4,2),IF(MID(AL219,1,1)*1=4,\"慢性期機能病棟\"&MID(AL219,4,2),IF(MID(AL219,1,1)*1=5,\"休棟中等\"&MID(AL219,4,2),\"該当コード無し\")))))))","v":""},null,null,null,null,null,null,null,null,null,null,null,null,null,null,null,null,null,"1  9  0  6"]
[null,null,null,null,null,null,null,null,null,null,null,null,null,null,null,null,null,null,null,null,null,null,null,null,null,null,null,null,null,null,null,null,null,null,null,null,null,null,null,null,null,null,null,null,null,null,null,null,null,null,null,null,null,null,null,null,null,null,"　",null,null,null,null,{"$f":"IF(BM220=\"\",\"\",IF(BM220=\"有床診療所は、「病棟コード」の記入は不要になります。病院の場合のみご記入ください。\",\"\",\"●\"))","v":"●"},{"$f":"IF($BF$18=2,IF(AL219=\"\",\"\",\"有床診療所は、「病棟コード」の記入は不要になります。病院の場合のみご記入ください。\"),IF(COUNTA($AL$42:$BE$221)>0,IF(COUNTIF($AL$42:$BE$221,AL219)>1,\"同一の「病棟コード」が複数記載されています。１つの病棟単位に対して複数の「病棟コード」を付与、あるいは１つの「病棟コード」に対して複数の病棟単位が混在することのないようご留意ください。\",IF(AL219=\"\",\"\",IF(ISNUMBER(AL219*1),IF(OR(LEN(AL219)<>5,LEFT(AL219,1)*1<1,LEFT(AL219,1)*1>5,RIGHT(AL219,4)*1<1,RIGHT(AL219,4)*1>50),\"「病棟コード」が右欄の「１９０６」とあわせて９桁でないか、厚生労働省ホームページで公開されている病床機能報告用マスターファイルで指定されている病棟コードと異なります。正しい病棟コード（９桁）をご記入ください（ただし、休棟中等の場合、病棟コードの５桁目を「５」とすることは可とします）。\",\"\"),\"「病棟コード」が数値以外で記入されています。数値でご記入ください。\"))),\"病院は、「病棟コード」の記入が必須になります。貴院が病院の場合は必ずご記入ください。\"))","v":"病院は、「病棟コード」の記入が必須になります。貴院が病院の場合は必ずご記入ください。"}]
[]
[]
[null,null,{"$f":"IF(COUNTIF($BL$3:$BL$221,\"●\")>0,\"未記入、もしくは記入内容の見直しが必要な欄があります。\",\"\")","v":"未記入、もしくは記入内容の見直しが必要な欄があります。"}]
[null,null,{"$f":"IF(COUNTIF($BL$3:$BL$221,\"●\")>0,\"報告様式の右側に表記されている内容をご確認ください。\",\"\")","v":"報告様式の右側に表記されている内容をご確認ください。"}]

{"sheet":"2B基本票Layout","index":2,"n_rows":199,"n_cols":9,"rows_kept":199,"cut":false,"hidden":true,"merged":[[2,2,2,4],[2,5,2,8]]}
["　","平成29年病床機能報告(2B基本票)"]
[null,"入力用ファイルレイアウト"]
["項目数",195,"入力情報",null,null,"出力情報"]
["No","項目名称","ﾀｲﾌﾟ","データ取得区分","列数","電子調査票セル位置","行","列","値"]
[1,"貴院名",null,1,10,"S4",4,19]
[2,"ＩＤ（報告マニュアル送付状に記載の８桁コード）","N",1,11,"S6",6,19]
[3,"医療機関住所―郵便番号",null,2,12,"W8,AH8",8,"23,34"]
[4,"医療機関住所―住所",null,1,13,"S9",9,19]
[5,"報告担当者―氏名",null,1,14,"S11",11,19]
[6,"報告担当者―部署名",null,1,15,"S12",12,19]
[7,"報告担当者―連絡先＿電話番号",null,3,16,"AE13,AK13,AU13",13,"31,37,47"]
[8,"報告担当者―連絡先＿FAX番号",null,3,17,"AE14,AK14,AU14",14,"31,37,47"]
[9,"報告担当者―連絡先＿e-mail",null,4,18,"AA15,AU15",15,"27,47"]
[10,"【平成29年７月１日時点】における病院・有床診療所の種別","N",1,19,"BF18",18,58]
[11,"都道府県番号・医療機関コード＿医科用＿都道府県番号",null,1,20,"W22",22,23]
[12,"都道府県番号・医療機関コード＿医科用＿医療機関コード","N",1,21,"AS22",22,45]
[13,"都道府県番号・医療機関コード＿歯科用＿都道府県番号",null,1,22,"W23",23,23]
[14,"都道府県番号・医療機関コード＿歯科用＿医療機関コード","N",1,23,"AS23",23,45]
[15,"報告様式２の全ての項目が「０」となる場合",null,1,24,"BD33",33,56]
[16,"病棟No＿病棟No.1",null,7,25,"AL42",42,38]
[17,"病棟No＿病棟No.2",null,7,26,"AL45",45,38]
[18,"病棟No＿病棟No.3",null,7,27,"AL48",48,38]
[19,"病棟No＿病棟No.4",null,7,28,"AL51",51,38]
[20,"病棟No＿病棟No.5",null,7,29,"AL54",54,38]
[21,"病棟No＿病棟No.6",null,7,30,"AL57",57,38]
[22,"病棟No＿病棟No.7",null,7,31,"AL60",60,38]
[23,"病棟No＿病棟No.8",null,7,32,"AL63",63,38]
[24,"病棟No＿病棟No.9",null,7,33,"AL66",66,38]
[25,"病棟No＿病棟No.10",null,7,34,"AL69",69,38]
[26,"病棟No＿病棟No.11",null,7,35,"AL72",72,38]
[27,"病棟No＿病棟No.12",null,7,36,"AL75",75,38]
[28,"病棟No＿病棟No.13",null,7,37,"AL78",78,38]
[29,"病棟No＿病棟No.14",null,7,38,"AL81",81,38]
[30,"病棟No＿病棟No.15",null,7,39,"AL84",84,38]
[31,"病棟No＿病棟No.16",null,7,40,"AL87",87,38]
[32,"病棟No＿病棟No.17",null,7,41,"AL90",90,38]
[33,"病棟No＿病棟No.18",null,7,42,"AL93",93,38]
[34,"病棟No＿病棟No.19",null,7,43,"AL96",96,38]
[35,"病棟No＿病棟No.20",null,7,44,"AL99",99,38]
[36,"病棟No＿病棟No.21",null,7,45,"AL102",102,38]
[37,"病棟No＿病棟No.22",null,7,46,"AL105",105,38]
[38,"病棟No＿病棟No.23",null,7,47,"AL108",108,38]
[39,"病棟No＿病棟No.24",null,7,48,"AL111",111,38]
[40,"病棟No＿病棟No.25",null,7,49,"AL114",114,38]
[41,"病棟No＿病棟No.26",null,7,50,"AL117",117,38]
[42,"病棟No＿病棟No.27",null,7,51,"AL120",120,38]
[43,"病棟No＿病棟No.28",null,7,52,"AL123",123,38]
[44,"病棟No＿病棟No.29",null,7,53,"AL126",126,38]
[45,"病棟No＿病棟No.30",null,7,54,"AL129",129,38]
[46,"病棟No＿病棟No.31",null,7,55,"AL132",132,38]
[47,"病棟No＿病棟No.32",null,7,56,"AL135",135,38]
[48,"病棟No＿病棟No.33",null,7,57,"AL138",138,38]
[49,"病棟No＿病棟No.34",null,7,58,"AL141",141,38]
[50,"病棟No＿病棟No.35",null,7,59,"AL144",144,38]
[51,"病棟No＿病棟No.36",null,7,60,"AL147",147,38]
[52,"病棟No＿病棟No.37",null,7,61,"AL150",150,38]
[53,"病棟No＿病棟No.38",null,7,62,"AL153",153,38]
[54,"病棟No＿病棟No.39",null,7,63,"AL156",156,38]
[55,"病棟No＿病棟No.40",null,7,64,"AL159",159,38]
[56,"病棟No＿病棟No.41",null,7,65,"AL162",162,38]
[57,"病棟No＿病棟No.42",null,7,66,"AL165",165,38]
[58,"病棟No＿病棟No.43",null,7,67,"AL168",168,38]
[59,"病棟No＿病棟No.44",null,7,68,"AL171",171,38]
[60,"病棟No＿病棟No.45",null,7,69,"AL174",174,38]
[61,"病棟No＿病棟No.46",null,7,70,"AL177",177,38]
[62,"病棟No＿病棟No.47",null,7,71,"AL180",180,38]
[63,"病棟No＿病棟No.48",null,7,72,"AL183",183,38]
[64,"病棟No＿病棟No.49",null,7,73,"AL186",186,38]
[65,"病棟No＿病棟No.50",null,7,74,"AL189",189,38]
[66,"病棟No＿病棟No.51",null,7,75,"AL192",192,38]
[67,"病棟No＿病棟No.52",null,7,76,"AL195",195,38]
[68,"病棟No＿病棟No.53",null,7,77,"AL198",198,38]
[69,"病棟No＿病棟No.54",null,7,78,"AL201",201,38]
[70,"病棟No＿病棟No.55",null,7,79,"AL204",204,38]
[71,"病棟No＿病棟No.56",null,7,80,"AL207",207,38]
[72,"病棟No＿病棟No.57",null,7,81,"AL210",210,38]
[73,"病棟No＿病棟No.58",null,7,82,"AL213",213,38]
[74,"病棟No＿病棟No.59",null,7,83,"AL216",216,38]
[75,"病棟No＿病棟No.60",null,7,84,"AL219",219,38]
[76,"報告様式２の全ての項目が「０」となる場合＿病棟No.1",null,1,85,"BG43",43,59]
[77,"報告様式２の全ての項目が「０」となる場合＿病棟No.2",null,1,86,"BG46",46,59]
[78,"報告様式２の全ての項目が「０」となる場合＿病棟No.3",null,1,87,"BG49",49,59]
[79,"報告様式２の全ての項目が「０」となる場合＿病棟No.4",null,1,88,"BG52",52,59]
[80,"報告様式２の全ての項目が「０」となる場合＿病棟No.5",null,1,89,"BG55",55,59]
[81,"報告様式２の全ての項目が「０」となる場合＿病棟No.6",null,1,90,"BG58",58,59]
[82,"報告様式２の全ての項目が「０」となる場合＿病棟No.7",null,1,91,"BG61",61,59]
[83,"報告様式２の全ての項目が「０」となる場合＿病棟No.8",null,1,92,"BG64",64,59]
[84,"報告様式２の全ての項目が「０」となる場合＿病棟No.9",null,1,93,"BG67",67,59]
[85,"報告様式２の全ての項目が「０」となる場合＿病棟No.10",null,1,94,"BG70",70,59]
[86,"報告様式２の全ての項目が「０」となる場合＿病棟No.11",null,1,95,"BG73",73,59]
[87,"報告様式２の全ての項目が「０」となる場合＿病棟No.12",null,1,96,"BG76",76,59]
[88,"報告様式２の全ての項目が「０」となる場合＿病棟No.13",null,1,97,"BG79",79,59]
[89,"報告様式２の全ての項目が「０」となる場合＿病棟No.14",null,1,98,"BG82",82,59]
[90,"報告様式２の全ての項目が「０」となる場合＿病棟No.15",null,1,99,"BG85",85,59]
[91,"報告様式２の全ての項目が「０」となる場合＿病棟No.16",null,1,100,"BG88",88,59]
[92,"報告様式２の全ての項目が「０」となる場合＿病棟No.17",null,1,101,"BG91",91,59]
[93,"報告様式２の全ての項目が「０」となる場合＿病棟No.18",null,1,102,"BG94",94,59]
[94,"報告様式２の全ての項目が「０」となる場合＿病棟No.19",null,1,103,"BG97",97,59]
[95,"報告様式２の全ての項目が「０」となる場合＿病棟No.20",null,1,104,"BG100",100,59]
[96,"報告様式２の全ての項目が「０」となる場合＿病棟No.21",null,1,105,"BG103",103,59]
[97,"報告様式２の全ての項目が「０」となる場合＿病棟No.22",null,1,106,"BG106",106,59]
[98,"報告様式２の全ての項目が「０」となる場合＿病棟No.23",null,1,107,"BG109",109,59]
[99,"報告様式２の全ての項目が「０」となる場合＿病棟No.24",null,1,108,"BG112",112,59]
[100,"報告様式２の全ての項目が「０」となる場合＿病棟No.25",null,1,109,"BG115",115,59]
[101,"報告様式２の全ての項目が「０」となる場合＿病棟No.26",null,1,110,"BG118",118,59]
[102,"報告様式２の全ての項目が「０」となる場合＿病棟No.27",null,1,111,"BG121",121,59]
[103,"報告様式２の全ての項目が「０」となる場合＿病棟No.28",null,1,112,"BG124",124,59]
[104,"報告様式２の全ての項目が「０」となる場合＿病棟No.29",null,1,113,"BG127",127,59]
[105,"報告様式２の全ての項目が「０」となる場合＿病棟No.30",null,1,114,"BG130",130,59]
[106,"報告様式２の全ての項目が「０」となる場合＿病棟No.31",null,1,115,"BG133",133,59]
[107,"報告様式２の全ての項目が「０」となる場合＿病棟No.32",null,1,116,"BG136",136,59]
[108,"報告様式２の全ての項目が「０」となる場合＿病棟No.33",null,1,117,"BG139",139,59]
[109,"報告様式２の全ての項目が「０」となる場合＿病棟No.34",null,1,118,"BG142",142,59]
[110,"報告様式２の全ての項目が「０」となる場合＿病棟No.35",null,1,119,"BG145",145,59]
[111,"報告様式２の全ての項目が「０」となる場合＿病棟No.36",null,1,120,"BG148",148,59]
[112,"報告様式２の全ての項目が「０」となる場合＿病棟No.37",null,1,121,"BG151",151,59]
[113,"報告様式２の全ての項目が「０」となる場合＿病棟No.38",null,1,122,"BG154",154,59]
[114,"報告様式２の全ての項目が「０」となる場合＿病棟No.39",null,1,123,"BG157",157,59]
[115,"報告様式２の全ての項目が「０」となる場合＿病棟No.40",null,1,124,"BG160",160,59]
[116,"報告様式２の全ての項目が「０」となる場合＿病棟No.41",null,1,125,"BG163",163,59]
[117,"報告様式２の全ての項目が「０」となる場合＿病棟No.42",null,1,126,"BG166",166,59]
[118,"報告様式２の全ての項目が「０」となる場合＿病棟No.43",null,1,127,"BG169",169,59]
[119,"報告様式２の全ての項目が「０」となる場合＿病棟No.44",null,1,128,"BG172",172,59]
[120,"報告様式２の全ての項目が「０」となる場合＿病棟No.45",null,1,129,"BG175",175,59]
[121,"報告様式２の全ての項目が「０」となる場合＿病棟No.46",null,1,130,"BG178",178,59]
[122,"報告様式２の全ての項目が「０」となる場合＿病棟No.47",null,1,131,"BG181",181,59]
[123,"報告様式２の全ての項目が「０」となる場合＿病棟No.48",null,1,132,"BG184",184,59]
[124,"報告様式２の全ての項目が「０」となる場合＿病棟No.49",null,1,133,"BG187",187,59]
[125,"報告様式２の全ての項目が「０」となる場合＿病棟No.50",null,1,134,"BG190",190,59]
[126,"報告様式２の全ての項目が「０」となる場合＿病棟No.51",null,1,135,"BG193",193,59]
[127,"報告様式２の全ての項目が「０」となる場合＿病棟No.52",null,1,136,"BG196",196,59]
[128,"報告様式２の全ての項目が「０」となる場合＿病棟No.53",null,1,137,"BG199",199,59]
[129,"報告様式２の全ての項目が「０」となる場合＿病棟No.54",null,1,138,"BG202",202,59]
[130,"報告様式２の全ての項目が「０」となる場合＿病棟No.55",null,1,139,"BG205",205,59]
[131,"報告様式２の全ての項目が「０」となる場合＿病棟No.56",null,1,140,"BG208",208,59]
[132,"報告様式２の全ての項目が「０」となる場合＿病棟No.57",null,1,141,"BG211",211,59]
[133,"報告様式２の全ての項目が「０」となる場合＿病棟No.58",null,1,142,"BG214",214,59]
[134,"報告様式２の全ての項目が「０」となる場合＿病棟No.59",null,1,143,"BG217",217,59]
[135,"報告様式２の全ての項目が「０」となる場合＿病棟No.60",null,1,144,"BG220",220,59]
[136,"報告様式２の全ての項目が「０」となる場合＿病棟No.1フラグ",null,0,145,"BK1",1,63]
[137,"報告様式２の全ての項目が「０」となる場合＿病棟No.2フラグ",null,0,146,"BK1",1,63]
[138,"報告様式２の全ての項目が「０」となる場合＿病棟No.3フラグ",null,0,147,"BK1",1,63]
[139,"報告様式２の全ての項目が「０」となる場合＿病棟No.4フラグ",null,0,148,"BK1",1,63]
[140,"報告様式２の全ての項目が「０」となる場合＿病棟No.5フラグ",null,0,149,"BK1",1,63]
[141,"報告様式２の全ての項目が「０」となる場合＿病棟No.6フラグ",null,0,150,"BK1",1,63]
[142,"報告様式２の全ての項目が「０」となる場合＿病棟No.7フラグ",null,0,151,"BK1",1,63]
[143,"報告様式２の全ての項目が「０」となる場合＿病棟No.8フラグ",null,0,152,"BK1",1,63]
[144,"報告様式２の全ての項目が「０」となる場合＿病棟No.9フラグ",null,0,153,"BK1",1,63]
[145,"報告様式２の全ての項目が「０」となる場合＿病棟No.10フラグ",null,0,154,"BK1",1,63]
[146,"報告様式２の全ての項目が「０」となる場合＿病棟No.11フラグ",null,0,155,"BK1",1,63]
[147,"報告様式２の全ての項目が「０」となる場合＿病棟No.12フラグ",null,0,156,"BK1",1,63]
[148,"報告様式２の全ての項目が「０」となる場合＿病棟No.13フラグ",null,0,157,"BK1",1,63]
[149,"報告様式２の全ての項目が「０」となる場合＿病棟No.14フラグ",null,0,158,"BK1",1,63]
[150,"報告様式２の全ての項目が「０」となる場合＿病棟No.15フラグ",null,0,159,"BK1",1,63]
[151,"報告様式２の全ての項目が「０」となる場合＿病棟No.16フラグ",null,0,160,"BK1",1,63]
[152,"報告様式２の全ての項目が「０」となる場合＿病棟No.17フラグ",null,0,161,"BK1",1,63]
[153,"報告様式２の全ての項目が「０」となる場合＿病棟No.18フラグ",null,0,162,"BK1",1,63]
[154,"報告様式２の全ての項目が「０」となる場合＿病棟No.19フラグ",null,0,163,"BK1",1,63]
[155,"報告様式２の全ての項目が「０」となる場合＿病棟No.20フラグ",null,0,164,"BK1",1,63]
[156,"報告様式２の全ての項目が「０」となる場合＿病棟No.21フラグ",null,0,165,"BK1",1,63]
[157,"報告様式２の全ての項目が「０」となる場合＿病棟No.22フラグ",null,0,166,"BK1",1,63]
[158,"報告様式２の全ての項目が「０」となる場合＿病棟No.23フラグ",null,0,167,"BK1",1,63]
[159,"報告様式２の全ての項目が「０」となる場合＿病棟No.24フラグ",null,0,168,"BK1",1,63]
[160,"報告様式２の全ての項目が「０」となる場合＿病棟No.25フラグ",null,0,169,"BK1",1,63]
[161,"報告様式２の全ての項目が「０」となる場合＿病棟No.26フラグ",null,0,170,"BK1",1,63]
[162,"報告様式２の全ての項目が「０」となる場合＿病棟No.27フラグ",null,0,171,"BK1",1,63]
[163,"報告様式２の全ての項目が「０」となる場合＿病棟No.28フラグ",null,0,172,"BK1",1,63]
[164,"報告様式２の全ての項目が「０」となる場合＿病棟No.29フラグ",null,0,173,"BK1",1,63]
[165,"報告様式２の全ての項目が「０」となる場合＿病棟No.30フラグ",null,0,174,"BK1",1,63]
[166,"報告様式２の全ての項目が「０」となる場合＿病棟No.31フラグ",null,0,175,"BK1",1,63]
[167,"報告様式２の全ての項目が「０」となる場合＿病棟No.32フラグ",null,0,176,"BK1",1,63]
[168,"報告様式２の全ての項目が「０」となる場合＿病棟No.33フラグ",null,0,177,"BK1",1,63]
[169,"報告様式２の全ての項目が「０」となる場合＿病棟No.34フラグ",null,0,178,"BK1",1,63]
[170,"報告様式２の全ての項目が「０」となる場合＿病棟No.35フラグ",null,0,179,"BK1",1,63]
[171,"報告様式２の全ての項目が「０」となる場合＿病棟No.36フラグ",null,0,180,"BK1",1,63]
[172,"報告様式２の全ての項目が「０」となる場合＿病棟No.37フラグ",null,0,181,"BK1",1,63]
[173,"報告様式２の全ての項目が「０」となる場合＿病棟No.38フラグ",null,0,182,"BK1",1,63]
[174,"報告様式２の全ての項目が「０」となる場合＿病棟No.39フラグ",null,0,183,"BK1",1,63]
[175,"報告様式２の全ての項目が「０」となる場合＿病棟No.40フラグ",null,0,184,"BK1",1,63]
[176,"報告様式２の全ての項目が「０」となる場合＿病棟No.41フラグ",null,0,185,"BK1",1,63]
[177,"報告様式２の全ての項目が「０」となる場合＿病棟No.42フラグ",null,0,186,"BK1",1,63]
[178,"報告様式２の全ての項目が「０」となる場合＿病棟No.43フラグ",null,0,187,"BK1",1,63]
[179,"報告様式２の全ての項目が「０」となる場合＿病棟No.44フラグ",null,0,188,"BK1",1,63]
[180,"報告様式２の全ての項目が「０」となる場合＿病棟No.45フラグ",null,0,189,"BK1",1,63]
[181,"報告様式２の全ての項目が「０」となる場合＿病棟No.46フラグ",null,0,190,"BK1",1,63]
[182,"報告様式２の全ての項目が「０」となる場合＿病棟No.47フラグ",null,0,191,"BK1",1,63]
[183,"報告様式２の全ての項目が「０」となる場合＿病棟No.48フラグ",null,0,192,"BK1",1,63]
[184,"報告様式２の全ての項目が「０」となる場合＿病棟No.49フラグ",null,0,193,"BK1",1,63]
[185,"報告様式２の全ての項目が「０」となる場合＿病棟No.50フラグ",null,0,194,"BK1",1,63]
[186,"報告様式２の全ての項目が「０」となる場合＿病棟No.51フラグ",null,0,195,"BK1",1,63]
[187,"報告様式２の全ての項目が「０」となる場合＿病棟No.52フラグ",null,0,196,"BK1",1,63]
[188,"報告様式２の全ての項目が「０」となる場合＿病棟No.53フラグ",null,0,197,"BK1",1,63]
[189,"報告様式２の全ての項目が「０」となる場合＿病棟No.54フラグ",null,0,198,"BK1",1,63]
[190,"報告様式２の全ての項目が「０」となる場合＿病棟No.55フラグ",null,0,199,"BK1",1,63]
[191,"報告様式２の全ての項目が「０」となる場合＿病棟No.56フラグ",null,0,200,"BK1",1,63]
[192,"報告様式２の全ての項目が「０」となる場合＿病棟No.57フラグ",null,0,201,"BK1",1,63]
[193,"報告様式２の全ての項目が「０」となる場合＿病棟No.58フラグ",null,0,202,"BK1",1,63]
[194,"報告様式２の全ての項目が「０」となる場合＿病棟No.59フラグ",null,0,203,"BK1",1,63]
[195,"報告様式２の全ての項目が「０」となる場合＿病棟No.60フラグ",null,0,204,"BK1",1,63]

{"sheet":"様式展開ツール","index":3,"n_rows":3,"n_cols":7,"rows_kept":3,"cut":false,"hidden":false,"merged":[[0,0,1,13],[2,0,24,5],[2,6,24,13]]}
["様式展開ツール"]
[]
[null,null,null,null,null,null,"◆操作手順◆\n\n１．本ファイルの「2B基本票H29」シートの各項目にご入力ください。\n\n２．厚生労働省ホームページ上の専用ページ上からダウンロードした以下の報告様式２（入力用）の各ファイルを本ファイルと同一フォルダに保存してください。\n　・病棟票(2B_h29_2byoutou.xlsx)\n\n３．左の「様式展開を実行」ボタンを押下してください。\n\n４．「2B基本票H29」シートに入力されたデータをもとに、ご入力いただいた病棟数分の「病棟票」が同一フォルダ内に展開されます。\n\n※本ファイルの名称については、「2B_h29_1kihon_XXXXXXXX_YYYYMMDDhhmmss.xlsm」に変更されます。\n\n※また、病棟票については、以下の名称となりますので、ご留意ください。\n　・病棟票(2B_h29_2byoutouNN_XXXXXXXX_YYYYMMDDhhmmss.xlsx)\n\n５．展開された各様式を開き、必要項目を入力してください。\n"]

{"sheet":"テキスト化ツール","index":4,"n_rows":21,"n_cols":15,"rows_kept":21,"cut":false,"hidden":false,"merged":[[0,0,1,20],[78,1,78,5],[78,8,78,12],[79,1,79,5],[79,8,79,12],[72,1,72,5],[72,8,72,12],[73,1,73,5],[73,8,73,12],[74,1,74,5],[74,8,74,12],[69,1,69,5],[69,8,69,12],[70,1,70,5],[70,8,70,12],[71,1,71,5],[71,8,71,12],[68,1,68,5],[63,1,63,5],[63,8,63,12],[64,1,64,5],[64,8,64,12],[65,1,65,5],[65,8,65,12],[80,1,80,5],[80,8,80,12],[75,1,75,5],[75,8,75,12],[76,1,76,5],[76,8,76,12],[77,1,77,5],[77,8,77,12],[68,8,68,12],[66,1,66,5],[66,8,66,12],[67,1,67,5],[67,8,67,12],[62,1,62,5],[62,8,62,12],[57,1,57,5],[57,8,57,12],[58,1,58,5],[58,8,58,12],[59,1,59,5],[59,8,59,12],[60,1,60,5],[60,8,60,12],[61,1,61,5],[61,8,61,12],[56,1,56,5],[56,8,56,12],[51,1,51,5],[51,8,51,12],[52,1,52,5],[52,8,52,12],[53,1,53,5],[53,8,53,12],[54,1,54,5],[54,8,54,12],[55,1,55,5],[55,8,55,12],[50,1,50,5],[50,8,50,12],[45,1,45,5],[45,8,45,12],[46,1,46,5],[46,8,46,12],[47,1,47,5],[47,8,47,12],[48,1,48,5],[48,8,48,12],[49,1,49,5],[49,8,49,12],[44,1,44,5],[44,8,44,12],[39,1,39,5],[39,8,39,12],[40,1,40,5],[40,8,40,12],[41,1,41,5],[41,8,41,12],[42,1,42,5],[42,8,42,12],[43,1,43,5],[43,8,43,12],[38,1,38,5],[38,8,38,12],[33,1,33,5],[33,8,33,12],[34,1,34,5],[34,8,34,12],[35,1,35,5],[35,8,35,12],[36,1,36,5],[36,8,36,12],[37,1,37,5],[37,8,37,12],[28,1,28,5],[28,8,28,12],[29,1,29,5],[29,8,29,12],[22,8,22,12],[31,1,31,5],[31,8,31,12],[25,1,25,5],[25,8,25,12],[26,1,26,5],[23,1,23,5],[23,8,23,12],[30,1,30,5],[30,8,30,12],[24,8,24,12],[2,14,81,20],[6,3,6,10],[2,5,3,8],[11,1,11,5],[11,8,13,12],[26,8,26,12],[21,1,21,5],[21,8,21,12],[22,1,22,5],[13,1,13,5],[19,1,19,5],[20,1,20,5],[24,1,24,5],[16,8,18,12],[17,1,17,5],[18,1,18,5],[12,1,12,5],[14,1,14,5],[15,1,15,5],[16,1,16,5],[32,1,32,5],[32,8,32,12],[27,1,27,5],[27,8,27,12]]}
["テキスト化ツール"]
[]
[null,null,null,null,null,null,null,null,null,null,null,null,null,null,"◆操作手順◆\n\n１．本ファイルの各様式の各項目にご入力ください。\n\n２．左の「テキストファイル化　実行」ボタンを押下してください。\n\n３．以下の名称のテキストファイルが、デスクトップ上に作成された「H29病床機能報告_報告様式2B入力ファイル(テキストファイル形式)」フォルダ内に格納されますので、ご確認ください。\n\n　・基本票(2B_h29_1kihon_21_XXXXXXXX_YYYYMMDDhhmmss.txt)\n　・病棟票1(2B_h29_2byoutouNN_22_1_XXXXXXXX_YYYYMMDDhhmmss.txt)\n　・病棟票2(2B_h29_2byoutouNN_22_2_XXXXXXXX_YYYYMMDDhhmmss.txt)\n　・病棟票3(2B_h29_2byoutouNN_22_3_XXXXXXXX_YYYYMMDDhhmmss.txt)\n　・病棟票4(2B_h29_2byoutouNN_22_4_XXXXXXXX_YYYYMMDDhhmmss.txt)\n　・手術（個別）票(2B_h29_2byoutouNN_23_XXXXXXXX_YYYYMMDDhhmmss.txt)\n　・全身麻酔手術（個別）票(2B_h29_2byoutouNN_24_XXXXXXXX_YYYYMMDDhhmmss.txt)\n\n※病棟票については、手順２にて移動した順に、ファイル名のNN部分に病棟Noが入りますので、ご留意ください。"]
[]
[]
[null,null,"※参照ボタンを押下し、各様式の入っているフォルダを指定してください。"]
["○対象フォルダ"]
[]
[]
["○参照ファイル一覧",null,null,null,null,null,null,null,"○変換前ファイルリスト"]
[null,null,null,null,null,null,null,null,"・基本票"]
[null,null,null,null,null,null,null,null,"2B_h29_1kihon.xlsm"]
[]
[]
[]
[]
[]
[]
[]
[]
[null,null,null,null,null,null,null,null,"・病棟票"]

{"sheet":"テキスト手動保存用","index":5,"n_rows":5,"n_cols":205,"rows_kept":5,"cut":false,"hidden":false,"merged":[]}
[1,"2B1H29",null,null,null,null,null,null,null,{"$f":"IF('2B基本票H29'!S4=\"\",\"\",'2B基本票H29'!S4)","v":""},{"$f":"IF('2B基本票H29'!S6=\"\",\"\",'2B基本票H29'!S6)","v":""},{"$f":"IF(OR('2B基本票H29'!W8=\"\",'2B基本票H29'!AH8=\"\"),\"\",'2B基本票H29'!W8 & '2B基本票H29'!AE8 &'2B基本票H29'!AH8)","v":""},{"$f":"IF('2B基本票H29'!S9=\"\",\"\",'2B基本票H29'!S9)","v":""},{"$f":"IF('2B基本票H29'!S11=\"\",\"\",'2B基本票H29'!S11)","v":""},{"$f":"IF('2B基本票H29'!S12=\"\",\"\",'2B基本票H29'!S12)","v":""},{"$f":"IF(OR('2B基本票H29'!AE13=\"\",'2B基本票H29'!AK13=\"\",'2B基本票H29'!AU13=\"\"),\"\",'2B基本票H29'!AE13 & '2B基本票H29'!AI13 & '2B基本票H29'!AK13 & '2B基本票H29'!AS13 & '2B基本票H29'!AU13)","v":""},{"$f":"IF(OR('2B基本票H29'!AE14=\"\",'2B基本票H29'!AK14=\"\",'2B基本票H29'!AU14=\"\"),\"\",'2B基本票H29'!AE14 & '2B基本票H29'!AI14 & '2B基本票H29'!AK14 & '2B基本票H29'!AS14 & '2B基本票H29'!AU14)","v":""},{"$f":"IF(OR('2B基本票H29'!AA15=\"\",'2B基本票H29'!AU15=\"\"),\"\",'2B基本票H29'!AA15 & '2B基本票H29'!AS15 &'2B基本票H29'!AU15)","v":""},{"$f":"IF('2B基本票H29'!BF18=\"\",\"\",'2B基本票H29'!BF18)","v":""},{"$f":"IF('2B基本票H29'!W22=\"\",\"\",'2B基本票H29'!W22)","v":""},{"$f":"IF('2B基本票H29'!AS22=\"\",\"\",'2B基本票H29'!AS22)","v":""},{"$f":"IF('2B基本票H29'!W23=\"\",\"\",'2B基本票H29'!W23)","v":""},{"$f":"IF('2B基本票H29'!AS23=\"\",\"\",'2B基本票H29'!AS23)","v":""},{"$f":"IF('2B基本票H29'!BD33=\"\",\"\",'2B基本票H29'!BD33)","v":""},{"$f":"IF('2B基本票H29'!AL42=\"\",\"\",1906 & '2B基本票H29'!AL42)","v":""},{"$f":"IF('2B基本票H29'!AL45=\"\",\"\",1906 & '2B基本票H29'!AL45)","v":""},{"$f":"IF('2B基本票H29'!AL48=\"\",\"\",1906 & '2B基本票H29'!AL48)","v":""},{"$f":"IF('2B基本票H29'!AL51=\"\",\"\",1906 & '2B基本票H29'!AL51)","v":""},{"$f":"IF('2B基本票H29'!AL54=\"\",\"\",1906 & '2B基本票H29'!AL54)","v":""},{"$f":"IF('2B基本票H29'!AL57=\"\",\"\",1906 & '2B基本票H29'!AL57)","v":""},{"$f":"IF('2B基本票H29'!AL60=\"\",\"\",1906 & '2B基本票H29'!AL60)","v":""},{"$f":"IF('2B基本票H29'!AL63=\"\",\"\",1906 & '2B基本票H29'!AL63)","v":""},{"$f":"IF('2B基本票H29'!AL66=\"\",\"\",1906 & '2B基本票H29'!AL66)","v":""},{"$f":"IF('2B基本票H29'!AL69=\"\",\"\",1906 & '2B基本票H29'!AL69)","v":""},{"$f":"IF('2B基本票H29'!AL72=\"\",\"\",1906 & '2B基本票H29'!AL72)","v":""},{"$f":"IF('2B基本票H29'!AL75=\"\",\"\",1906 & '2B基本票H29'!AL75)","v":""},{"$f":"IF('2B基本票H29'!AL78=\"\",\"\",1906 & '2B基本票H29'!AL78)","v":""},{"$f":"IF('2B基本票H29'!AL81=\"\",\"\",1906 & '2B基本票H29'!AL81)","v":""},{"$f":"IF('2B基本票H29'!AL84=\"\",\"\",1906 & '2B基本票H29'!AL84)","v":""},{"$f":"IF('2B基本票H29'!AL87=\"\",\"\",1906 & '2B基本票H29'!AL87)","v":""},{"$f":"IF('2B基本票H29'!AL90=\"\",\"\",1906 & '2B基本票H29'!AL90)","v":""},{"$f":"IF('2B基本票H29'!AL93=\"\",\"\",1906 & '2B基本票H29'!AL93)","v":""},{"$f":"IF('2B基本票H29'!AL96=\"\",\"\",1906 & '2B基本票H29'!AL96)","v":""},{"$f":"IF('2B基本票H29'!AL99=\"\",\"\",1906 & '2B基本票H29'!AL99)","v":""},{"$f":"IF('2B基本票H29'!AL102=\"\",\"\",1906 & '2B基本票H29'!AL102)","v":""},{"$f":"IF('2B基本票H29'!AL105=\"\",\"\",1906 & '2B基本票H29'!AL105)","v":""},{"$f":"IF('2B基本票H29'!AL108=\"\",\"\",1906 & '2B基本票H29'!AL108)","v":""},{"$f":"IF('2B基本票H29'!AL111=\"\",\"\",1906 & '2B基本票H29'!AL111)","v":""},{"$f":"IF('2B基本票H29'!AL114=\"\",\"\",1906 & '2B基本票H29'!AL114)","v":""},{"$f":"IF('2B基本票H29'!AL117=\"\",\"\",1906 & '2B基本票H29'!AL117)","v":""},{"$f":"IF('2B基本票H29'!AL120=\"\",\"\",1906 & '2B基本票H29'!AL120)","v":""},{"$f":"IF('2B基本票H29'!AL123=\"\",\"\",1906 & '2B基本票H29'!AL123)","v":""},{"$f":"IF('2B基本票H29'!AL126=\"\",\"\",1906 & '2B基本票H29'!AL126)","v":""},{"$f":"IF('2B基本票H29'!AL129=\"\",\"\",1906 & '2B基本票H29'!AL129)","v":""},{"$f":"IF('2B基本票H29'!AL132=\"\",\"\",1906 & '2B基本票H29'!AL132)","v":""},{"$f":"IF('2B基本票H29'!AL135=\"\",\"\",1906 & '2B基本票H29'!AL135)","v":""},{"$f":"IF('2B基本票H29'!AL138=\"\",\"\",1906 & '2B基本票H29'!AL138)","v":""},{"$f":"IF('2B基本票H29'!AL141=\"\",\"\",1906 & '2B基本票H29'!AL141)","v":""},{"$f":"IF('2B基本票H29'!AL144=\"\",\"\",1906 & '2B基本票H29'!AL144)","v":""},{"$f":"IF('2B基本票H29'!AL147=\"\",\"\",1906 & '2B基本票H29'!AL147)","v":""},{"$f":"IF('2B基本票H29'!AL150=\"\",\"\",1906 & '2B基本票H29'!AL150)","v":""},{"$f":"IF('2B基本票H29'!AL153=\"\",\"\",1906 & '2B基本票H29'!AL153)","v":""},{"$f":"IF('2B基本票H29'!AL156=\"\",\"\",1906 & '2B基本票H29'!AL156)","v":""},{"$f":"IF('2B基本票H29'!AL159=\"\",\"\",1906 & '2B基本票H29'!AL159)","v":""},{"$f":"IF('2B基本票H29'!AL162=\"\",\"\",1906 & '2B基本票H29'!AL162)","v":""},{"$f":"IF('2B基本票H29'!AL165=\"\",\"\",1906 & '2B基本票H29'!AL165)","v":""},{"$f":"IF('2B基本票H29'!AL168=\"\",\"\",1906 & '2B基本票H29'!AL168)","v":""},{"$f":"IF('2B基本票H29'!AL171=\"\",\"\",1906 & '2B基本票H29'!AL171)","v":""},{"$f":"IF('2B基本票H29'!AL174=\"\",\"\",1906 & '2B基本票H29'!AL174)","v":""},{"$f":"IF('2B基本票H29'!AL177=\"\",\"\",1906 & '2B基本票H29'!AL177)","v":""},{"$f":"IF('2B基本票H29'!AL180=\"\",\"\",1906 & '2B基本票H29'!AL180)","v":""},{"$f":"IF('2B基本票H29'!AL183=\"\",\"\",1906 & '2B基本票H29'!AL183)","v":""},{"$f":"IF('2B基本票H29'!AL186=\"\",\"\",1906 & '2B基本票H29'!AL186)","v":""},{"$f":"IF('2B基本票H29'!AL189=\"\",\"\",1906 & '2B基本票H29'!AL189)","v":""},{"$f":"IF('2B基本票H29'!AL192=\"\",\"\",1906 & '2B基本票H29'!AL192)","v":""},{"$f":"IF('2B基本票H29'!AL195=\"\",\"\",1906 & '2B基本票H29'!AL195)","v":""},{"$f":"IF('2B基本票H29'!AL198=\"\",\"\",1906 & '2B基本票H29'!AL198)","v":""},{"$f":"IF('2B基本票H29'!AL201=\"\",\"\",1906 & '2B基本票H29'!AL201)","v":""},{"$f":"IF('2B基本票H29'!AL204=\"\",\"\",1906 & '2B基本票H29'!AL204)","v":""},{"$f":"IF('2B基本票H29'!AL207=\"\",\"\",1906 & '2B基本票H29'!AL207)","v":""},{"$f":"IF('2B基本票H29'!AL210=\"\",\"\",1906 & '2B基本票H29'!AL210)","v":""},{"$f":"IF('2B基本票H29'!AL213=\"\",\"\",1906 & '2B基本票H29'!AL213)","v":""},{"$f":"IF('2B基本票H29'!AL216=\"\",\"\",1906 & '2B基本票H29'!AL216)","v":""},{"$f":"IF('2B基本票H29'!AL219=\"\",\"\",1906 & '2B基本票H29'!AL219)","v":""},{"$f":"IF('2B基本票H29'!BG43=\"\",\"\",'2B基本票H29'!BG43)","v":"　"},{"$f":"IF('2B基本票H29'!BG46=\"\",\"\",'2B基本票H29'!BG46)","v":"　"},{"$f":"IF('2B基本票H29'!BG49=\"\",\"\",'2B基本票H29'!BG49)","v":"　"},{"$f":"IF('2B基本票H29'!BG52=\"\",\"\",'2B基本票H29'!BG52)","v":"　"},{"$f":"IF('2B基本票H29'!BG55=\"\",\"\",'2B基本票H29'!BG55)","v":"　"},{"$f":"IF('2B基本票H29'!BG58=\"\",\"\",'2B基本票H29'!BG58)","v":"　"},{"$f":"IF('2B基本票H29'!BG61=\"\",\"\",'2B基本票H29'!BG61)","v":"　"},{"$f":"IF('2B基本票H29'!BG64=\"\",\"\",'2B基本票H29'!BG64)","v":"　"},{"$f":"IF('2B基本票H29'!BG67=\"\",\"\",'2B基本票H29'!BG67)","v":"　"},{"$f":"IF('2B基本票H29'!BG70=\"\",\"\",'2B基本票H29'!BG70)","v":"　"},{"$f":"IF('2B基本票H29'!BG73=\"\",\"\",'2B基本票H29'!BG73)","v":"　"},{"$f":"IF('2B基本票H29'!BG76=\"\",\"\",'2B基本票H29'!BG76)","v":"　"},{"$f":"IF('2B基本票H29'!BG79=\"\",\"\",'2B基本票H29'!BG79)","v":"　"},{"$f":"IF('2B基本票H29'!BG82=\"\",\"\",'2B基本票H29'!BG82)","v":"　"},{"$f":"IF('2B基本票H29'!BG85=\"\",\"\",'2B基本票H29'!BG85)","v":"　"},{"$f":"IF('2B基本票H29'!BG88=\"\",\"\",'2B基本票H29'!BG88)","v":"　"},{"$f":"IF('2B基本票H29'!BG91=\"\",\"\",'2B基本票H29'!BG91)","v":"　"},{"$f":"IF('2B基本票H29'!BG94=\"\",\"\",'2B基本票H29'!BG94)","v":"　"},{"$f":"IF('2B基本票H29'!BG97=\"\",\"\",'2B基本票H29'!BG97)","v":"　"},{"$f":"IF('2B基本票H29'!BG100=\"\",\"\",'2B基本票H29'!BG100)","v":"　"},{"$f":"IF('2B基本票H29'!BG103=\"\",\"\",'2B基本票H29'!BG103)","v":"　"},{"$f":"IF('2B基本票H29'!BG106=\"\",\"\",'2B基本票H29'!BG106)","v":"　"},{"$f":"IF('2B基本票H29'!BG109=\"\",\"\",'2B基本票H29'!BG109)","v":"　"},{"$f":"IF('2B基本票H29'!BG112=\"\",\"\",'2B基本票H29'!BG112)","v":"　"},{"$f":"IF('2B基本票H29'!BG115=\"\",\"\",'2B基本票H29'!BG115)","v":"　"},{"$f":"IF('2B基本票H29'!BG118=\"\",\"\",'2B基本票H29'!BG118)","v":"　"},{"$f":"IF('2B基本票H29'!BG121=\"\",\"\",'2B基本票H29'!BG121)","v":"　"},{"$f":"IF('2B基本票H29'!BG124=\"\",\"\",'2B基本票H29'!BG124)","v":"　"},{"$f":"IF('2B基本票H29'!BG127=\"\",\"\",'2B基本票H29'!BG127)","v":"　"},{"$f":"IF('2B基本票H29'!BG130=\"\",\"\",'2B基本票H29'!BG130)","v":"　"},{"$f":"IF('2B基本票H29'!BG133=\"\",\"\",'2B基本票H29'!BG133)","v":"　"},{"$f":"IF('2B基本票H29'!BG136=\"\",\"\",'2B基本票H29'!BG136)","v":"　"},{"$f":"IF('2B基本票H29'!BG139=\"\",\"\",'2B基本票H29'!BG139)","v":"　"},{"$f":"IF('2B基本票H29'!BG142=\"\",\"\",'2B基本票H29'!BG142)","v":"　"},{"$f":"IF('2B基本票H29'!BG145=\"\",\"\",'2B基本票H29'!BG145)","v":"　"},{"$f":"IF('2B基本票H29'!BG148=\"\",\"\",'2B基本票H29'!BG148)","v":"　"},{"$f":"IF('2B基本票H29'!BG151=\"\",\"\",'2B基本票H29'!BG151)","v":"　"},{"$f":"IF('2B基本票H29'!BG154=\"\",\"\",'2B基本票H29'!BG154)","v":"　"},{"$f":"IF('2B基本票H29'!BG157=\"\",\"\",'2B基本票H29'!BG157)","v":"　"},{"$f":"IF('2B基本票H29'!BG160=\"\",\"\",'2B基本票H29'!BG160)","v":"　"},{"$f":"IF('2B基本票H29'!BG163=\"\",\"\",'2B基本票H29'!BG163)","v":"　"},{"$f":"IF('2B基本票H29'!BG166=\"\",\"\",'2B基本票H29'!BG166)","v":"　"},{"$f":"IF('2B基本票H29'!BG169=\"\",\"\",'2B基本票H29'!BG169)","v":"　"},{"$f":"IF('2B基本票H29'!BG172=\"\",\"\",'2B基本票H29'!BG172)","v":"　"},{"$f":"IF('2B基本票H29'!BG175=\"\",\"\",'2B基本票H29'!BG175)","v":"　"},{"$f":"IF('2B基本票H29'!BG178=\"\",\"\",'2B基本票H29'!BG178)","v":"　"},{"$f":"IF('2B基本票H29'!BG181=\"\",\"\",'2B基本票H29'!BG181)","v":"　"},{"$f":"IF('2B基本票H29'!BG184=\"\",\"\",'2B基本票H29'!BG184)","v":"　"},{"$f":"IF('2B基本票H29'!BG187=\"\",\"\",'2B基本票H29'!BG187)","v":"　"},{"$f":"IF('2B基本票H29'!BG190=\"\",\"\",'2B基本票H29'!BG190)","v":"　"},{"$f":"IF('2B基本票H29'!BG193=\"\",\"\",'2B基本票H29'!BG193)","v":"　"},{"$f":"IF('2B基本票H29'!BG196=\"\",\"\",'2B基本票H29'!BG196)","v":"　"},{"$f":"IF('2B基本票H29'!BG199=\"\",\"\",'2B基本票H29'!BG199)","v":"　"},{"$f":"IF('2B基本票H29'!BG202=\"\",\"\",'2B基本票H29'!BG202)","v":"　"},{"$f":"IF('2B基本票H29'!BG205=\"\",\"\",'2B基本票H29'!BG205)","v":"　"},{"$f":"IF('2B基本票H29'!BG208=\"\",\"\",'2B基本票H29'!BG208)","v":"　"},{"$f":"IF('2B基本票H29'!BG211=\"\",\"\",'2B基本票H29'!BG211)","v":"　"},{"$f":"IF('2B基本票H29'!BG214=\"\",\"\",'2B基本票H29'!BG214)","v":"　"},{"$f":"IF('2B基本票H29'!BG217=\"\",\"\",'2B基本票H29'!BG217)","v":"　"},{"$f":"IF('2B基本票H29'!BG220=\"\",\"\",'2B基本票H29'!BG220)","v":"　"},{"$f":"IF('2B基本票H29'!BK1=\"\",\"\",'2B基本票H29'!BK1)","v":""},{"$f":"IF('2B基本票H29'!BK1=\"\",\"\",'2B基本票H29'!BK1)","v":""},{"$f":"IF('2B基本票H29'!BK1=\"\",\"\",'2B基本票H29'!BK1)","v":""},{"$f":"IF('2B基本票H29'!BK1=\"\",\"\",'2B基本票H29'!BK1)","v":""},{"$f":"IF('2B基本票H29'!BK1=\"\",\"\",'2B基本票H29'!BK1)","v":""},{"$f":"IF('2B基本票H29'!BK1=\"\",\"\",'2B基本票H29'!BK1)","v":""},{"$f":"IF('2B基本票H29'!BK1=\"\",\"\",'2B基本票H29'!BK1)","v":""},{"$f":"IF('2B基本票H29'!BK1=\"\",\"\",'2B基本票H29'!BK1)","v":""},{"$f":"IF('2B基本票H29'!BK1=\"\",\"\",'2B基本票H29'!BK1)","v":""},{"$f":"IF('2B基本票H29'!BK1=\"\",\"\",'2B基本票H29'!BK1)","v":""},{"$f":"IF('2B基本票H29'!BK1=\"\",\"\",'2B基本票H29'!BK1)","v":""},{"$f":"IF('2B基本票H29'!BK1=\"\",\"\",'2B基本票H29'!BK1)","v":""},{"$f":"IF('2B基本票H29'!BK1=\"\",\"\",'2B基本票H29'!BK1)","v":""},{"$f":"IF('2B基本票H29'!BK1=\"\",\"\",'2B基本票H29'!BK1)","v":""},{"$f":"IF('2B基本票H29'!BK1=\"\",\"\",'2B基本票H29'!BK1)","v":""},{"$f":"IF('2B基本票H29'!BK1=\"\",\"\",'2B基本票H29'!BK1)","v":""},{"$f":"IF('2B基本票H29'!BK1=\"\",\"\",'2B基本票H29'!BK1)","v":""},{"$f":"IF('2B基本票H29'!BK1=\"\",\"\",'2B基本票H29'!BK1)","v":""},{"$f":"IF('2B基本票H29'!BK1=\"\",\"\",'2B基本票H29'!BK1)","v":""},{"$f":"IF('2B基本票H29'!BK1=\"\",\"\",'2B基本票H29'!BK1)","v":""},{"$f":"IF('2B基本票H29'!BK1=\"\",\"\",'2B基本票H29'!BK1)","v":""},{"$f":"IF('2B基本票H29'!BK1=\"\",\"\",'2B基本票H29'!BK1)","v":""},{"$f":"IF('2B基本票H29'!BK1=\"\",\"\",'2B基本票H29'!BK1)","v":""},{"$f":"IF('2B基本票H29'!BK1=\"\",\"\",'2B基本票H29'!BK1)","v":""},{"$f":"IF('2B基本票H29'!BK1=\"\",\"\",'2B基本票H29'!BK1)","v":""},{"$f":"IF('2B基本票H29'!BK1=\"\",\"\",'2B基本票H29'!BK1)","v":""},{"$f":"IF('2B基本票H29'!BK1=\"\",\"\",'2B基本票H29'!BK1)","v":""},{"$f":"IF('2B基本票H29'!BK1=\"\",\"\",'2B基本票H29'!BK1)","v":""},{"$f":"IF('2B基本票H29'!BK1=\"\",\"\",'2B基本票H29'!BK1)","v":""},{"$f":"IF('2B基本票H29'!BK1=\"\",\"\",'2B基本票H29'!BK1)","v":""},{"$f":"IF('2B基本票H29'!BK1=\"\",\"\",'2B基本票H29'!BK1)","v":""},{"$f":"IF('2B基本票H29'!BK1=\"\",\"\",'2B基本票H29'!BK1)","v":""},{"$f":"IF('2B基本票H29'!BK1=\"\",\"\",'2B基本票H29'!BK1)","v":""},{"$f":"IF('2B基本票H29'!BK1=\"\",\"\",'2B基本票H29'!BK1)","v":""},{"$f":"IF('2B基本票H29'!BK1=\"\",\"\",'2B基本票H29'!BK1)","v":""},{"$f":"IF('2B基本票H29'!BK1=\"\",\"\",'2B基本票H29'!BK1)","v":""},{"$f":"IF('2B基本票H29'!BK1=\"\",\"\",'2B基本票H29'!BK1)","v":""},{"$f":"IF('2B基本票H29'!BK1=\"\",\"\",'2B基本票H29'!BK1)","v":""},{"$f":"IF('2B基本票H29'!BK1=\"\",\"\",'2B基本票H29'!BK1)","v":""},{"$f":"IF('2B基本票H29'!BK1=\"\",\"\",'2B基本票H29'!BK1)","v":""},{"$f":"IF('2B基本票H29'!BK1=\"\",\"\",'2B基本票H29'!BK1)","v":""},{"$f":"IF('2B基本票H29'!BK1=\"\",\"\",'2B基本票H29'!BK1)","v":""},{"$f":"IF('2B基本票H29'!BK1=\"\",\"\",'2B基本票H29'!BK1)","v":""},{"$f":"IF('2B基本票H29'!BK1=\"\",\"\",'2B基本票H29'!BK1)","v":""},{"$f":"IF('2B基本票H29'!BK1=\"\",\"\",'2B基本票H29'!BK1)","v":""},{"$f":"IF('2B基本票H29'!BK1=\"\",\"\",'2B基本票H29'!BK1)","v":""},{"$f":"IF('2B基本票H29'!BK1=\"\",\"\",'2B基本票H29'!BK1)","v":""},{"$f":"IF('2B基本票H29'!BK1=\"\",\"\",'2B基本票H29'!BK1)","v":""},{"$f":"IF('2B基本票H29'!BK1=\"\",\"\",'2B基本票H29'!BK1)","v":""},{"$f":"IF('2B基本票H29'!BK1=\"\",\"\",'2B基本票H29'!BK1)","v":""},{"$f":"IF('2B基本票H29'!BK1=\"\",\"\",'2B基本票H29'!BK1)","v":""},{"$f":"IF('2B基本票H29'!BK1=\"\",\"\",'2B基本票H29'!BK1)","v":""},{"$f":"IF('2B基本票H29'!BK1=\"\",\"\",'2B基本票H29'!BK1)","v":""},{"$f":"IF('2B基本票H29'!BK1=\"\",\"\",'2B基本票H29'!BK1)","v":""},{"$f":"IF('2B基本票H29'!BK1=\"\",\"\",'2B基本票H29'!BK1)","v":""},{"$f":"IF('2B基本票H29'!BK1=\"\",\"\",'2B基本票H29'!BK1)","v":""},{"$f":"IF('2B基本票H29'!BK1=\"\",\"\",'2B基本票H29'!BK1)","v":""},{"$f":"IF('2B基本票H29'!BK1=\"\",\"\",'2B基本票H29'!BK1)","v":""},{"$f":"IF('2B基本票H29'!BK1=\"\",\"\",'2B基本票H29'!BK1)","v":""},{"$f":"IF('2B基本票H29'!BK1=\"\",\"\",'2B基本票H29'!BK1)","v":""}]
[]
[]
[]
[null,null,null,null,null,null,null,null,null,null,null,null,null,null,null,null,null,null,null,null,null,null,null,null,null,null,null,null,null,null,null,null,null,null,null,null,null,null,null,null,null,null,null,null,null,null,null,null,null,null,null,null,null,null,null,null,null,null,null,null,null,null,null,null,null,null,null,null,null,null,null,null,null,null,null,null,null,null,null,null,null,null,null,null,null,null,null,null,null,null,null,null,null,null,null,null,null,null,null,null,null,null,null,null,null,null,null,null,null,null,null,null,null,null,null,null,null,null,null,null,null,null,null,null,null,null,null,null,null,null,null,null,null,null,null,null,null,null,null,null,null,null,null,null,null,null,null,null,null,null,null,null,null,null,null,null,null,null,null,null,null,null,null,null,null,null,null,null,null,null,null,null,null,null,null,null,null,null,null,null,null,null,null,null,null,null,null,null,null,null,null,null,null,null,null,null,null,null,null,null,null,null,null,null,"End"]

{"sheet":"都道府県","index":6,"n_rows":47,"n_cols":2,"rows_kept":47,"cut":false,"hidden":true,"merged":[]}
["01","北海道"]
["02","青森県"]
["03","岩手県"]
["04","宮城県"]
["05","秋田県"]
["06","山形県"]
["07","福島県"]
["08","茨城県"]
["09","栃木県"]
["10","群馬県"]
["11","埼玉県"]
["12","千葉県"]
["13","東京都"]
["14","神奈川県"]
["15","新潟県"]
["16","富山県"]
["17","石川県"]
["18","福井県"]
["19","山梨県"]
["20","長野県"]
["21","岐阜県"]
["22","静岡県"]
["23","愛知県"]
["24","三重県"]
["25","滋賀県"]
["26","京都府"]
["27","大阪府"]
["28","兵庫県"]
["29","奈良県"]
["30","和歌山県"]
["31","鳥取県"]
["32","島根県"]
["33","岡山県"]
["34","広島県"]
["35","山口県"]
["36","徳島県"]
["37","香川県"]
["38","愛媛県"]
["39","高知県"]
["40","福岡県"]
["41","佐賀県"]
["42","長崎県"]
["43","熊本県"]
["44","大分県"]
["45","宮崎県"]
["46","鹿児島県"]
["47","沖縄県"]